Body,Body Name,Transaction No.,Invoice Ref.,Vendor name,Expense Code,Expense Type,Date,Amount
http://statistics.data.gov.uk/id/local-authority-district/23UB,Cheltenham Borough Council,460575,142702,A&E FIRE EQUIPMENT LTD,C-H46200-1104,Fire. Syst.Serv-Council House repairs,04 November 2011,117.64
http://statistics.data.gov.uk/id/local-authority-district/23UB,Cheltenham Borough Council,460579,144633,A&E FIRE EQUIPMENT LTD,C-H46200-1104,Fire. Syst.Serv-Council House repairs,04 November 2011,24.44
http://statistics.data.gov.uk/id/local-authority-district/23UB,Cheltenham Borough Council,460581,144661,A&E FIRE EQUIPMENT LTD,C-H46200-1104,Fire. Syst.Serv-Council House repairs,04 November 2011,9.40
http://statistics.data.gov.uk/id/local-authority-district/23UB,Cheltenham Borough Council,460584,144632,A&E FIRE EQUIPMENT LTD,C-H46200-1104,Fire. Syst.Serv-Council House repairs,04 November 2011,31.96
http://statistics.data.gov.uk/id/local-authority-district/23UB,Cheltenham Borough Council,460583,144633,A&E FIRE EQUIPMENT LTD,C-H46200-1104,Fire. Syst.Serv-Council House repairs,04 November 2011,74.94
http://statistics.data.gov.uk/id/local-authority-district/23UB,Cheltenham Borough Council,460582,144628,A&E FIRE EQUIPMENT LTD,C-H46200-1104,Fire. Syst.Serv-Council House repairs,04 November 2011,53.58
http://statistics.data.gov.uk/id/local-authority-district/23UB,Cheltenham Borough Council,460580,144610,A&E FIRE EQUIPMENT LTD,C-H46200-1104,Fire. Syst.Serv-Council House repairs,04 November 2011,40.42
http://statistics.data.gov.uk/id/local-authority-district/23UB,Cheltenham Borough Council,460585,144611,A&E FIRE EQUIPMENT LTD,C-H46200-1104,Fire. Syst.Serv-Council House repairs,04 November 2011,23.50
http://statistics.data.gov.uk/id/local-authority-district/23UB,Cheltenham Borough Council,460593,143292,A&E FIRE EQUIPMENT LTD,C-H46200-1104,Fire. Syst.Serv-Council House repairs,04 November 2011,74.94
http://statistics.data.gov.uk/id/local-authority-district/23UB,Cheltenham Borough Council,460592,143647,A&E FIRE EQUIPMENT LTD,C-H46200-1104,Fire. Syst.Serv-Council House repairs,04 November 2011,141.48
http://statistics.data.gov.uk/id/local-authority-district/23UB,Cheltenham Borough Council,460590,144631,A&E FIRE EQUIPMENT LTD,C-H46200-1104,Fire. Syst.Serv-Council House repairs,04 November 2011,3.76
http://statistics.data.gov.uk/id/local-authority-district/23UB,Cheltenham Borough Council,460588,143632,A&E FIRE EQUIPMENT LTD,C-H46200-1104,Fire. Syst.Serv-Council House repairs,04 November 2011,187.10
http://statistics.data.gov.uk/id/local-authority-district/23UB,Cheltenham Borough Council,460587,144630,A&E FIRE EQUIPMENT LTD,C-H46200-1104,Fire. Syst.Serv-Council House repairs,04 November 2011,15.04
http://statistics.data.gov.uk/id/local-authority-district/23UB,Cheltenham Borough Council,460586,144629,A&E FIRE EQUIPMENT LTD,C-H46200-1104,Fire. Syst.Serv-Council House repairs,04 November 2011,17.86
http://statistics.data.gov.uk/id/local-authority-district/23UB,Cheltenham Borough Council,460574,142967,A&E FIRE EQUIPMENT LTD,C-HC4870-C302,Fire Protection-Building Contractor,04 November 2011,135.00
http://statistics.data.gov.uk/id/local-authority-district/23UB,Cheltenham Borough Council,461418,145303,A&E FIRE EQUIPMENT LTD,C-H46200-1104,Fire. Syst.Serv-Council House repairs,18 November 2011,39.19
http://statistics.data.gov.uk/id/local-authority-district/23UB,Cheltenham Borough Council,461425,145302,A&E FIRE EQUIPMENT LTD,C-H46200-1104,Fire. Syst.Serv-Council House repairs,18 November 2011,14.98
http://statistics.data.gov.uk/id/local-authority-district/23UB,Cheltenham Borough Council,461429,144785,A&E FIRE EQUIPMENT LTD,C-H46200-1104,Fire. Syst.Serv-Council House repairs,18 November 2011,49.96
http://statistics.data.gov.uk/id/local-authority-district/23UB,Cheltenham Borough Council,461428,145132,A&E FIRE EQUIPMENT LTD,C-H46200-1104,Fire. Syst.Serv-Council House repairs,18 November 2011,123.09
http://statistics.data.gov.uk/id/local-authority-district/23UB,Cheltenham Borough Council,461427,144858,A&E FIRE EQUIPMENT LTD,C-H46200-1104,Fire. Syst.Serv-Council House repairs,18 November 2011,46.82
http://statistics.data.gov.uk/id/local-authority-district/23UB,Cheltenham Borough Council,461426,144206,A&E FIRE EQUIPMENT LTD,C-H46200-1104,Fire. Syst.Serv-Council House repairs,18 November 2011,319.57
http://statistics.data.gov.uk/id/local-authority-district/23UB,Cheltenham Borough Council,461424,145301,A&E FIRE EQUIPMENT LTD,C-H46200-1104,Fire. Syst.Serv-Council House repairs,18 November 2011,72.27
http://statistics.data.gov.uk/id/local-authority-district/23UB,Cheltenham Borough Council,461419,145342,A&E FIRE EQUIPMENT LTD,C-H46200-1104,Fire. Syst.Serv-Council House repairs,18 November 2011,103.19
http://statistics.data.gov.uk/id/local-authority-district/23UB,Cheltenham Borough Council,461421,145346,A&E FIRE EQUIPMENT LTD,C-H46200-1104,Fire. Syst.Serv-Council House repairs,18 November 2011,17.87
http://statistics.data.gov.uk/id/local-authority-district/23UB,Cheltenham Borough Council,461422,145347,A&E FIRE EQUIPMENT LTD,C-H46200-1104,Fire. Syst.Serv-Council House repairs,18 November 2011,20.00
http://statistics.data.gov.uk/id/local-authority-district/23UB,Cheltenham Borough Council,461423,145345,A&E FIRE EQUIPMENT LTD,C-H46200-1104,Fire. Syst.Serv-Council House repairs,18 November 2011,130.86
http://statistics.data.gov.uk/id/local-authority-district/23UB,Cheltenham Borough Council,461420,145299,A&E FIRE EQUIPMENT LTD,C-H46200-1104,Fire. Syst.Serv-Council House repairs,18 November 2011,144.11
http://statistics.data.gov.uk/id/local-authority-district/23UB,Cheltenham Borough Council,461494,145304,A&E FIRE EQUIPMENT LTD,C-HC4870-C302,Fire Protection-Building Contractor,18 November 2011,36.77
http://statistics.data.gov.uk/id/local-authority-district/23UB,Cheltenham Borough Council,461495,145343,A&E FIRE EQUIPMENT LTD,C-HC4870-C302,Fire Protection-Building Contractor,18 November 2011,55.09
http://statistics.data.gov.uk/id/local-authority-district/23UB,Cheltenham Borough Council,461496,145305,A&E FIRE EQUIPMENT LTD,C-HC4870-C302,Fire Protection-Building Contractor,18 November 2011,259.20
http://statistics.data.gov.uk/id/local-authority-district/23UB,Cheltenham Borough Council,461498,145298,A&E FIRE EQUIPMENT LTD,C-HC4870-C302,Fire Protection-Building Contractor,18 November 2011,415.47
http://statistics.data.gov.uk/id/local-authority-district/23UB,Cheltenham Borough Council,461500,145300,A&E FIRE EQUIPMENT LTD,C-HC4870-C302,Fire Protection-Building Contractor,18 November 2011,67.72
http://statistics.data.gov.uk/id/local-authority-district/23UB,Cheltenham Borough Council,461499,145348,A&E FIRE EQUIPMENT LTD,C-HC4870-C302,Fire Protection-Building Contractor,18 November 2011,8.30
http://statistics.data.gov.uk/id/local-authority-district/23UB,Cheltenham Borough Council,461497,145254,A&E FIRE EQUIPMENT LTD,C-HC4870-C302,Fire Protection-Building Contractor,18 November 2011,373.62
http://statistics.data.gov.uk/id/local-authority-district/23UB,Cheltenham Borough Council,461586,21111,AHC CONSULTANTS,C-B51120-3504,Devpment Cntrl-Legal exp & court costs,18 November 2011,"3,700.00"
http://statistics.data.gov.uk/id/local-authority-district/23UB,Cheltenham Borough Council,460749,REDACTED,ALEX CLARKE RESIDENTIAL LETTINGS,C-H22400-3828,Homelessness-Prevention Fund,04 November 2011,600.00
http://statistics.data.gov.uk/id/local-authority-district/23UB,Cheltenham Borough Council,461739,REDACTED,ALEX CLARKE RESIDENTIAL LETTINGS,C-H22400-3244,Homelessness-Supporting People,18 November 2011,500.00
http://statistics.data.gov.uk/id/local-authority-district/23UB,Cheltenham Borough Council,461112,945836,ALLCOOPERS LTD,C-L41100-3103,AG & M-Equipment repairs & maint,11 November 2011,105.00
http://statistics.data.gov.uk/id/local-authority-district/23UB,Cheltenham Borough Council,461113,945839,ALLCOOPERS LTD,C-L41100-3103,AG & M-Equipment repairs & maint,11 November 2011,89.00
http://statistics.data.gov.uk/id/local-authority-district/23UB,Cheltenham Borough Council,461115,945837,ALLCOOPERS LTD,C-L41100-3103,AG & M-Equipment repairs & maint,11 November 2011,84.00
http://statistics.data.gov.uk/id/local-authority-district/23UB,Cheltenham Borough Council,461115,945837,ALLCOOPERS LTD,C-L41100-3103,AG & M-Equipment repairs & maint,11 November 2011,231.00
http://statistics.data.gov.uk/id/local-authority-district/23UB,Cheltenham Borough Council,461114,945838,ALLCOOPERS LTD,C-L41100-3103,AG & M-Equipment repairs & maint,11 November 2011,105.00
http://statistics.data.gov.uk/id/local-authority-district/23UB,Cheltenham Borough Council,461112,945836,ALLCOOPERS LTD,C-L41100-3103,AG & M-Equipment repairs & maint,11 November 2011,189.00
http://statistics.data.gov.uk/id/local-authority-district/23UB,Cheltenham Borough Council,460845,52260,ALPHA COLOUR PRINTERS LTD,C-1T31J1-3406,New Years Eve-Printing-Promotion/Mkting,04 November 2011,239.00
http://statistics.data.gov.uk/id/local-authority-district/23UB,Cheltenham Borough Council,460845,52260,ALPHA COLOUR PRINTERS LTD,C-1T31J1-3406,New Years Eve-Printing-Promotion/Mkting,04 November 2011,224.00
http://statistics.data.gov.uk/id/local-authority-district/23UB,Cheltenham Borough Council,460803,52279,ALPHA COLOUR PRINTERS LTD,C-C23190-3920,Garden Collectn-Advertising,04 November 2011,297.00
http://statistics.data.gov.uk/id/local-authority-district/23UB,Cheltenham Borough Council,460599,52155,ALPHA COLOUR PRINTERS LTD,C-D13100-3401,Muni Off Blgs-Printing - general,04 November 2011,341.00
http://statistics.data.gov.uk/id/local-authority-district/23UB,Cheltenham Borough Council,460920,52256,ALPHA COLOUR PRINTERS LTD,C-E72500-3401,Built Env Div-Printing - general,11 November 2011,50.00
http://statistics.data.gov.uk/id/local-authority-district/23UB,Cheltenham Borough Council,461108,52259,ALPHA COLOUR PRINTERS LTD,C-L41100-3131,AG & M-Exhibition & Display,11 November 2011,197.00
http://statistics.data.gov.uk/id/local-authority-district/23UB,Cheltenham Borough Council,461105,51978,ALPHA COLOUR PRINTERS LTD,C-L41100-3401,AG & M-Printing - general,11 November 2011,"1,415.00"
http://statistics.data.gov.uk/id/local-authority-district/23UB,Cheltenham Borough Council,461708,52405,ALPHA COLOUR PRINTERS LTD,C-D21100-3403,Dem Process-Printing-Committee Papers,18 November 2011,105.00
http://statistics.data.gov.uk/id/local-authority-district/23UB,Cheltenham Borough Council,461709,52394,ALPHA COLOUR PRINTERS LTD,C-D21190-3403,O&S Committees-Printing-Committee Papers,18 November 2011,66.00
http://statistics.data.gov.uk/id/local-authority-district/23UB,Cheltenham Borough Council,461710,52359,ALPHA COLOUR PRINTERS LTD,C-D21190-3403,O&S Committees-Printing-Committee Papers,18 November 2011,322.00
http://statistics.data.gov.uk/id/local-authority-district/23UB,Cheltenham Borough Council,461706,52363,ALPHA COLOUR PRINTERS LTD,C-D21190-3412,O&S Committees-Printing - Cabinet Papers,18 November 2011,168.00
http://statistics.data.gov.uk/id/local-authority-district/23UB,Cheltenham Borough Council,461707,52365,ALPHA COLOUR PRINTERS LTD,C-D21190-3412,O&S Committees-Printing - Cabinet Papers,18 November 2011,256.00
http://statistics.data.gov.uk/id/local-authority-district/23UB,Cheltenham Borough Council,461896,52382,ALPHA COLOUR PRINTERS LTD,C-L21100-3920,Town Hall-Advertising,25 November 2011,"7,500.00"
http://statistics.data.gov.uk/id/local-authority-district/23UB,Cheltenham Borough Council,461896,52382,ALPHA COLOUR PRINTERS LTD,C-L21100-3920,Town Hall-Advertising,25 November 2011,"1,280.00"
http://statistics.data.gov.uk/id/local-authority-district/23UB,Cheltenham Borough Council,460820,485098,AMEC ENVIRONMENTAL AND INFRAS UK LIMITED,C-B51145-3501,Joint Core Stra-Hire of outside services,04 November 2011,"19,776.00"
http://statistics.data.gov.uk/id/local-authority-district/23UB,Cheltenham Borough Council,461646,INV154408,AMENITY LANDSCAPE SERVICES LTD,C-C22140-3123,Nursery-Materials-Int Landscaping,18 November 2011,349.00
http://statistics.data.gov.uk/id/local-authority-district/23UB,Cheltenham Borough Council,461646,INV154408,AMENITY LANDSCAPE SERVICES LTD,C-C22140-3123,Nursery-Materials-Int Landscaping,18 November 2011,65.00
http://statistics.data.gov.uk/id/local-authority-district/23UB,Cheltenham Borough Council,461646,INV154408,AMENITY LANDSCAPE SERVICES LTD,C-C22140-3123,Nursery-Materials-Int Landscaping,18 November 2011,84.00
http://statistics.data.gov.uk/id/local-authority-district/23UB,Cheltenham Borough Council,461646,INV154408,AMENITY LANDSCAPE SERVICES LTD,C-C22140-3123,Nursery-Materials-Int Landscaping,18 November 2011,65.00
http://statistics.data.gov.uk/id/local-authority-district/23UB,Cheltenham Borough Council,461657,756,ANDERSON CIVIL ENGINEERING UK LIMITED,C-D21250-3972,Civil Emergency-EU Restoration Fund,18 November 2011,"1,560.00"
http://statistics.data.gov.uk/id/local-authority-district/23UB,Cheltenham Borough Council,461657,756,ANDERSON CIVIL ENGINEERING UK LIMITED,C-N11250-9227,Excluded,18 November 2011,-80.00
http://statistics.data.gov.uk/id/local-authority-district/23UB,Cheltenham Borough Council,462045,25668,ARKELL AND HURCOMBE BRONZE WORK LTD,C-E63100-3111,Cemetery & Crem-Goods purch for resale,25 November 2011,38.00
http://statistics.data.gov.uk/id/local-authority-district/23UB,Cheltenham Borough Council,462042,25671,ARKELL AND HURCOMBE BRONZE WORK LTD,C-E63100-3111,Cemetery & Crem-Goods purch for resale,25 November 2011,75.00
http://statistics.data.gov.uk/id/local-authority-district/23UB,Cheltenham Borough Council,462044,25669,ARKELL AND HURCOMBE BRONZE WORK LTD,C-E63100-3111,Cemetery & Crem-Goods purch for resale,25 November 2011,380.00
http://statistics.data.gov.uk/id/local-authority-district/23UB,Cheltenham Borough Council,462045,25668,ARKELL AND HURCOMBE BRONZE WORK LTD,C-E63100-3111,Cemetery & Crem-Goods purch for resale,25 November 2011,570.00
http://statistics.data.gov.uk/id/local-authority-district/23UB,Cheltenham Borough Council,462043,25670,ARKELL AND HURCOMBE BRONZE WORK LTD,C-E63100-3111,Cemetery & Crem-Goods purch for resale,25 November 2011,125.00
http://statistics.data.gov.uk/id/local-authority-district/23UB,Cheltenham Borough Council,462120,SETTLEMENT,ART SHAPE LIMITED,C-Z12210-9138,Box Off A/C-TH Hirers Tkt Pd out,25 November 2011,588.00
http://statistics.data.gov.uk/id/local-authority-district/23UB,Cheltenham Borough Council,461892,3,ART SHAPE LIMITED GAF,C-L23500-3810,Arts Grant/Enab-Subscription - S.W. Arts,25 November 2011,"2,266.00"
http://statistics.data.gov.uk/id/local-authority-district/23UB,Cheltenham Borough Council,461082,10689,ARTFUL LIMITED,C-B51120-3920,Develt Con-Advertising,11 November 2011,"1,644.24"
http://statistics.data.gov.uk/id/local-authority-district/23UB,Cheltenham Borough Council,460738,37298577,ARVAL UK LIMITED,C-N42250-3112,DSO Stores - Stock purchases,04 November 2011,6.87
http://statistics.data.gov.uk/id/local-authority-district/23UB,Cheltenham Borough Council,460738,37298577,ARVAL UK LIMITED,C-N42250-3112,DSO Stores - Stock purchases,04 November 2011,73.06
http://statistics.data.gov.uk/id/local-authority-district/23UB,Cheltenham Borough Council,460738,37298577,ARVAL UK LIMITED,C-N42250-3112,DSO Stores - Stock purchases,04 November 2011,"1,525.07"
http://statistics.data.gov.uk/id/local-authority-district/23UB,Cheltenham Borough Council,460528,77380,ATS EUROMASTER LTD,C-C24100-3501,Fleet Maint-Hire of outside services,04 November 2011,"3,108.61"
http://statistics.data.gov.uk/id/local-authority-district/23UB,Cheltenham Borough Council,462140,78005,ATS EUROMASTER LTD,C-C24100-3501,Fleet Maint-Hire of outside services,25 November 2011,"7,949.59"
http://statistics.data.gov.uk/id/local-authority-district/23UB,Cheltenham Borough Council,461863,SIN003153,AVALON PROMOTIONS LIMITED,C-1T20H1-3568,Dave Gorman-Artist Fees,22 November 2011,"6,000.00"
http://statistics.data.gov.uk/id/local-authority-district/23UB,Cheltenham Borough Council,460991,CBC/0008,AVONLINE,C-H46550-1118,TV Aerials-Rechargeable Repairs,11 November 2011,80.00
http://statistics.data.gov.uk/id/local-authority-district/23UB,Cheltenham Borough Council,460992,CBC/0007,AVONLINE,C-H46550-1118,TV Aerials-Rechargeable Repairs,11 November 2011,80.00
http://statistics.data.gov.uk/id/local-authority-district/23UB,Cheltenham Borough Council,460995,CBC/0003,AVONLINE,C-H46550-1118,TV Aerials-Rechargeable Repairs,11 November 2011,35.00
http://statistics.data.gov.uk/id/local-authority-district/23UB,Cheltenham Borough Council,460997,CBC/0011,AVONLINE,C-H46550-1118,TV Aerials-Rechargeable Repairs,11 November 2011,80.00
http://statistics.data.gov.uk/id/local-authority-district/23UB,Cheltenham Borough Council,461000,CBC/0009,AVONLINE,C-H46550-1118,TV Aerials-Rechargeable Repairs,11 November 2011,80.00
http://statistics.data.gov.uk/id/local-authority-district/23UB,Cheltenham Borough Council,460998,CBC/0010,AVONLINE,C-H46550-1118,TV Aerials-Rechargeable Repairs,11 November 2011,80.00
http://statistics.data.gov.uk/id/local-authority-district/23UB,Cheltenham Borough Council,460996,CBC/0004,AVONLINE,C-H46550-1118,TV Aerials-Rechargeable Repairs,11 November 2011,80.00
http://statistics.data.gov.uk/id/local-authority-district/23UB,Cheltenham Borough Council,460994,CBC/0005,AVONLINE,C-H46550-1118,TV Aerials-Rechargeable Repairs,11 November 2011,35.00
http://statistics.data.gov.uk/id/local-authority-district/23UB,Cheltenham Borough Council,462146,CBC/0012,AVONLINE,C-H46550-1104,TV Aerials-Council House repairs,25 November 2011,751.38
http://statistics.data.gov.uk/id/local-authority-district/23UB,Cheltenham Borough Council,461234,80073,B SMITH PACKAGING,C-C22120-3121,Spts/Open Space-Materials-Contract,11 November 2011,880.00
http://statistics.data.gov.uk/id/local-authority-district/23UB,Cheltenham Borough Council,461065,2011/005,BATH ROAD TRADERS ASSOCIATION,C-C23140-3501,Public Convnces-Hire of outside services,11 November 2011,572.00
http://statistics.data.gov.uk/id/local-authority-district/23UB,Cheltenham Borough Council,462123,PROMOTING FUN,BATH ROAD TRADERS ASSOCIATION,C-D34400-3800,Bus & Econ Dev-One-Off Grant Expenditure,25 November 2011,"1,884.27"
http://statistics.data.gov.uk/id/local-authority-district/23UB,Cheltenham Borough Council,461443,REDACTED,BELVOIR LETTINGS,C-H22400-3828,Homelessness-Prevention Fund,16 November 2011,"2,100.00"
http://statistics.data.gov.uk/id/local-authority-district/23UB,Cheltenham Borough Council,461191,78395,BERMAN GUEDES STRETTON,C-L41100-3816,AG & M-RIBA - Fees,11 November 2011,"4,533.37"
http://statistics.data.gov.uk/id/local-authority-district/23UB,Cheltenham Borough Council,461191,78395,BERMAN GUEDES STRETTON,C-L41100-3816,AG & M-RIBA - Fees,11 November 2011,825.00
http://statistics.data.gov.uk/id/local-authority-district/23UB,Cheltenham Borough Council,461716,INV373378,BOTTOMLINE TECHNOLOGIES,C-D11300-3501,Accountancy-Hire of outside services,18 November 2011,963.00
http://statistics.data.gov.uk/id/local-authority-district/23UB,Cheltenham Borough Council,461684,INV375138,BOTTOMLINE TECHNOLOGIES,C-D12490-3401,Sundry Debtors-Printing - general,18 November 2011,505.90
http://statistics.data.gov.uk/id/local-authority-district/23UB,Cheltenham Borough Council,460851,A0002157,B-PLAN INFORMATION SYSTEMS,C-D11300-3623,Accountancy-Cmpter-sftwre lic purch,04 November 2011,"31,653.16"
http://statistics.data.gov.uk/id/local-authority-district/23UB,Cheltenham Borough Council,461557,47SI 628351,BRENNTAG UK,C-L11500-1714,Rec Facilities-Chemicals,18 November 2011,610.75
http://statistics.data.gov.uk/id/local-authority-district/23UB,Cheltenham Borough Council,461557,47SI 628351,BRENNTAG UK,C-L11500-1714,Rec Facilities-Chemicals,18 November 2011,27.04
http://statistics.data.gov.uk/id/local-authority-district/23UB,Cheltenham Borough Council,461557,47SI 628351,BRENNTAG UK,C-L11500-1714,Rec Facilities-Chemicals,18 November 2011,17.70
http://statistics.data.gov.uk/id/local-authority-district/23UB,Cheltenham Borough Council,461557,47SI 628351,BRENNTAG UK,C-L11500-1714,Rec Facilities-Chemicals,18 November 2011,56.00
http://statistics.data.gov.uk/id/local-authority-district/23UB,Cheltenham Borough Council,461557,47SI 628351,BRENNTAG UK,C-L11500-1714,Rec Facilities-Chemicals,18 November 2011,42.00
http://statistics.data.gov.uk/id/local-authority-district/23UB,Cheltenham Borough Council,461557,47SI 628351,BRENNTAG UK,C-L11500-1714,Rec Facilities-Chemicals,18 November 2011,40.00
http://statistics.data.gov.uk/id/local-authority-district/23UB,Cheltenham Borough Council,461557,47SI 628351,BRENNTAG UK,C-L11500-1714,Rec Facilities-Chemicals,18 November 2011,80.00
http://statistics.data.gov.uk/id/local-authority-district/23UB,Cheltenham Borough Council,461557,47SI 628351,BRENNTAG UK,C-L11500-1714,Rec Facilities-Chemicals,18 November 2011,104.00
http://statistics.data.gov.uk/id/local-authority-district/23UB,Cheltenham Borough Council,461557,47SI 628351,BRENNTAG UK,C-L11500-1714,Rec Facilities-Chemicals,18 November 2011,37.80
http://statistics.data.gov.uk/id/local-authority-district/23UB,Cheltenham Borough Council,460816,4626,C AND R DECORATORS,C-H4214G-1104,Gen Wks 2214-Council House repairs,04 November 2011,"1,230.00"
http://statistics.data.gov.uk/id/local-authority-district/23UB,Cheltenham Borough Council,460573,4613,C AND R DECORATORS,C-H44752-1104,Dis Adapts-Tech-Council House repairs,04 November 2011,621.18
http://statistics.data.gov.uk/id/local-authority-district/23UB,Cheltenham Borough Council,460981,4622,C AND R DECORATORS,C-H4209V-1104,Voids 2209-Council House repairs,11 November 2011,43.50
http://statistics.data.gov.uk/id/local-authority-district/23UB,Cheltenham Borough Council,460982,4616,C AND R DECORATORS,C-H44752-1104,Dis Adapts-Tech-Council House repairs,11 November 2011,482.56
http://statistics.data.gov.uk/id/local-authority-district/23UB,Cheltenham Borough Council,461411,4624,C AND R DECORATORS,C-H22400-1125,Homelessness-Refurbishments,18 November 2011,378.00
http://statistics.data.gov.uk/id/local-authority-district/23UB,Cheltenham Borough Council,461407,4611,C AND R DECORATORS,C-H4206V-1104,Voids 2206-Council House repairs,18 November 2011,380.00
http://statistics.data.gov.uk/id/local-authority-district/23UB,Cheltenham Borough Council,461408,4612,C AND R DECORATORS,C-H4206V-1104,Voids 2206-Council House repairs,18 November 2011,"1,038.23"
http://statistics.data.gov.uk/id/local-authority-district/23UB,Cheltenham Borough Council,461409,4621,C AND R DECORATORS,C-H4206V-1104,Voids 2206-Council House repairs,18 November 2011,515.69
http://statistics.data.gov.uk/id/local-authority-district/23UB,Cheltenham Borough Council,461412,4627,C AND R DECORATORS,C-H4209V-1104,Voids 2209-Council House repairs,18 November 2011,488.86
http://statistics.data.gov.uk/id/local-authority-district/23UB,Cheltenham Borough Council,461410,4623,C AND R DECORATORS,C-H4214V-1104,Voids 2214-Council House repairs,18 November 2011,"2,286.77"
http://statistics.data.gov.uk/id/local-authority-district/23UB,Cheltenham Borough Council,462062,4640,C AND R DECORATORS,C-H4206V-1104,Voids 2206-Council House repairs,25 November 2011,176.18
http://statistics.data.gov.uk/id/local-authority-district/23UB,Cheltenham Borough Council,462060,4641,C AND R DECORATORS,C-H4208V-1104,Voids 2208-Council House repairs,25 November 2011,341.84
http://statistics.data.gov.uk/id/local-authority-district/23UB,Cheltenham Borough Council,462065,4636,C AND R DECORATORS,C-H4208V-1104,Voids 2208-Council House repairs,25 November 2011,"4,947.08"
http://statistics.data.gov.uk/id/local-authority-district/23UB,Cheltenham Borough Council,462063,4639,C AND R DECORATORS,C-H4209V-1104,Voids 2209-Council House repairs,25 November 2011,214.26
http://statistics.data.gov.uk/id/local-authority-district/23UB,Cheltenham Borough Council,462064,4648,C AND R DECORATORS,C-H4214G-1104,Gen Wks 2214-Council House repairs,25 November 2011,570.00
http://statistics.data.gov.uk/id/local-authority-district/23UB,Cheltenham Borough Council,462061,4629,C AND R DECORATORS,C-HC4841-C302,Major Voids-Building Contractor,25 November 2011,"1,127.00"
http://statistics.data.gov.uk/id/local-authority-district/23UB,Cheltenham Borough Council,462029,4628,C AND R DECORATORS,C-HC4867-C302,Misc Works-Building Contractor,25 November 2011,"2,839.07"
http://statistics.data.gov.uk/id/local-authority-district/23UB,Cheltenham Borough Council,462030,4642,C AND R DECORATORS,C-HC4867-C302,Misc Works-Building Contractor,25 November 2011,"5,719.50"
http://statistics.data.gov.uk/id/local-authority-district/23UB,Cheltenham Borough Council,460594,201100000596-971,C B RICHARD ELLIS,C-D13550-1501,Area Off -E.Hse-Rents,04 November 2011,871.87
http://statistics.data.gov.uk/id/local-authority-district/23UB,Cheltenham Borough Council,461905,1811-001FFCHELT,CAMPBELLSMITH MANAGEMENT LIMITED,C-1T22H1-3568,Fishermans Frnd-Artist Fees,22 November 2011,"9,000.00"
http://statistics.data.gov.uk/id/local-authority-district/23UB,Cheltenham Borough Council,461132,66,CARBREY HOUSING LIMITED,C-H22400-5204,Homelessness-Provision of accommo(B&B),11 November 2011,125.15
http://statistics.data.gov.uk/id/local-authority-district/23UB,Cheltenham Borough Council,461131,70,CARBREY HOUSING LIMITED,C-H22400-5204,Homelessness-Provision of accommo(B&B),11 November 2011,125.15
http://statistics.data.gov.uk/id/local-authority-district/23UB,Cheltenham Borough Council,461130,64,CARBREY HOUSING LIMITED,C-H22400-5204,Homelessness-Provision of accommo(B&B),11 November 2011,250.30
http://statistics.data.gov.uk/id/local-authority-district/23UB,Cheltenham Borough Council,461689,91,CARBREY HOUSING LIMITED,C-H22400-5204,Homelessness-Provision of accommo(B&B),18 November 2011,107.27
http://statistics.data.gov.uk/id/local-authority-district/23UB,Cheltenham Borough Council,461691,90,CARBREY HOUSING LIMITED,C-H22400-5204,Homelessness-Provision of accommo(B&B),18 November 2011,125.15
http://statistics.data.gov.uk/id/local-authority-district/23UB,Cheltenham Borough Council,461692,83,CARBREY HOUSING LIMITED,C-H22400-5204,Homelessness-Provision of accommo(B&B),18 November 2011,250.30
http://statistics.data.gov.uk/id/local-authority-district/23UB,Cheltenham Borough Council,461690,82,CARBREY HOUSING LIMITED,C-H22400-5204,Homelessness-Provision of accommo(B&B),18 November 2011,250.30
http://statistics.data.gov.uk/id/local-authority-district/23UB,Cheltenham Borough Council,461688,78,CARBREY HOUSING LIMITED,C-H22400-5204,Homelessness-Provision of accommo(B&B),18 November 2011,250.30
http://statistics.data.gov.uk/id/local-authority-district/23UB,Cheltenham Borough Council,462152,REDACTED,CAUDLE ROOFING,C-H4211G-1104,Gen Wks 2211-Council House repairs,25 November 2011,250.00
http://statistics.data.gov.uk/id/local-authority-district/23UB,Cheltenham Borough Council,462151,REDACTED,CAUDLE ROOFING,C-H4214G-1104,Gen Wks 2214-Council House repairs,25 November 2011,600.00
http://statistics.data.gov.uk/id/local-authority-district/23UB,Cheltenham Borough Council,462152,REDACTED,CAUDLE ROOFING,C-N11250-9227,Excluded,25 November 2011,-20.00
http://statistics.data.gov.uk/id/local-authority-district/23UB,Cheltenham Borough Council,462151,REDACTED,CAUDLE ROOFING,C-N11250-9227,Excluded,25 November 2011,-60.00
http://statistics.data.gov.uk/id/local-authority-district/23UB,Cheltenham Borough Council,461669,HC7003,CHAMBERS MANAGEMENT CLIENT ACCOUNT,C-1T18H1-3568,Sarah Millican-Artist Fees,18 November 2011,"9,500.00"
http://statistics.data.gov.uk/id/local-authority-district/23UB,Cheltenham Borough Council,461083,CIVIC,CHELTENHAM CIVIC SOCIETY,C-B51120-3869,Develt Con-Grants - Civic Award Schm,11 November 2011,846.79
http://statistics.data.gov.uk/id/local-authority-district/23UB,Cheltenham Borough Council,461083,CIVIC,CHELTENHAM CIVIC SOCIETY,C-B51120-3869,Develt Con-Grants - Civic Award Schm,11 November 2011,651.24
http://statistics.data.gov.uk/id/local-authority-district/23UB,Cheltenham Borough Council,460852,8,CHELTENHAM FILM FESTIVAL,C-D34400-3800,Bus & Econ Dev-One-Off Grant Expenditure,04 November 2011,"2,500.00"
http://statistics.data.gov.uk/id/local-authority-district/23UB,Cheltenham Borough Council,460921,ROUGHSLEEPERC,CHELTENHAM HOUSING AID CENTRE,C-H22400-3961,Homelessness-Rough Sleepers Count,11 November 2011,900.00
http://statistics.data.gov.uk/id/local-authority-district/23UB,Cheltenham Borough Council,461448,CHELT POETRY F,CHELTENHAM POETRY FESTIVAL,C-D34400-3800,Bus & Econ Dev-One-Off Grant Expenditure,18 November 2011,500.00
http://statistics.data.gov.uk/id/local-authority-district/23UB,Cheltenham Borough Council,461483,4132,CHIMES INTERNATIONAL ENTERTAINMENTS LTD,C-1T20G1-3568,60s Gold-Artist Fees,18 November 2011,"2,116.06"
http://statistics.data.gov.uk/id/local-authority-district/23UB,Cheltenham Borough Council,461889,M/RB007763/CIRB,CIVICA UK LIMITED,C-D12446-3623,IBS license ren-Cmpter-sftwre lic purch,25 November 2011,693.87
http://statistics.data.gov.uk/id/local-authority-district/23UB,Cheltenham Borough Council,461966,2519,COLE MUSIC PRODUCTIONS LTD,C-1T30H1-3568, Paul Carrack-Artist Fees ,25 November 2011,"6,500.00"
http://statistics.data.gov.uk/id/local-authority-district/23UB,Cheltenham Borough Council,462142,21698,COLLETT TRANSPORT SERVICES LIMITED,C-C24100-2701,Fleet Maint-Hired transport,25 November 2011,"2,940.00"
http://statistics.data.gov.uk/id/local-authority-district/23UB,Cheltenham Borough Council,461050,510477,COMENSURA LIMITED,C-C22100-0115,Green Env Div-Temporary Agency Staff,11 November 2011,286.12
http://statistics.data.gov.uk/id/local-authority-district/23UB,Cheltenham Borough Council,461050,510477,COMENSURA LIMITED,C-C22100-0115,Green Env Div-Temporary Agency Staff,11 November 2011,286.12
http://statistics.data.gov.uk/id/local-authority-district/23UB,Cheltenham Borough Council,461051,510635,COMENSURA LIMITED,C-C22100-0115,Green Env Div-Temporary Agency Staff,11 November 2011,325.14
http://statistics.data.gov.uk/id/local-authority-district/23UB,Cheltenham Borough Council,461051,510635,COMENSURA LIMITED,C-C22100-0115,Green Env Div-Temporary Agency Staff,11 November 2011,355.48
http://statistics.data.gov.uk/id/local-authority-district/23UB,Cheltenham Borough Council,461051,510635,COMENSURA LIMITED,C-C22100-0115,Green Env Div-Temporary Agency Staff,11 November 2011,355.48
http://statistics.data.gov.uk/id/local-authority-district/23UB,Cheltenham Borough Council,461051,510635,COMENSURA LIMITED,C-C22100-0115,Green Env Div-Temporary Agency Staff,11 November 2011,355.48
http://statistics.data.gov.uk/id/local-authority-district/23UB,Cheltenham Borough Council,461051,510635,COMENSURA LIMITED,C-C22120-0115,Spts/Open Space-Temporary Agency Staff,11 November 2011,355.49
http://statistics.data.gov.uk/id/local-authority-district/23UB,Cheltenham Borough Council,461050,510477,COMENSURA LIMITED,C-C23100-0115,Refuse Collection-Temporary Agency Staff,11 November 2011,346.15
http://statistics.data.gov.uk/id/local-authority-district/23UB,Cheltenham Borough Council,461051,510635,COMENSURA LIMITED,C-C23100-0115,Refuse Collection-Temporary Agency Staff,11 November 2011,260.09
http://statistics.data.gov.uk/id/local-authority-district/23UB,Cheltenham Borough Council,461051,510635,COMENSURA LIMITED,C-C23100-0115,Refuse Collection-Temporary Agency Staff,11 November 2011,350.70
http://statistics.data.gov.uk/id/local-authority-district/23UB,Cheltenham Borough Council,461051,510635,COMENSURA LIMITED,C-C23100-0115,Refuse Collection-Temporary Agency Staff,11 November 2011,320.77
http://statistics.data.gov.uk/id/local-authority-district/23UB,Cheltenham Borough Council,461051,510635,COMENSURA LIMITED,C-C23100-0115,Refuse Collection-Temporary Agency Staff,11 November 2011,320.80
http://statistics.data.gov.uk/id/local-authority-district/23UB,Cheltenham Borough Council,461051,510635,COMENSURA LIMITED,C-C23100-0115,Refuse Collection-Temporary Agency Staff,11 November 2011,320.80
http://statistics.data.gov.uk/id/local-authority-district/23UB,Cheltenham Borough Council,461051,510635,COMENSURA LIMITED,C-C23100-0115,Refuse Collection-Temporary Agency Staff,11 November 2011,125.71
http://statistics.data.gov.uk/id/local-authority-district/23UB,Cheltenham Borough Council,461051,510635,COMENSURA LIMITED,C-C23100-0115,Refuse Collection-Temporary Agency Staff,11 November 2011,125.71
http://statistics.data.gov.uk/id/local-authority-district/23UB,Cheltenham Borough Council,461050,510477,COMENSURA LIMITED,C-C23100-0115,Refuse Collection-Temporary Agency Staff,11 November 2011,62.86
http://statistics.data.gov.uk/id/local-authority-district/23UB,Cheltenham Borough Council,461050,510477,COMENSURA LIMITED,C-C23100-0115,Refuse Collection-Temporary Agency Staff,11 November 2011,296.95
http://statistics.data.gov.uk/id/local-authority-district/23UB,Cheltenham Borough Council,461050,510477,COMENSURA LIMITED,C-C23100-0115,Refuse Collection-Temporary Agency Staff,11 November 2011,65.02
http://statistics.data.gov.uk/id/local-authority-district/23UB,Cheltenham Borough Council,461050,510477,COMENSURA LIMITED,C-C23100-0115,Refuse Collection-Temporary Agency Staff,11 November 2011,82.36
http://statistics.data.gov.uk/id/local-authority-district/23UB,Cheltenham Borough Council,461050,510477,COMENSURA LIMITED,C-C23100-0115,Refuse Collection-Temporary Agency Staff,11 November 2011,69.36
http://statistics.data.gov.uk/id/local-authority-district/23UB,Cheltenham Borough Council,461050,510477,COMENSURA LIMITED,C-C23100-0115,Refuse Collection-Temporary Agency Staff,11 November 2011,292.61
http://statistics.data.gov.uk/id/local-authority-district/23UB,Cheltenham Borough Council,461050,510477,COMENSURA LIMITED,C-C23100-0115,Refuse Collection-Temporary Agency Staff,11 November 2011,127.88
http://statistics.data.gov.uk/id/local-authority-district/23UB,Cheltenham Borough Council,461050,510477,COMENSURA LIMITED,C-C23100-0115,Refuse Collection-Temporary Agency Staff,11 November 2011,190.73
http://statistics.data.gov.uk/id/local-authority-district/23UB,Cheltenham Borough Council,461050,510477,COMENSURA LIMITED,C-C23100-0115,Refuse Collection-Temporary Agency Staff,11 November 2011,279.62
http://statistics.data.gov.uk/id/local-authority-district/23UB,Cheltenham Borough Council,461050,510477,COMENSURA LIMITED,C-C23100-0115,Refuse Collection-Temporary Agency Staff,11 November 2011,320.64
http://statistics.data.gov.uk/id/local-authority-district/23UB,Cheltenham Borough Council,461051,510635,COMENSURA LIMITED,C-C23100-0115,Refuse Collection-Temporary Agency Staff,11 November 2011,280.56
http://statistics.data.gov.uk/id/local-authority-district/23UB,Cheltenham Borough Council,461051,510635,COMENSURA LIMITED,C-C23100-0115,Refuse Collection-Temporary Agency Staff,11 November 2011,56.36
http://statistics.data.gov.uk/id/local-authority-district/23UB,Cheltenham Borough Council,461051,510635,COMENSURA LIMITED,C-C23100-0115,Refuse Collection-Temporary Agency Staff,11 November 2011,390.13
http://statistics.data.gov.uk/id/local-authority-district/23UB,Cheltenham Borough Council,461051,510635,COMENSURA LIMITED,C-C23100-0115,Refuse Collection-Temporary Agency Staff,11 November 2011,247.09
http://statistics.data.gov.uk/id/local-authority-district/23UB,Cheltenham Borough Council,461051,510635,COMENSURA LIMITED,C-C23100-0115,Refuse Collection-Temporary Agency Staff,11 November 2011,279.62
http://statistics.data.gov.uk/id/local-authority-district/23UB,Cheltenham Borough Council,461051,510635,COMENSURA LIMITED,C-C23100-0115,Refuse Collection-Temporary Agency Staff,11 November 2011,331.62
http://statistics.data.gov.uk/id/local-authority-district/23UB,Cheltenham Borough Council,461051,510635,COMENSURA LIMITED,C-C23100-0115,Refuse Collection-Temporary Agency Staff,11 November 2011,320.77
http://statistics.data.gov.uk/id/local-authority-district/23UB,Cheltenham Borough Council,461051,510635,COMENSURA LIMITED,C-C23100-0115,Refuse Collection-Temporary Agency Staff,11 November 2011,320.77
http://statistics.data.gov.uk/id/local-authority-district/23UB,Cheltenham Borough Council,461050,510477,COMENSURA LIMITED,C-C23100-0115,Refuse Collection-Temporary Agency Staff,11 November 2011,350.70
http://statistics.data.gov.uk/id/local-authority-district/23UB,Cheltenham Borough Council,461051,510635,COMENSURA LIMITED,C-C23100-0115,Refuse Collection-Temporary Agency Staff,11 November 2011,216.78
http://statistics.data.gov.uk/id/local-authority-district/23UB,Cheltenham Borough Council,461051,510635,COMENSURA LIMITED,C-C23100-0115,Refuse Collection-Temporary Agency Staff,11 November 2011,407.47
http://statistics.data.gov.uk/id/local-authority-district/23UB,Cheltenham Borough Council,461051,510635,COMENSURA LIMITED,C-C23100-0115,Refuse Collection-Temporary Agency Staff,11 November 2011,97.04
http://statistics.data.gov.uk/id/local-authority-district/23UB,Cheltenham Borough Council,461051,510635,COMENSURA LIMITED,C-C23100-0115,Refuse Collection-Temporary Agency Staff,11 November 2011,257.93
http://statistics.data.gov.uk/id/local-authority-district/23UB,Cheltenham Borough Council,461051,510635,COMENSURA LIMITED,C-C23100-0115,Refuse Collection-Temporary Agency Staff,11 November 2011,299.11
http://statistics.data.gov.uk/id/local-authority-district/23UB,Cheltenham Borough Council,461051,510635,COMENSURA LIMITED,C-C23100-0115,Refuse Collection-Temporary Agency Staff,11 November 2011,260.09
http://statistics.data.gov.uk/id/local-authority-district/23UB,Cheltenham Borough Council,461051,510635,COMENSURA LIMITED,C-C23100-0115,Refuse Collection-Temporary Agency Staff,11 November 2011,203.75
http://statistics.data.gov.uk/id/local-authority-district/23UB,Cheltenham Borough Council,461051,510635,COMENSURA LIMITED,C-C23100-0115,Refuse Collection-Temporary Agency Staff,11 November 2011,45.52
http://statistics.data.gov.uk/id/local-authority-district/23UB,Cheltenham Borough Council,461051,510635,COMENSURA LIMITED,C-C23100-0115,Refuse Collection-Temporary Agency Staff,11 November 2011,130.04
http://statistics.data.gov.uk/id/local-authority-district/23UB,Cheltenham Borough Council,461051,510635,COMENSURA LIMITED,C-C23100-0115,Refuse Collection-Temporary Agency Staff,11 November 2011,247.09
http://statistics.data.gov.uk/id/local-authority-district/23UB,Cheltenham Borough Council,461051,510635,COMENSURA LIMITED,C-C23100-0115,Refuse Collection-Temporary Agency Staff,11 November 2011,130.04
http://statistics.data.gov.uk/id/local-authority-district/23UB,Cheltenham Borough Council,461051,510635,COMENSURA LIMITED,C-C23100-0115,Refuse Collection-Temporary Agency Staff,11 November 2011,320.80
http://statistics.data.gov.uk/id/local-authority-district/23UB,Cheltenham Borough Council,461051,510635,COMENSURA LIMITED,C-C23100-0115,Refuse Collection-Temporary Agency Staff,11 November 2011,320.77
http://statistics.data.gov.uk/id/local-authority-district/23UB,Cheltenham Borough Council,461051,510635,COMENSURA LIMITED,C-C23100-0115,Refuse Collection-Temporary Agency Staff,11 November 2011,320.77
http://statistics.data.gov.uk/id/local-authority-district/23UB,Cheltenham Borough Council,461051,510635,COMENSURA LIMITED,C-C23100-0115,Refuse Collection-Temporary Agency Staff,11 November 2011,320.77
http://statistics.data.gov.uk/id/local-authority-district/23UB,Cheltenham Borough Council,461051,510635,COMENSURA LIMITED,C-C23100-0115,Refuse Collection-Temporary Agency Staff,11 November 2011,320.77
http://statistics.data.gov.uk/id/local-authority-district/23UB,Cheltenham Borough Council,461050,510477,COMENSURA LIMITED,C-C23100-0115,Refuse Collection-Temporary Agency Staff,11 November 2011,372.79
http://statistics.data.gov.uk/id/local-authority-district/23UB,Cheltenham Borough Council,461050,510477,COMENSURA LIMITED,C-C23100-0115,Refuse Collection-Temporary Agency Staff,11 November 2011,266.59
http://statistics.data.gov.uk/id/local-authority-district/23UB,Cheltenham Borough Council,461050,510477,COMENSURA LIMITED,C-C23100-0115,Refuse Collection-Temporary Agency Staff,11 November 2011,266.59
http://statistics.data.gov.uk/id/local-authority-district/23UB,Cheltenham Borough Council,461050,510477,COMENSURA LIMITED,C-C23100-0115,Refuse Collection-Temporary Agency Staff,11 November 2011,214.58
http://statistics.data.gov.uk/id/local-authority-district/23UB,Cheltenham Borough Council,461050,510477,COMENSURA LIMITED,C-C23100-0115,Refuse Collection-Temporary Agency Staff,11 November 2011,350.70
http://statistics.data.gov.uk/id/local-authority-district/23UB,Cheltenham Borough Council,461051,510635,COMENSURA LIMITED,C-C23110-0115,Street Cleaning-Temporary Agency Staff,11 November 2011,190.73
http://statistics.data.gov.uk/id/local-authority-district/23UB,Cheltenham Borough Council,461051,510635,COMENSURA LIMITED,C-C23110-0115,Street Cleaning-Temporary Agency Staff,11 November 2011,65.02
http://statistics.data.gov.uk/id/local-authority-district/23UB,Cheltenham Borough Council,461051,510635,COMENSURA LIMITED,C-C23110-0115,Street Cleaning-Temporary Agency Staff,11 November 2011,255.75
http://statistics.data.gov.uk/id/local-authority-district/23UB,Cheltenham Borough Council,461050,510477,COMENSURA LIMITED,C-C23120-0115,Recycling Cntr-Temporary Agency Staff,11 November 2011,371.25
http://statistics.data.gov.uk/id/local-authority-district/23UB,Cheltenham Borough Council,461050,510477,COMENSURA LIMITED,C-C23120-0115,Recycling Cntr-Temporary Agency Staff,11 November 2011,74.25
http://statistics.data.gov.uk/id/local-authority-district/23UB,Cheltenham Borough Council,461050,510477,COMENSURA LIMITED,C-C23120-0115,Recycling Cntr-Temporary Agency Staff,11 November 2011,277.20
http://statistics.data.gov.uk/id/local-authority-district/23UB,Cheltenham Borough Council,461050,510477,COMENSURA LIMITED,C-C23120-0115,Recycling Cntr-Temporary Agency Staff,11 November 2011,60.69
http://statistics.data.gov.uk/id/local-authority-district/23UB,Cheltenham Borough Council,461050,510477,COMENSURA LIMITED,C-C23120-0115,Recycling Cntr-Temporary Agency Staff,11 November 2011,277.20
http://statistics.data.gov.uk/id/local-authority-district/23UB,Cheltenham Borough Council,461050,510477,COMENSURA LIMITED,C-C23120-0115,Recycling Cntr-Temporary Agency Staff,11 November 2011,371.25
http://statistics.data.gov.uk/id/local-authority-district/23UB,Cheltenham Borough Council,461050,510477,COMENSURA LIMITED,C-C23180-0115,Rcycl Coltn Schms-Temporary Agency Staff,11 November 2011,173.40
http://statistics.data.gov.uk/id/local-authority-district/23UB,Cheltenham Borough Council,461050,510477,COMENSURA LIMITED,C-C23180-0115,Rcycl Coltn Schms-Temporary Agency Staff,11 November 2011,335.96
http://statistics.data.gov.uk/id/local-authority-district/23UB,Cheltenham Borough Council,461050,510477,COMENSURA LIMITED,C-C23180-0115,Rcycl Coltn Schms-Temporary Agency Staff,11 November 2011,97.04
http://statistics.data.gov.uk/id/local-authority-district/23UB,Cheltenham Borough Council,461050,510477,COMENSURA LIMITED,C-C23180-0115,Rcycl Coltn Schms-Temporary Agency Staff,11 November 2011,112.72
http://statistics.data.gov.uk/id/local-authority-district/23UB,Cheltenham Borough Council,461050,510477,COMENSURA LIMITED,C-C23180-0115,Rcycl Coltn Schms-Temporary Agency Staff,11 November 2011,200.14
http://statistics.data.gov.uk/id/local-authority-district/23UB,Cheltenham Borough Council,461050,510477,COMENSURA LIMITED,C-C23180-0115,Rcycl Coltn Schms-Temporary Agency Staff,11 November 2011,130.04
http://statistics.data.gov.uk/id/local-authority-district/23UB,Cheltenham Borough Council,461050,510477,COMENSURA LIMITED,C-C23180-0115,Rcycl Coltn Schms-Temporary Agency Staff,11 November 2011,503.39
http://statistics.data.gov.uk/id/local-authority-district/23UB,Cheltenham Borough Council,461050,510477,COMENSURA LIMITED,C-C23180-0115,Rcycl Coltn Schms-Temporary Agency Staff,11 November 2011,231.92
http://statistics.data.gov.uk/id/local-authority-district/23UB,Cheltenham Borough Council,461050,510477,COMENSURA LIMITED,C-C23180-0115,Rcycl Coltn Schms-Temporary Agency Staff,11 November 2011,84.88
http://statistics.data.gov.uk/id/local-authority-district/23UB,Cheltenham Borough Council,461050,510477,COMENSURA LIMITED,C-C23180-0115,Rcycl Coltn Schms-Temporary Agency Staff,11 November 2011,97.04
http://statistics.data.gov.uk/id/local-authority-district/23UB,Cheltenham Borough Council,461050,510477,COMENSURA LIMITED,C-C23180-0115,Rcycl Coltn Schms-Temporary Agency Staff,11 November 2011,52.02
http://statistics.data.gov.uk/id/local-authority-district/23UB,Cheltenham Borough Council,461050,510477,COMENSURA LIMITED,C-C23180-0115,Rcycl Coltn Schms-Temporary Agency Staff,11 November 2011,188.56
http://statistics.data.gov.uk/id/local-authority-district/23UB,Cheltenham Borough Council,461050,510477,COMENSURA LIMITED,C-C23180-0115,Rcycl Coltn Schms-Temporary Agency Staff,11 November 2011,305.60
http://statistics.data.gov.uk/id/local-authority-district/23UB,Cheltenham Borough Council,461050,510477,COMENSURA LIMITED,C-C23180-0115,Rcycl Coltn Schms-Temporary Agency Staff,11 November 2011,391.19
http://statistics.data.gov.uk/id/local-authority-district/23UB,Cheltenham Borough Council,461050,510477,COMENSURA LIMITED,C-C23180-0115,Rcycl Coltn Schms-Temporary Agency Staff,11 November 2011,260.10
http://statistics.data.gov.uk/id/local-authority-district/23UB,Cheltenham Borough Council,461050,510477,COMENSURA LIMITED,C-C23180-0115,Rcycl Coltn Schms-Temporary Agency Staff,11 November 2011,195.08
http://statistics.data.gov.uk/id/local-authority-district/23UB,Cheltenham Borough Council,461050,510477,COMENSURA LIMITED,C-C23180-0115,Rcycl Coltn Schms-Temporary Agency Staff,11 November 2011,234.08
http://statistics.data.gov.uk/id/local-authority-district/23UB,Cheltenham Borough Council,461050,510477,COMENSURA LIMITED,C-C23180-0115,Rcycl Coltn Schms-Temporary Agency Staff,11 November 2011,296.93
http://statistics.data.gov.uk/id/local-authority-district/23UB,Cheltenham Borough Council,461050,510477,COMENSURA LIMITED,C-C23180-0115,Rcycl Coltn Schms-Temporary Agency Staff,11 November 2011,412.42
http://statistics.data.gov.uk/id/local-authority-district/23UB,Cheltenham Borough Council,461051,510635,COMENSURA LIMITED,C-C23180-0115,Rcycl Coltn Schms-Temporary Agency Staff,11 November 2011,195.07
http://statistics.data.gov.uk/id/local-authority-district/23UB,Cheltenham Borough Council,461051,510635,COMENSURA LIMITED,C-C23180-0115,Rcycl Coltn Schms-Temporary Agency Staff,11 November 2011,288.30
http://statistics.data.gov.uk/id/local-authority-district/23UB,Cheltenham Borough Council,461051,510635,COMENSURA LIMITED,C-C23180-0115,Rcycl Coltn Schms-Temporary Agency Staff,11 November 2011,119.22
http://statistics.data.gov.uk/id/local-authority-district/23UB,Cheltenham Borough Council,461051,510635,COMENSURA LIMITED,C-C23180-0115,Rcycl Coltn Schms-Temporary Agency Staff,11 November 2011,491.26
http://statistics.data.gov.uk/id/local-authority-district/23UB,Cheltenham Borough Council,461051,510635,COMENSURA LIMITED,C-C23180-0115,Rcycl Coltn Schms-Temporary Agency Staff,11 November 2011,112.70
http://statistics.data.gov.uk/id/local-authority-district/23UB,Cheltenham Borough Council,461051,510635,COMENSURA LIMITED,C-C23180-0115,Rcycl Coltn Schms-Temporary Agency Staff,11 November 2011,125.71
http://statistics.data.gov.uk/id/local-authority-district/23UB,Cheltenham Borough Council,461051,510635,COMENSURA LIMITED,C-C23180-0115,Rcycl Coltn Schms-Temporary Agency Staff,11 November 2011,97.04
http://statistics.data.gov.uk/id/local-authority-district/23UB,Cheltenham Borough Council,461051,510635,COMENSURA LIMITED,C-C23180-0115,Rcycl Coltn Schms-Temporary Agency Staff,11 November 2011,194.08
http://statistics.data.gov.uk/id/local-authority-district/23UB,Cheltenham Borough Council,461051,510635,COMENSURA LIMITED,C-C23180-0115,Rcycl Coltn Schms-Temporary Agency Staff,11 November 2011,242.77
http://statistics.data.gov.uk/id/local-authority-district/23UB,Cheltenham Borough Council,461051,510635,COMENSURA LIMITED,C-C23180-0115,Rcycl Coltn Schms-Temporary Agency Staff,11 November 2011,247.09
http://statistics.data.gov.uk/id/local-authority-district/23UB,Cheltenham Borough Council,461051,510635,COMENSURA LIMITED,C-C23180-0115,Rcycl Coltn Schms-Temporary Agency Staff,11 November 2011,286.11
http://statistics.data.gov.uk/id/local-authority-district/23UB,Cheltenham Borough Council,461051,510635,COMENSURA LIMITED,C-C23180-0115,Rcycl Coltn Schms-Temporary Agency Staff,11 November 2011,292.61
http://statistics.data.gov.uk/id/local-authority-district/23UB,Cheltenham Borough Council,461051,510635,COMENSURA LIMITED,C-C23180-0115,Rcycl Coltn Schms-Temporary Agency Staff,11 November 2011,312.11
http://statistics.data.gov.uk/id/local-authority-district/23UB,Cheltenham Borough Council,461051,510635,COMENSURA LIMITED,C-C23180-0115,Rcycl Coltn Schms-Temporary Agency Staff,11 November 2011,539.78
http://statistics.data.gov.uk/id/local-authority-district/23UB,Cheltenham Borough Council,461051,510635,COMENSURA LIMITED,C-C23180-0115,Rcycl Coltn Schms-Temporary Agency Staff,11 November 2011,318.61
http://statistics.data.gov.uk/id/local-authority-district/23UB,Cheltenham Borough Council,461051,510635,COMENSURA LIMITED,C-C23180-0115,Rcycl Coltn Schms-Temporary Agency Staff,11 November 2011,318.61
http://statistics.data.gov.uk/id/local-authority-district/23UB,Cheltenham Borough Council,461051,510635,COMENSURA LIMITED,C-C23180-0115,Rcycl Coltn Schms-Temporary Agency Staff,11 November 2011,329.46
http://statistics.data.gov.uk/id/local-authority-district/23UB,Cheltenham Borough Council,461051,510635,COMENSURA LIMITED,C-C23180-0115,Rcycl Coltn Schms-Temporary Agency Staff,11 November 2011,288.30
http://statistics.data.gov.uk/id/local-authority-district/23UB,Cheltenham Borough Council,461051,510635,COMENSURA LIMITED,C-C23180-0115,Rcycl Coltn Schms-Temporary Agency Staff,11 November 2011,361.97
http://statistics.data.gov.uk/id/local-authority-district/23UB,Cheltenham Borough Council,461051,510635,COMENSURA LIMITED,C-C23180-0115,Rcycl Coltn Schms-Temporary Agency Staff,11 November 2011,361.97
http://statistics.data.gov.uk/id/local-authority-district/23UB,Cheltenham Borough Council,461051,510635,COMENSURA LIMITED,C-C23180-0115,Rcycl Coltn Schms-Temporary Agency Staff,11 November 2011,512.48
http://statistics.data.gov.uk/id/local-authority-district/23UB,Cheltenham Borough Council,461051,510635,COMENSURA LIMITED,C-C23180-0115,Rcycl Coltn Schms-Temporary Agency Staff,11 November 2011,199.41
http://statistics.data.gov.uk/id/local-authority-district/23UB,Cheltenham Borough Council,461051,510635,COMENSURA LIMITED,C-C23180-0115,Rcycl Coltn Schms-Temporary Agency Staff,11 November 2011,491.26
http://statistics.data.gov.uk/id/local-authority-district/23UB,Cheltenham Borough Council,461051,510635,COMENSURA LIMITED,C-C23180-0115,Rcycl Coltn Schms-Temporary Agency Staff,11 November 2011,291.12
http://statistics.data.gov.uk/id/local-authority-district/23UB,Cheltenham Borough Council,461051,510635,COMENSURA LIMITED,C-C23180-0115,Rcycl Coltn Schms-Temporary Agency Staff,11 November 2011,281.77
http://statistics.data.gov.uk/id/local-authority-district/23UB,Cheltenham Borough Council,461051,510635,COMENSURA LIMITED,C-C23180-0115,Rcycl Coltn Schms-Temporary Agency Staff,11 November 2011,294.77
http://statistics.data.gov.uk/id/local-authority-district/23UB,Cheltenham Borough Council,461051,510635,COMENSURA LIMITED,C-C23180-0115,Rcycl Coltn Schms-Temporary Agency Staff,11 November 2011,43.35
http://statistics.data.gov.uk/id/local-authority-district/23UB,Cheltenham Borough Council,461051,510635,COMENSURA LIMITED,C-C23180-0115,Rcycl Coltn Schms-Temporary Agency Staff,11 November 2011,288.26
http://statistics.data.gov.uk/id/local-authority-district/23UB,Cheltenham Borough Council,461050,510477,COMENSURA LIMITED,C-C23180-0115,Rcycl Coltn Schms-Temporary Agency Staff,11 November 2011,283.95
http://statistics.data.gov.uk/id/local-authority-district/23UB,Cheltenham Borough Council,461050,510477,COMENSURA LIMITED,C-C23180-0115,Rcycl Coltn Schms-Temporary Agency Staff,11 November 2011,354.80
http://statistics.data.gov.uk/id/local-authority-district/23UB,Cheltenham Borough Council,461050,510477,COMENSURA LIMITED,C-C23180-0115,Rcycl Coltn Schms-Temporary Agency Staff,11 November 2011,283.95
http://statistics.data.gov.uk/id/local-authority-district/23UB,Cheltenham Borough Council,461050,510477,COMENSURA LIMITED,C-C23180-0115,Rcycl Coltn Schms-Temporary Agency Staff,11 November 2011,283.95
http://statistics.data.gov.uk/id/local-authority-district/23UB,Cheltenham Borough Council,461050,510477,COMENSURA LIMITED,C-C23180-0115,Rcycl Coltn Schms-Temporary Agency Staff,11 November 2011,296.94
http://statistics.data.gov.uk/id/local-authority-district/23UB,Cheltenham Borough Council,461050,510477,COMENSURA LIMITED,C-C23180-0115,Rcycl Coltn Schms-Temporary Agency Staff,11 November 2011,60.69
http://statistics.data.gov.uk/id/local-authority-district/23UB,Cheltenham Borough Council,461050,510477,COMENSURA LIMITED,C-C23180-0115,Rcycl Coltn Schms-Temporary Agency Staff,11 November 2011,56.36
http://statistics.data.gov.uk/id/local-authority-district/23UB,Cheltenham Borough Council,461050,510477,COMENSURA LIMITED,C-C23180-0115,Rcycl Coltn Schms-Temporary Agency Staff,11 November 2011,292.61
http://statistics.data.gov.uk/id/local-authority-district/23UB,Cheltenham Borough Council,461050,510477,COMENSURA LIMITED,C-C23180-0115,Rcycl Coltn Schms-Temporary Agency Staff,11 November 2011,288.26
http://statistics.data.gov.uk/id/local-authority-district/23UB,Cheltenham Borough Council,461050,510477,COMENSURA LIMITED,C-C23180-0115,Rcycl Coltn Schms-Temporary Agency Staff,11 November 2011,485.20
http://statistics.data.gov.uk/id/local-authority-district/23UB,Cheltenham Borough Council,461050,510477,COMENSURA LIMITED,C-C23190-0115,Garden Collectn-Temporary Agency Staff,11 November 2011,97.04
http://statistics.data.gov.uk/id/local-authority-district/23UB,Cheltenham Borough Council,461050,510477,COMENSURA LIMITED,C-C23190-0115,Garden Collectn-Temporary Agency Staff,11 November 2011,218.91
http://statistics.data.gov.uk/id/local-authority-district/23UB,Cheltenham Borough Council,461050,510477,COMENSURA LIMITED,C-C23190-0115,Garden Collectn-Temporary Agency Staff,11 November 2011,182.06
http://statistics.data.gov.uk/id/local-authority-district/23UB,Cheltenham Borough Council,461050,510477,COMENSURA LIMITED,C-C23190-0115,Garden Collectn-Temporary Agency Staff,11 November 2011,49.85
http://statistics.data.gov.uk/id/local-authority-district/23UB,Cheltenham Borough Council,461051,510635,COMENSURA LIMITED,C-C23190-0115,Garden Collectn-Temporary Agency Staff,11 November 2011,121.39
http://statistics.data.gov.uk/id/local-authority-district/23UB,Cheltenham Borough Council,461051,510635,COMENSURA LIMITED,C-C23190-0115,Garden Collectn-Temporary Agency Staff,11 November 2011,229.75
http://statistics.data.gov.uk/id/local-authority-district/23UB,Cheltenham Borough Council,461051,510635,COMENSURA LIMITED,C-C23190-0115,Garden Collectn-Temporary Agency Staff,11 November 2011,49.85
http://statistics.data.gov.uk/id/local-authority-district/23UB,Cheltenham Borough Council,461050,510477,COMENSURA LIMITED,C-C23190-0115,Garden Collectn-Temporary Agency Staff,11 November 2011,97.04
http://statistics.data.gov.uk/id/local-authority-district/23UB,Cheltenham Borough Council,461050,510477,COMENSURA LIMITED,C-D12500-0115,Property Servs-Temporary Agency Staff,11 November 2011,56.36
http://statistics.data.gov.uk/id/local-authority-district/23UB,Cheltenham Borough Council,461050,510477,COMENSURA LIMITED,C-D13100-0115,Muni Off Blgs-Temporary Agency Staff,11 November 2011,21.68
http://statistics.data.gov.uk/id/local-authority-district/23UB,Cheltenham Borough Council,461051,510635,COMENSURA LIMITED,C-D13100-0115,Muni Off Blgs-Temporary Agency Staff,11 November 2011,78.04
http://statistics.data.gov.uk/id/local-authority-district/23UB,Cheltenham Borough Council,461051,510635,COMENSURA LIMITED,C-D13100-0115,Muni Off Blgs-Temporary Agency Staff,11 November 2011,86.70
http://statistics.data.gov.uk/id/local-authority-district/23UB,Cheltenham Borough Council,461051,510635,COMENSURA LIMITED,C-D13100-0115,Muni Off Blgs-Temporary Agency Staff,11 November 2011,108.40
http://statistics.data.gov.uk/id/local-authority-district/23UB,Cheltenham Borough Council,461050,510477,COMENSURA LIMITED,C-D13100-0115,Muni Off Blgs-Temporary Agency Staff,11 November 2011,195.10
http://statistics.data.gov.uk/id/local-authority-district/23UB,Cheltenham Borough Council,461051,510635,COMENSURA LIMITED,C-D13100-0115,Muni Off Blgs-Temporary Agency Staff,11 November 2011,108.40
http://statistics.data.gov.uk/id/local-authority-district/23UB,Cheltenham Borough Council,461050,510477,COMENSURA LIMITED,C-E63100-0115,Cemetery & Crem-Temporary Agency Staff,11 November 2011,320.77
http://statistics.data.gov.uk/id/local-authority-district/23UB,Cheltenham Borough Council,461050,510477,COMENSURA LIMITED,C-E63100-0115,Cemetery & Crem-Temporary Agency Staff,11 November 2011,320.77
http://statistics.data.gov.uk/id/local-authority-district/23UB,Cheltenham Borough Council,461051,510635,COMENSURA LIMITED,C-E63100-0115,Cemetery & Crem-Temporary Agency Staff,11 November 2011,255.75
http://statistics.data.gov.uk/id/local-authority-district/23UB,Cheltenham Borough Council,461051,510635,COMENSURA LIMITED,C-E63100-0115,Cemetery & Crem-Temporary Agency Staff,11 November 2011,320.77
http://statistics.data.gov.uk/id/local-authority-district/23UB,Cheltenham Borough Council,460571,11244,COMPLETE CLIMATE SOLUTIONS LIMITED,C-C22140-1812,Nursery-Boiler M&E repairs,04 November 2011,19.50
http://statistics.data.gov.uk/id/local-authority-district/23UB,Cheltenham Borough Council,460567,11239,COMPLETE CLIMATE SOLUTIONS LIMITED,C-D13100-1812,Muni Off Blgs-Boiler M&E repairs,04 November 2011,"3,459.73"
http://statistics.data.gov.uk/id/local-authority-district/23UB,Cheltenham Borough Council,460568,11240,COMPLETE CLIMATE SOLUTIONS LIMITED,C-D14100-1812,Depot Building-Boiler M&E repairs,04 November 2011,275.73
http://statistics.data.gov.uk/id/local-authority-district/23UB,Cheltenham Borough Council,460569,11242,COMPLETE CLIMATE SOLUTIONS LIMITED,C-L11500-1809,Rec Facilities-RM-sanitary works,04 November 2011,97.39
http://statistics.data.gov.uk/id/local-authority-district/23UB,Cheltenham Borough Council,460570,11243,COMPLETE CLIMATE SOLUTIONS LIMITED,C-L11500-1811,Rec Facilities-RM-Plan.& Prev.Mech.Ctrct,04 November 2011,"1,035.95"
http://statistics.data.gov.uk/id/local-authority-district/23UB,Cheltenham Borough Council,460566,11238,COMPLETE CLIMATE SOLUTIONS LIMITED,C-L21100-1811,Town Hall-RM-Plan.& Prev.Mech.Ctrct,04 November 2011,104.24
http://statistics.data.gov.uk/id/local-authority-district/23UB,Cheltenham Borough Council,460569,11242,COMPLETE CLIMATE SOLUTIONS LIMITED,C-N11250-9227,Excluded,04 November 2011,-1.95
http://statistics.data.gov.uk/id/local-authority-district/23UB,Cheltenham Borough Council,460568,11240,COMPLETE CLIMATE SOLUTIONS LIMITED,C-N11250-9227,Excluded,04 November 2011,-19.50
http://statistics.data.gov.uk/id/local-authority-district/23UB,Cheltenham Borough Council,460567,11239,COMPLETE CLIMATE SOLUTIONS LIMITED,C-N11250-9227,Excluded,04 November 2011,-67.85
http://statistics.data.gov.uk/id/local-authority-district/23UB,Cheltenham Borough Council,460566,11238,COMPLETE CLIMATE SOLUTIONS LIMITED,C-N11250-9227,Excluded,04 November 2011,-1.95
http://statistics.data.gov.uk/id/local-authority-district/23UB,Cheltenham Borough Council,460570,11243,COMPLETE CLIMATE SOLUTIONS LIMITED,C-N11250-9227,Excluded,04 November 2011,-92.05
http://statistics.data.gov.uk/id/local-authority-district/23UB,Cheltenham Borough Council,460571,11244,COMPLETE CLIMATE SOLUTIONS LIMITED,C-N11250-9227,Excluded,04 November 2011,-3.90
http://statistics.data.gov.uk/id/local-authority-district/23UB,Cheltenham Borough Council,461590,7545328,COMPUTACENTER UK LIMITED,C-D11820-3662,IT Infrastructu-Cabling & Network work,18 November 2011,"1,803.00"
http://statistics.data.gov.uk/id/local-authority-district/23UB,Cheltenham Borough Council,461593,7544796,COMPUTACENTER UK LIMITED,C-D11820-3662,IT Infrastructu-Cabling & Network work,18 November 2011,99.85
http://statistics.data.gov.uk/id/local-authority-district/23UB,Cheltenham Borough Council,462050,3803553987,COMPUTACENTER UK LIMITED,C-D11820-3660,IT Infrastructu-Hardware PC & Servers,25 November 2011,279.24
http://statistics.data.gov.uk/id/local-authority-district/23UB,Cheltenham Borough Council,462051,3803545550,COMPUTACENTER UK LIMITED,C-D11820-3660,IT Infrastructu-Hardware PC & Servers,25 November 2011,336.48
http://statistics.data.gov.uk/id/local-authority-district/23UB,Cheltenham Borough Council,461084,1.008E+12,COMPUTER FUTURES,C-D11800-0115,IT Services-Temporary Agency Staff,11 November 2011,629.00
http://statistics.data.gov.uk/id/local-authority-district/23UB,Cheltenham Borough Council,461594,1.008E+12,COMPUTER FUTURES,C-D11800-0115,IT Services-Temporary Agency Staff,18 November 2011,629.00
http://statistics.data.gov.uk/id/local-authority-district/23UB,Cheltenham Borough Council,461596,1.008E+12,COMPUTER FUTURES,C-D11800-0115,IT Services-Temporary Agency Staff,18 November 2011,629.00
http://statistics.data.gov.uk/id/local-authority-district/23UB,Cheltenham Borough Council,461596,1.008E+12,COMPUTER FUTURES,C-D11800-0115,IT Services-Temporary Agency Staff,18 November 2011,629.00
http://statistics.data.gov.uk/id/local-authority-district/23UB,Cheltenham Borough Council,461596,1.008E+12,COMPUTER FUTURES,C-D11800-0115,IT Services-Temporary Agency Staff,18 November 2011,119.00
http://statistics.data.gov.uk/id/local-authority-district/23UB,Cheltenham Borough Council,462053,1.008E+12,COMPUTER FUTURES,C-D11800-0115,IT Services-Temporary Agency Staff,25 November 2011,629.00
http://statistics.data.gov.uk/id/local-authority-district/23UB,Cheltenham Borough Council,462033,11002457,CONTENUR UK LIMITED,C-C23180-3101,Rcycl Coltn Schms-Equipment purchases,25 November 2011,"9,437.50"
http://statistics.data.gov.uk/id/local-authority-district/23UB,Cheltenham Borough Council,460606,16137,CORY ENVIRONMENTAL LTD,C-C23100-3581,Refuse Collctn-Tipping charges,04 November 2011,"5,449.21"
http://statistics.data.gov.uk/id/local-authority-district/23UB,Cheltenham Borough Council,461278,16194,CORY ENVIRONMENTAL LTD,C-C23100-3581,Refuse Collctn-Tipping charges,11 November 2011,"5,302.25"
http://statistics.data.gov.uk/id/local-authority-district/23UB,Cheltenham Borough Council,462034,16257,CORY ENVIRONMENTAL LTD,C-C23100-3581,Refuse Collctn-Tipping charges,25 November 2011,"6,005.32"
http://statistics.data.gov.uk/id/local-authority-district/23UB,Cheltenham Borough Council,462035,16315,CORY ENVIRONMENTAL LTD,C-C23100-3581,Refuse Collctn-Tipping charges,25 November 2011,"3,714.08"
http://statistics.data.gov.uk/id/local-authority-district/23UB,Cheltenham Borough Council,461933,6427282,COTSWOLD DISTRICT  COUNCIL,C-L31100-3510,TIC-Promotion & Marketing,25 November 2011,567.00
http://statistics.data.gov.uk/id/local-authority-district/23UB,Cheltenham Borough Council,461239,C20810,COTSWOLD DRAIN SERVICES LTD,C-C22120-1804,Sports & Open S-RM-External structures,11 November 2011,"1,620.00"
http://statistics.data.gov.uk/id/local-authority-district/23UB,Cheltenham Borough Council,461143,C20835,COTSWOLD DRAIN SERVICES LTD,C-C23140-1809,Public Convnces-RM-sanitary works,11 November 2011,98.00
http://statistics.data.gov.uk/id/local-authority-district/23UB,Cheltenham Borough Council,461666,CEE074,CRAWFORD EQUIPMENT EUROPE LTD,C-PM0081-R201,Crematorium-Cremator Repairs,18 November 2011,"323,470.00"
http://statistics.data.gov.uk/id/local-authority-district/23UB,Cheltenham Borough Council,461667,CEE073,CRAWFORD EQUIPMENT EUROPE LTD,C-PM0081-R201,Crematorium-Cremator Repairs,18 November 2011,"97,041.00"
http://statistics.data.gov.uk/id/local-authority-district/23UB,Cheltenham Borough Council,461123,818462,CRIMINAL RECORDS BUREAU,C-A21500-3501,Licensing-Hire of outside services,11 November 2011,976.00
http://statistics.data.gov.uk/id/local-authority-district/23UB,Cheltenham Borough Council,461123,818462,CRIMINAL RECORDS BUREAU,C-L11500-3501,Rec Facilities-Hire of outside services,11 November 2011,220.00
http://statistics.data.gov.uk/id/local-authority-district/23UB,Cheltenham Borough Council,461551,ps02915,CSS POOLS AND LEISURE,C-L11500-3167,Rec Facilities-Maintenance Agreements,18 November 2011,22.00
http://statistics.data.gov.uk/id/local-authority-district/23UB,Cheltenham Borough Council,461551,ps02915,CSS POOLS AND LEISURE,C-L11500-3167,Rec Facilities-Maintenance Agreements,18 November 2011,28.76
http://statistics.data.gov.uk/id/local-authority-district/23UB,Cheltenham Borough Council,461551,ps02915,CSS POOLS AND LEISURE,C-L11500-3167,Rec Facilities-Maintenance Agreements,18 November 2011,121.50
http://statistics.data.gov.uk/id/local-authority-district/23UB,Cheltenham Borough Council,461551,ps02915,CSS POOLS AND LEISURE,C-L11500-3167,Rec Facilities-Maintenance Agreements,18 November 2011,180.00
http://statistics.data.gov.uk/id/local-authority-district/23UB,Cheltenham Borough Council,461551,ps02915,CSS POOLS AND LEISURE,C-L11500-3167,Rec Facilities-Maintenance Agreements,18 November 2011,452.00
http://statistics.data.gov.uk/id/local-authority-district/23UB,Cheltenham Borough Council,461487,9CR001 28/10/201,CTCH LTD,C-H35100-5212,Hsg.Direct.Cost-Customer ex-gratia pymnt,18 November 2011,580.00
http://statistics.data.gov.uk/id/local-authority-district/23UB,Cheltenham Borough Council,461122,557,CUFF SECURITY SERVICES LIMITED,C-1T90H0-3559,Hirers-Recoverable Event Exp,11 November 2011,552.50
http://statistics.data.gov.uk/id/local-authority-district/23UB,Cheltenham Borough Council,461061,1123,D A JONES,C-C22120-1119,Spts/Open Space-Playground Maint,11 November 2011,357.81
http://statistics.data.gov.uk/id/local-authority-district/23UB,Cheltenham Borough Council,461220,1124,D A JONES,C-LC6006-C306,Play Area Maint-Landscape Contractor,11 November 2011,"1,400.00"
http://statistics.data.gov.uk/id/local-authority-district/23UB,Cheltenham Borough Council,461220,1124,D A JONES,C-N11250-9227,Excluded,11 November 2011,-171.96
http://statistics.data.gov.uk/id/local-authority-district/23UB,Cheltenham Borough Council,461061,1123,D A JONES,C-N11250-9227,Excluded,11 November 2011,-42.54
http://statistics.data.gov.uk/id/local-authority-district/23UB,Cheltenham Borough Council,461937,1133,D A JONES,C-C22110-1301,Parks & Gardens-Routine grounds maint,25 November 2011,75.00
http://statistics.data.gov.uk/id/local-authority-district/23UB,Cheltenham Borough Council,461938,1131,D A JONES,C-C22120-1119,Spts/Open Space-Playground Maint,25 November 2011,100.10
http://statistics.data.gov.uk/id/local-authority-district/23UB,Cheltenham Borough Council,461935,1135,D A JONES,C-C22120-1301,Spts/Open Space-Routine grounds maint,25 November 2011,100.00
http://statistics.data.gov.uk/id/local-authority-district/23UB,Cheltenham Borough Council,461921,1125,D A JONES,C-E22150-3110,CBC Highway Wk-Materials,25 November 2011,120.00
http://statistics.data.gov.uk/id/local-authority-district/23UB,Cheltenham Borough Council,461912,1130,D A JONES,C-LC6006-C306,Play Area Maint-Landscape Contractor,25 November 2011,300.00
http://statistics.data.gov.uk/id/local-authority-district/23UB,Cheltenham Borough Council,461913,1132,D A JONES,C-LC6006-C306,Play Area Maint-Landscape Contractor,25 November 2011,"1,120.08"
http://statistics.data.gov.uk/id/local-authority-district/23UB,Cheltenham Borough Council,461921,1125,D A JONES,C-N11250-9227,Excluded,25 November 2011,-24.00
http://statistics.data.gov.uk/id/local-authority-district/23UB,Cheltenham Borough Council,461913,1132,D A JONES,C-N11250-9227,Excluded,25 November 2011,-130.00
http://statistics.data.gov.uk/id/local-authority-district/23UB,Cheltenham Borough Council,461912,1130,D A JONES,C-N11250-9227,Excluded,25 November 2011,-40.94
http://statistics.data.gov.uk/id/local-authority-district/23UB,Cheltenham Borough Council,461935,1135,D A JONES,C-N11250-9227,Excluded,25 November 2011,-20.00
http://statistics.data.gov.uk/id/local-authority-district/23UB,Cheltenham Borough Council,461937,1133,D A JONES,C-N11250-9227,Excluded,25 November 2011,-15.00
http://statistics.data.gov.uk/id/local-authority-district/23UB,Cheltenham Borough Council,461938,1131,D A JONES,C-N11250-9227,Excluded,25 November 2011,-15.20
http://statistics.data.gov.uk/id/local-authority-district/23UB,Cheltenham Borough Council,461936,1071,D W BROOKES,C-C22110-1301,Parks & Gardens-Routine grounds maint,25 November 2011,"1,160.00"
http://statistics.data.gov.uk/id/local-authority-district/23UB,Cheltenham Borough Council,461764,REDACTED,DAVID MALPASS,C-HC4100-C801,Dis.Adapt.HRA-Grants,18 November 2011,"6,562.00"
http://statistics.data.gov.uk/id/local-authority-district/23UB,Cheltenham Borough Council,460760,SETTLEMENT,DEAN CLOSE SCHOOL,C-N13125-9206,ASH Ledger-PPR Invoices Paid,04 November 2011,-925.24
http://statistics.data.gov.uk/id/local-authority-district/23UB,Cheltenham Borough Council,460760,SETTLEMENT,DEAN CLOSE SCHOOL,C-Z12210-9137,Box Off A/C-PPR Hirers Tkt Pd out,04 November 2011,"3,372.00"
http://statistics.data.gov.uk/id/local-authority-district/23UB,Cheltenham Borough Council,460760,SETTLEMENT,DEAN CLOSE SCHOOL,C-Z12210-9276,Box Off A/C-Hirers Invoices Pd,04 November 2011,-90.00
http://statistics.data.gov.uk/id/local-authority-district/23UB,Cheltenham Borough Council,460724,DE10588858,DENNIS EAGLE,C-C24100-3582,Fleet Maint-DSO Invoices,04 November 2011,23.85
http://statistics.data.gov.uk/id/local-authority-district/23UB,Cheltenham Borough Council,460780,DE10587756,DENNIS EAGLE,C-C24100-3582,Fleet Maint-DSO Invoices,04 November 2011,439.59
http://statistics.data.gov.uk/id/local-authority-district/23UB,Cheltenham Borough Council,460770,DE10586538,DENNIS EAGLE,C-C24100-3582,Fleet Maint-DSO Invoices,04 November 2011,24.90
http://statistics.data.gov.uk/id/local-authority-district/23UB,Cheltenham Borough Council,460769,DE10586537,DENNIS EAGLE,C-C24100-3582,Fleet Maint-DSO Invoices,04 November 2011,90.86
http://statistics.data.gov.uk/id/local-authority-district/23UB,Cheltenham Borough Council,460538,198185,DENNIS EAGLE,C-C24100-3582,Fleet Maint-DSO Invoices,04 November 2011,292.50
http://statistics.data.gov.uk/id/local-authority-district/23UB,Cheltenham Borough Council,461630,DE10589769,DENNIS EAGLE,C-C24100-3582,Fleet Maint-DSO Invoices,18 November 2011,614.99
http://statistics.data.gov.uk/id/local-authority-district/23UB,Cheltenham Borough Council,461624,DE10590041,DENNIS EAGLE,C-C24100-3582,Fleet Maint-DSO Invoices,18 November 2011,"1,067.33"
http://statistics.data.gov.uk/id/local-authority-district/23UB,Cheltenham Borough Council,461652,DE10590929,DENNIS EAGLE,C-C24100-3582,Fleet Maint-DSO Invoices,18 November 2011,44.80
http://statistics.data.gov.uk/id/local-authority-district/23UB,Cheltenham Borough Council,461651,DE10590329,DENNIS EAGLE,C-C24100-3582,Fleet Maint-DSO Invoices,18 November 2011,88.60
http://statistics.data.gov.uk/id/local-authority-district/23UB,Cheltenham Borough Council,461611,DE10589177,DENNIS EAGLE,C-C24100-3582,Fleet Maint-DSO Invoices,18 November 2011,242.57
http://statistics.data.gov.uk/id/local-authority-district/23UB,Cheltenham Borough Council,461237,RQK518,DEPT FOR WORK & PENSIONS,C-L17200-3934,Sport/Play Div-TP Gen-Imprest/Excess,11 November 2011,600.00
http://statistics.data.gov.uk/id/local-authority-district/23UB,Cheltenham Borough Council,461195,N098.11-21/LN011,DEWHURST MACFARLANE & PARTNERS,C-LC4006-C702,AG&M Dev Scheme-CBC - Engineers,11 November 2011,"3,200.00"
http://statistics.data.gov.uk/id/local-authority-district/23UB,Cheltenham Borough Council,461897,BD4634,DIRECT PUBLICITY,C-L21100-3920,Town Hall-Advertising,25 November 2011,630.00
http://statistics.data.gov.uk/id/local-authority-district/23UB,Cheltenham Borough Council,460830,10/006,DORCHESTER HOUSE TRUST,C-H22400-5204,Homelessness-Provision of accommo(B&B),04 November 2011,239.30
http://statistics.data.gov.uk/id/local-authority-district/23UB,Cheltenham Borough Council,460831,10/007,DORCHESTER HOUSE TRUST,C-H22400-5204,Homelessness-Provision of accommo(B&B),04 November 2011,349.45
http://statistics.data.gov.uk/id/local-authority-district/23UB,Cheltenham Borough Council,461505,10/002,DORCHESTER HOUSE TRUST,C-H22400-5204,Homelessness-Provision of accommo(B&B),18 November 2011,220.10
http://statistics.data.gov.uk/id/local-authority-district/23UB,Cheltenham Borough Council,461508,10/003,DORCHESTER HOUSE TRUST,C-H22400-5204,Homelessness-Provision of accommo(B&B),18 November 2011,196.88
http://statistics.data.gov.uk/id/local-authority-district/23UB,Cheltenham Borough Council,461506,10/001,DORCHESTER HOUSE TRUST,C-H22400-5204,Homelessness-Provision of accommo(B&B),18 November 2011,239.30
http://statistics.data.gov.uk/id/local-authority-district/23UB,Cheltenham Borough Council,461089,3986,DOUG GOBEY TRANSPORT LIMITED,C-L41100-3130,AG & M-Conservation-collections,11 November 2011,650.00
http://statistics.data.gov.uk/id/local-authority-district/23UB,Cheltenham Borough Council,461699,14,DOWNING BENTLEY,C-DC1066-C849,Lnd&Prop presal-Miscellaneous other,18 November 2011,945.00
http://statistics.data.gov.uk/id/local-authority-district/23UB,Cheltenham Borough Council,460552,DRD/JCS/0911,DRD RESEARCH & CONSULTING LTD,C-B51145-3501,Joint Core Stra-Hire of outside services,04 November 2011,720.00
http://statistics.data.gov.uk/id/local-authority-district/23UB,Cheltenham Borough Council,460553,DRD/CBC/0911,DRD RESEARCH & CONSULTING LTD,C-B51145-3501,Joint Core Stra-Hire of outside services,04 November 2011,180.00
http://statistics.data.gov.uk/id/local-authority-district/23UB,Cheltenham Borough Council,461952,4140,EVENT STAFF,C-1T01G1-3501,Fascinatg Aida-Hire of outside services,25 November 2011,96.00
http://statistics.data.gov.uk/id/local-authority-district/23UB,Cheltenham Borough Council,461953,4141,EVENT STAFF,C-1T20G1-3501,60s Gold-Hire of outside services,25 November 2011,104.00
http://statistics.data.gov.uk/id/local-authority-district/23UB,Cheltenham Borough Council,461954,4142,EVENT STAFF,C-1T21G1-3501,Puptry of Penis-Hire of outside services,25 November 2011,48.00
http://statistics.data.gov.uk/id/local-authority-district/23UB,Cheltenham Borough Council,461955,4143,EVENT STAFF,C-1T23G1-3501,Hgh Schl Rocks-Hire of outside services,25 November 2011,200.00
http://statistics.data.gov.uk/id/local-authority-district/23UB,Cheltenham Borough Council,461956,4144,EVENT STAFF,C-1T27G1-3501,Illegal Eagles-Hire of outside services,25 November 2011,200.00
http://statistics.data.gov.uk/id/local-authority-district/23UB,Cheltenham Borough Council,461951,4139,EVENT STAFF,C-1T30F1-3501,Colin Fry-Hire of outside services,25 November 2011,150.00
http://statistics.data.gov.uk/id/local-authority-district/23UB,Cheltenham Borough Council,461107,4888,EVERYMAN THEATRE,C-L41100-3252,AG & M-Off the wall grant exp,11 November 2011,"2,000.00"
http://statistics.data.gov.uk/id/local-authority-district/23UB,Cheltenham Borough Council,461552,639,F T LEISURE,C-L11500-3167,Rec Facilities-Maintenance Agreements,18 November 2011,"1,100.00"
http://statistics.data.gov.uk/id/local-authority-district/23UB,Cheltenham Borough Council,461244,GMG/VP11/94427,FBC MANBY BOWDLER,C-C23100-3934,Ref. Collection-TP Gen-Imprest/Excess,11 November 2011,"6,000.00"
http://statistics.data.gov.uk/id/local-authority-district/23UB,Cheltenham Borough Council,461485,93,FELIX KNIGHT LIMITED,C-1T28G1-3568,Dave Spikey-Artist Fees,18 November 2011,"4,092.56"
http://statistics.data.gov.uk/id/local-authority-district/23UB,Cheltenham Borough Council,461058,SI124728,FLEET LINE MARKERS LTD,C-C22120-3121,Spts/Open Space-Materials-Contract,11 November 2011,"1,755.00"
http://statistics.data.gov.uk/id/local-authority-district/23UB,Cheltenham Borough Council,461058,SI124728,FLEET LINE MARKERS LTD,C-C22120-3121,Spts/Open Space-Materials-Contract,11 November 2011,84.36
http://statistics.data.gov.uk/id/local-authority-district/23UB,Cheltenham Borough Council,461292,FMG162,FMG CONSULTING LTD,C-L11500-3501,Rec Facilities-Hire of outside services,11 November 2011,950.00
http://statistics.data.gov.uk/id/local-authority-district/23UB,Cheltenham Borough Council,461292,FMG162,FMG CONSULTING LTD,C-L11500-3501,Rec Facilities-Hire of outside services,11 November 2011,125.00
http://statistics.data.gov.uk/id/local-authority-district/23UB,Cheltenham Borough Council,461663,9560,FOOLS PARADISE LIMITED,C-DR3001-3510,Town C Manager-Promotion & Marketing,18 November 2011,670.00
http://statistics.data.gov.uk/id/local-authority-district/23UB,Cheltenham Borough Council,461150,SIN132572,FRONTIER SOFTWARE PLC,C-D12300-3623,Personnel and P-Cmpter-sftwre lic purch,11 November 2011,"5,539.38"
http://statistics.data.gov.uk/id/local-authority-district/23UB,Cheltenham Borough Council,460554,1868,FRONTLINE,C-D12310-0205,Corporate Trg-Training fees/exp (Corp),04 November 2011,918.00
http://statistics.data.gov.uk/id/local-authority-district/23UB,Cheltenham Borough Council,460849,5197,FUTRA LTD,C-C24150-3170,Fleet Managemnt-Fuel system maintenance,04 November 2011,904.00
http://statistics.data.gov.uk/id/local-authority-district/23UB,Cheltenham Borough Council,460834,386,G GARDINER T/A LABURNUM LODGE,C-H22400-5204,Homelessness-Provision of accommo(B&B),04 November 2011,518.79
http://statistics.data.gov.uk/id/local-authority-district/23UB,Cheltenham Borough Council,460835,387,G GARDINER T/A LABURNUM LODGE,C-H22400-5204,Homelessness-Provision of accommo(B&B),04 November 2011,480.20
http://statistics.data.gov.uk/id/local-authority-district/23UB,Cheltenham Borough Council,461771,REDACTED,G MANN T/A MANN BUILDERS,C-HC7440-C801,DFG.96.Act-Grants,18 November 2011,"12,000.00"
http://statistics.data.gov.uk/id/local-authority-district/23UB,Cheltenham Borough Council,461584,80004006,G4S CASH SERVICES (UK) LTD,C-D12450-3502,Cash Rec / Bnkg-Cash transportation,18 November 2011,255.03
http://statistics.data.gov.uk/id/local-authority-district/23UB,Cheltenham Borough Council,461584,80004006,G4S CASH SERVICES (UK) LTD,C-D12455-3502,CarPk Inc Colln-Cash transportation,18 November 2011,462.00
http://statistics.data.gov.uk/id/local-authority-district/23UB,Cheltenham Borough Council,462047,14510,GEE TEE BULB COMPANY,C-E63100-1301,Cemetery & Crem-Routine grounds maint,25 November 2011,548.00
http://statistics.data.gov.uk/id/local-authority-district/23UB,Cheltenham Borough Council,462141,SINV-042798,GELPACK EXCELSIOR LTD,C-N42250-3112,DSO Stores - Stock purchases,25 November 2011,"2,176.20"
http://statistics.data.gov.uk/id/local-authority-district/23UB,Cheltenham Borough Council,461213,GLDM.558010.11,GLDM,C-C22120-1301,Spts/Open Space-Routine grounds maint,11 November 2011,540.00
http://statistics.data.gov.uk/id/local-authority-district/23UB,Cheltenham Borough Council,461898,23151,GLIDE MEDIA MARKETING,C-L21100-3920,Town Hall-Advertising,25 November 2011,913.00
http://statistics.data.gov.uk/id/local-authority-district/23UB,Cheltenham Borough Council,461748,20530847/9000187,GLOUCESTERSHIRE COLLEGE,C-N13125-9104,ASH Ledger-Refunds,18 November 2011,"1,655.17"
http://statistics.data.gov.uk/id/local-authority-district/23UB,Cheltenham Borough Council,461280,1800199745,GLOUCESTERSHIRE COUNTY COUNCIL,C-C23100-3581,Refuse Collctn-Tipping charges,11 November 2011,311.94
http://statistics.data.gov.uk/id/local-authority-district/23UB,Cheltenham Borough Council,461280,1800199745,GLOUCESTERSHIRE COUNTY COUNCIL,C-C23100-3581,Refuse Collctn-Tipping charges,11 November 2011,243.02
http://statistics.data.gov.uk/id/local-authority-district/23UB,Cheltenham Borough Council,461280,1800199745,GLOUCESTERSHIRE COUNTY COUNCIL,C-C23100-3581,Refuse Collctn-Tipping charges,11 November 2011,601.21
http://statistics.data.gov.uk/id/local-authority-district/23UB,Cheltenham Borough Council,461280,1800199745,GLOUCESTERSHIRE COUNTY COUNCIL,C-C23100-3581,Refuse Collctn-Tipping charges,11 November 2011,231.23
http://statistics.data.gov.uk/id/local-authority-district/23UB,Cheltenham Borough Council,461280,1800199745,GLOUCESTERSHIRE COUNTY COUNCIL,C-C23100-3581,Refuse Collctn-Tipping charges,11 November 2011,231.23
http://statistics.data.gov.uk/id/local-authority-district/23UB,Cheltenham Borough Council,461601,1800203748,GLOUCESTERSHIRE COUNTY COUNCIL,C-E36200-4528,On-St Car Prkng-Net income paid to GCC,18 November 2011,"91,458.72"
http://statistics.data.gov.uk/id/local-authority-district/23UB,Cheltenham Borough Council,460922,NIGHTSTOP,GLOUCESTERSHIRE NIGHTSTOP,C-H22300-3897,Housing Grants-Youth Homeless-Nightstop,11 November 2011,"5,000.00"
http://statistics.data.gov.uk/id/local-authority-district/23UB,Cheltenham Borough Council,461588,1501,GLOUCESTERSHIRE WILDLIFE TRUST,C-B51120-3501,Develt Con-Hire of outside services,18 November 2011,"4,600.00"
http://statistics.data.gov.uk/id/local-authority-district/23UB,Cheltenham Borough Council,460721,48432,GOOCH GROUP LTD,C-D13100-1703,Muni Off Blgs-Window cleaning,04 November 2011,20.00
http://statistics.data.gov.uk/id/local-authority-district/23UB,Cheltenham Borough Council,460722,48433,GOOCH GROUP LTD,C-D13100-1703,Muni Off Blgs-Window cleaning,04 November 2011,90.00
http://statistics.data.gov.uk/id/local-authority-district/23UB,Cheltenham Borough Council,460572,48402,GOOCH GROUP LTD,C-H33700-1712,Estate Services-Estate cleaning-reactive,04 November 2011,555.00
http://statistics.data.gov.uk/id/local-authority-district/23UB,Cheltenham Borough Council,460815,48297,GOOCH GROUP LTD,C-H4214G-1104,Gen Wks 2214-Council House repairs,04 November 2011,316.36
http://statistics.data.gov.uk/id/local-authority-district/23UB,Cheltenham Borough Council,460537,48345,GOOCH GROUP LTD,C-N42250-3112,DSO Stores - Stock purchases,04 November 2011,110.60
http://statistics.data.gov.uk/id/local-authority-district/23UB,Cheltenham Borough Council,461917,47886,GOOCH GROUP LTD,C-E21100-1701,Car Prks-Off St-Cleaning,25 November 2011,246.61
http://statistics.data.gov.uk/id/local-authority-district/23UB,Cheltenham Borough Council,461918,48572,GOOCH GROUP LTD,C-E21100-1701,Car Prks-Off St-Cleaning,25 November 2011,146.00
http://statistics.data.gov.uk/id/local-authority-district/23UB,Cheltenham Borough Council,461919,48538,GOOCH GROUP LTD,C-E21100-1701,Car Prks-Off St-Cleaning,25 November 2011,150.63
http://statistics.data.gov.uk/id/local-authority-district/23UB,Cheltenham Borough Council,462127,48629,GOOCH GROUP LTD,C-L41100-1703,AG & M-Window cleaning,25 November 2011,117.00
http://statistics.data.gov.uk/id/local-authority-district/23UB,Cheltenham Borough Council,460576,266,GREENWAY PARTNERSHIP LIMITED,C-HC4867-C302,Misc Works-Building Contractor,04 November 2011,925.00
http://statistics.data.gov.uk/id/local-authority-district/23UB,Cheltenham Borough Council,461577,367,GREENWAY PARTNERSHIP LIMITED,C-C22120-1804,Sports & Open S-RM-External structures,18 November 2011,"1,832.00"
http://statistics.data.gov.uk/id/local-authority-district/23UB,Cheltenham Borough Council,461700,241,GREENWAY PARTNERSHIP LIMITED,C-C23140-1801,Public Convnces-RM-Electrical repairs,18 November 2011,369.00
http://statistics.data.gov.uk/id/local-authority-district/23UB,Cheltenham Borough Council,461579,333,GREENWAY PARTNERSHIP LIMITED,C-D13100-1809,Muni Off Blgs-RM-sanitary works,18 November 2011,33.75
http://statistics.data.gov.uk/id/local-authority-district/23UB,Cheltenham Borough Council,461581,332,GREENWAY PARTNERSHIP LIMITED,C-D13100-1809,Muni Off Blgs-RM-sanitary works,18 November 2011,45.00
http://statistics.data.gov.uk/id/local-authority-district/23UB,Cheltenham Borough Council,462131,352,GREENWAY PARTNERSHIP LIMITED,C-D14100-1806,Depot Building-RM-Ext. fixtures/fittings,25 November 2011,310.00
http://statistics.data.gov.uk/id/local-authority-district/23UB,Cheltenham Borough Council,461899,362,GREENWAY PARTNERSHIP LIMITED,C-D30200-1405,Misc Props & Ld-Energy conservation,25 November 2011,"5,320.00"
http://statistics.data.gov.uk/id/local-authority-district/23UB,Cheltenham Borough Council,461899,362,GREENWAY PARTNERSHIP LIMITED,C-L32200-1806,Xmas in Chelt-RM-Ext. fixtures/fittings,25 November 2011,"3,780.00"
http://statistics.data.gov.uk/id/local-authority-district/23UB,Cheltenham Borough Council,461902,311,GREENWAY PARTNERSHIP LIMITED,C-L32200-1807,Xmas in Chelt-RM-Vandalism,25 November 2011,275.50
http://statistics.data.gov.uk/id/local-authority-district/23UB,Cheltenham Borough Council,462130,216,GREENWAY PARTNERSHIP LIMITED,C-PM0040-R004,Recreation Cent-External Building Repair,25 November 2011,844.00
http://statistics.data.gov.uk/id/local-authority-district/23UB,Cheltenham Borough Council,460622,REDACTED,GROVE BUILDING SERVICES,C-HC7445-C801,Adapt Sup Grant-Grants,04 November 2011,"4,104.00"
http://statistics.data.gov.uk/id/local-authority-district/23UB,Cheltenham Borough Council,461725,REDACTED,GROVE BUILDING SERVICES,C-HC4100-C801,Dis.Adapt.HRA-Grants,18 November 2011,"11,970.00"
http://statistics.data.gov.uk/id/local-authority-district/23UB,Cheltenham Borough Council,461746,REDACTED,GROVE BUILDING SERVICES,C-HC7440-C801,DFG.96.Act-Grants,18 November 2011,"6,518.00"
http://statistics.data.gov.uk/id/local-authority-district/23UB,Cheltenham Borough Council,460781,1110/45473,GULLIVER'S TRAVELS SELF DRIVE LTD,C-C22140-2701,Nursery-Hired transport,04 November 2011,495.00
http://statistics.data.gov.uk/id/local-authority-district/23UB,Cheltenham Borough Council,460746,1110/46584,GULLIVER'S TRAVELS SELF DRIVE LTD,C-C23180-2701,Rcycl Cltn Schm-Hired transport,04 November 2011,170.00
http://statistics.data.gov.uk/id/local-authority-district/23UB,Cheltenham Borough Council,460541,1110/43175,GULLIVER'S TRAVELS SELF DRIVE LTD,C-C23180-2701,Rcycl Cltn Schm-Hired transport,04 November 2011,170.00
http://statistics.data.gov.uk/id/local-authority-district/23UB,Cheltenham Borough Council,460783,1110/45474,GULLIVER'S TRAVELS SELF DRIVE LTD,C-C23180-2701,Rcycl Cltn Schm-Hired transport,04 November 2011,170.00
http://statistics.data.gov.uk/id/local-authority-district/23UB,Cheltenham Borough Council,460540,1110/43176,GULLIVER'S TRAVELS SELF DRIVE LTD,C-C24100-2701,Fleet Maint-Hired transport,04 November 2011,160.00
http://statistics.data.gov.uk/id/local-authority-district/23UB,Cheltenham Borough Council,460782,1110/46585,GULLIVER'S TRAVELS SELF DRIVE LTD,C-C24100-2701,Fleet Maint-Hired transport,04 November 2011,160.00
http://statistics.data.gov.uk/id/local-authority-district/23UB,Cheltenham Borough Council,460555,7018442,GVA GRIMLEY LLP,C-D12500-8428,Property Servs-Fees for services,04 November 2011,"9,753.70"
http://statistics.data.gov.uk/id/local-authority-district/23UB,Cheltenham Borough Council,460557,7018288,GVA GRIMLEY LLP,C-D35100-350A,Glos Airport-Consultants Fees,04 November 2011,"6,148.50"
http://statistics.data.gov.uk/id/local-authority-district/23UB,Cheltenham Borough Council,461685,7018487,GVA GRIMLEY LLP,C-D35100-350A,Glos Airport-Consultants Fees,18 November 2011,"1,798.50"
http://statistics.data.gov.uk/id/local-authority-district/23UB,Cheltenham Borough Council,458903,32135,HAGSPLAY LIMITED,C-C22120-1119,Spts/Open Space-Playground Maint,11 November 2011,288.00
http://statistics.data.gov.uk/id/local-authority-district/23UB,Cheltenham Borough Council,458903,32135,HAGSPLAY LIMITED,C-C22120-1119,Spts/Open Space-Playground Maint,11 November 2011,40.00
http://statistics.data.gov.uk/id/local-authority-district/23UB,Cheltenham Borough Council,458903,32135,HAGSPLAY LIMITED,C-C22120-1119,Spts/Open Space-Playground Maint,11 November 2011,40.00
http://statistics.data.gov.uk/id/local-authority-district/23UB,Cheltenham Borough Council,458903,32135,HAGSPLAY LIMITED,C-C22120-1119,Spts/Open Space-Playground Maint,11 November 2011,288.00
http://statistics.data.gov.uk/id/local-authority-district/23UB,Cheltenham Borough Council,461656,TW4851,HALCROW GROUP LTD,C-D30200-1840,Misc Props & Ld-RM-Professional Services,18 November 2011,995.00
http://statistics.data.gov.uk/id/local-authority-district/23UB,Cheltenham Borough Council,461735,5262,HALSALL  CONSTRUCTION LIMITED,C-HC4845-C302,Neighbrhd works-Building Contractor,18 November 2011,"6,321.00"
http://statistics.data.gov.uk/id/local-authority-district/23UB,Cheltenham Borough Council,461681,24686,HARROLD-JONES  SERVICES,C-H46400-1104,Door Entry-Council House repairs,18 November 2011,"1,908.19"
http://statistics.data.gov.uk/id/local-authority-district/23UB,Cheltenham Borough Council,461680,24685,HARROLD-JONES  SERVICES,C-H46400-1104,Door Entry-Council House repairs,18 November 2011,324.00
http://statistics.data.gov.uk/id/local-authority-district/23UB,Cheltenham Borough Council,461734,H1524,HARROLD-JONES  SERVICES,C-HC4863-C302,Door Entry-Building Contractor,18 November 2011,"10,909.17"
http://statistics.data.gov.uk/id/local-authority-district/23UB,Cheltenham Borough Council,461679,24549,HARROLD-JONES  SERVICES,C-HC4863-C302,Door Entry-Building Contractor,18 November 2011,180.00
http://statistics.data.gov.uk/id/local-authority-district/23UB,Cheltenham Borough Council,460836,HCC-00053962,HEREFORDSHIRE HOUSING LIMITED,C-H22500-3501,Community Alarm-Hire of outside services,04 November 2011,"10,920.78"
http://statistics.data.gov.uk/id/local-authority-district/23UB,Cheltenham Borough Council,460549,188306,HL SMITH (TRANSMISSIONS) LTD,C-C24100-3582,Fleet Maint-DSO Invoices,04 November 2011,550.00
http://statistics.data.gov.uk/id/local-authority-district/23UB,Cheltenham Borough Council,460548,188228,HL SMITH (TRANSMISSIONS) LTD,C-C24100-3582,Fleet Maint-DSO Invoices,04 November 2011,"4,150.00"
http://statistics.data.gov.uk/id/local-authority-district/23UB,Cheltenham Borough Council,461102,36367,HORSLEYS,C-LC4006-C713,AG&M Dev Scheme-Other Professional Fees,11 November 2011,500.00
http://statistics.data.gov.uk/id/local-authority-district/23UB,Cheltenham Borough Council,461103,36366,HORSLEYS,C-LC4006-C713,AG&M Dev Scheme-Other Professional Fees,11 November 2011,500.00
http://statistics.data.gov.uk/id/local-authority-district/23UB,Cheltenham Borough Council,461104,36369,HORSLEYS,C-LC4006-C713,AG&M Dev Scheme-Other Professional Fees,11 November 2011,500.00
http://statistics.data.gov.uk/id/local-authority-district/23UB,Cheltenham Borough Council,462056,HCUK1002954,HUMAN CONCEPTS UK LIMITED,C-GCERP-3623,GO Capital Cost-Cmpter-sftwre lic purch,25 November 2011,"1,090.00"
http://statistics.data.gov.uk/id/local-authority-district/23UB,Cheltenham Borough Council,460621,1519,IAN WILLIAMS LIMITED,C-H45205-1104,Ext Repairs & R-Council House repairs,04 November 2011,"23,301.00"
http://statistics.data.gov.uk/id/local-authority-district/23UB,Cheltenham Borough Council,462125,LGST-A-11338-10,ICAP EUROPE LIMITED,C-D32700-3994,Debt Mgt-Brokerage,25 November 2011,"1,572.88"
http://statistics.data.gov.uk/id/local-authority-district/23UB,Cheltenham Borough Council,461168,40371,IDOX SOFTWARE LIMITED,C-E72500-0204,Built Env Div-Training fees/exp (Prof),11 November 2011,"2,000.00"
http://statistics.data.gov.uk/id/local-authority-district/23UB,Cheltenham Borough Council,461597,40457,IDOX SOFTWARE LIMITED,C-D11820-3660,IT Infrastructu-Hardware PC & Servers,18 November 2011,"6,175.00"
http://statistics.data.gov.uk/id/local-authority-district/23UB,Cheltenham Borough Council,461589,40458,IDOX SOFTWARE LIMITED,C-A21500-8414,Licensing-Licensing Act 2003,18 November 2011,"4,500.00"
http://statistics.data.gov.uk/id/local-authority-district/23UB,Cheltenham Borough Council,461906,01/10/2011,IMOGEN HARVEY LEWIS,C-Z12445-OR09,Com Outreach-Big Draw,25 November 2011,"1,250.00"
http://statistics.data.gov.uk/id/local-authority-district/23UB,Cheltenham Borough Council,462214,INFXNET01180,INFX NETWORKS LIMITED,C-L21100-3134,Town Hall-Box Office Equipment,28 November 2011,"4,995.00"
http://statistics.data.gov.uk/id/local-authority-district/23UB,Cheltenham Borough Council,461509,PSI016887,INTRINSIC TECHNOLOGY LIMITED,C-D13250-3611,Corp.Telecomms-Telephones,18 November 2011,"4,839.00"
http://statistics.data.gov.uk/id/local-authority-district/23UB,Cheltenham Borough Council,461255,PSI016367,INTRINSIC TECHNOLOGY LIMITED,C-DC4003-C101,Telephy Switch-Project Est for this Year,18 November 2011,"7,974.00"
http://statistics.data.gov.uk/id/local-authority-district/23UB,Cheltenham Borough Council,462052,PSI017006,INTRINSIC TECHNOLOGY LIMITED,C-DC4003-C101,Telephy Switch-Project Est for this Year,25 November 2011,"5,018.62"
http://statistics.data.gov.uk/id/local-authority-district/23UB,Cheltenham Borough Council,462052,PSI017006,INTRINSIC TECHNOLOGY LIMITED,C-DC4003-C101,Telephy Switch-Project Est for this Year,25 November 2011,"8,776.00"
http://statistics.data.gov.uk/id/local-authority-district/23UB,Cheltenham Borough Council,461253,CSIC60102-3,ISG PEARCE LIMITED,C-LC4006-C402,AG&M Dev Scheme-Building Contractor,12 November 2011,"93,375.00"
http://statistics.data.gov.uk/id/local-authority-district/23UB,Cheltenham Borough Council,460684,SETTLEMENT,J & S LISNEY,C-N13125-9206,ASH Ledger-PPR Invoices Paid,17 November 2011,-566.51
http://statistics.data.gov.uk/id/local-authority-district/23UB,Cheltenham Borough Council,460684,SETTLEMENT,J & S LISNEY,C-N13125-9206,ASH Ledger-PPR Invoices Paid,17 November 2011,-566.51
http://statistics.data.gov.uk/id/local-authority-district/23UB,Cheltenham Borough Council,460684,SETTLEMENT,J & S LISNEY,C-Z12210-9137,Box Off A/C-PPR Hirers Tkt Pd out,17 November 2011,970.00
http://statistics.data.gov.uk/id/local-authority-district/23UB,Cheltenham Borough Council,460684,SETTLEMENT,J & S LISNEY,C-Z12210-9137,Box Off A/C-PPR Hirers Tkt Pd out,17 November 2011,970.00
http://statistics.data.gov.uk/id/local-authority-district/23UB,Cheltenham Borough Council,462083,SETTLEMENT,J & S LISNEY,C-N13125-9206,ASH Ledger-PPR Invoices Paid,25 November 2011,-531.37
http://statistics.data.gov.uk/id/local-authority-district/23UB,Cheltenham Borough Council,460530,P33292CP/111007,J & S SEDDON PAINTING LTD,C-PM0042-R003,Pavillions-External Re-decoration,04 November 2011,"2,503.96"
http://statistics.data.gov.uk/id/local-authority-district/23UB,Cheltenham Borough Council,460785,82,J.J.MORRELL,C-D11400-3501,Audit & Assrnce-Hire of outside services,04 November 2011,"2,511.00"
http://statistics.data.gov.uk/id/local-authority-district/23UB,Cheltenham Borough Council,461670,PERFORMANCE,JAN AYERS,C-Z12210-9138,Box Off A/C-TH Hirers Tkt Pd out,18 November 2011,"7,500.00"
http://statistics.data.gov.uk/id/local-authority-district/23UB,Cheltenham Borough Council,461026,992,K B BUILDING SERVICES UK LIMITED,C-H33700-1402,Estate Services-Electricity,11 November 2011,-264.40
http://statistics.data.gov.uk/id/local-authority-district/23UB,Cheltenham Borough Council,461028,991,K B BUILDING SERVICES UK LIMITED,C-H4204G-1104,Gen Wks 2204-Council House repairs,11 November 2011,"1,500.00"
http://statistics.data.gov.uk/id/local-authority-district/23UB,Cheltenham Borough Council,461025,990,K B BUILDING SERVICES UK LIMITED,C-H4208G-1104,Gen Wks 2208-Council House repairs,11 November 2011,"1,500.00"
http://statistics.data.gov.uk/id/local-authority-district/23UB,Cheltenham Borough Council,461029,989,K B BUILDING SERVICES UK LIMITED,C-H4209G-1104,Gen Wks 2209-Council House repairs,11 November 2011,"1,325.00"
http://statistics.data.gov.uk/id/local-authority-district/23UB,Cheltenham Borough Council,461026,992,K B BUILDING SERVICES UK LIMITED,C-H4211G-1104,Gen Wks 2211-Council House repairs,11 November 2011,"2,000.00"
http://statistics.data.gov.uk/id/local-authority-district/23UB,Cheltenham Borough Council,461027,993,K B BUILDING SERVICES UK LIMITED,C-H4211G-1104,Gen Wks 2211-Council House repairs,11 November 2011,"2,000.00"
http://statistics.data.gov.uk/id/local-authority-district/23UB,Cheltenham Borough Council,461030,988,K B BUILDING SERVICES UK LIMITED,C-H4211G-1104,Gen Wks 2211-Council House repairs,11 November 2011,435.00
http://statistics.data.gov.uk/id/local-authority-district/23UB,Cheltenham Borough Council,461027,993,K B BUILDING SERVICES UK LIMITED,C-N11250-9227,Excluded,11 November 2011,-264.40
http://statistics.data.gov.uk/id/local-authority-district/23UB,Cheltenham Borough Council,461029,989,K B BUILDING SERVICES UK LIMITED,C-N11250-9227,Excluded,11 November 2011,-128.00
http://statistics.data.gov.uk/id/local-authority-district/23UB,Cheltenham Borough Council,461030,988,K B BUILDING SERVICES UK LIMITED,C-N11250-9227,Excluded,11 November 2011,-76.00
http://statistics.data.gov.uk/id/local-authority-district/23UB,Cheltenham Borough Council,461028,991,K B BUILDING SERVICES UK LIMITED,C-N11250-9227,Excluded,11 November 2011,-197.40
http://statistics.data.gov.uk/id/local-authority-district/23UB,Cheltenham Borough Council,461025,990,K B BUILDING SERVICES UK LIMITED,C-N11250-9227,Excluded,11 November 2011,-224.00
http://statistics.data.gov.uk/id/local-authority-district/23UB,Cheltenham Borough Council,460828,BATTLE OF BRIT,KEMBLE AIR SERVICE LTD,C-Z12310-3940,TIC Agency-External Event Payments,04 November 2011,850.00
http://statistics.data.gov.uk/id/local-authority-district/23UB,Cheltenham Borough Council,460828,BATTLE OF BRIT,KEMBLE AIR SERVICE LTD,C-Z12310-3940,TIC Agency-External Event Payments,04 November 2011,-85.00
http://statistics.data.gov.uk/id/local-authority-district/23UB,Cheltenham Borough Council,461024,1603,KERRY PLUMBING LIMITED,C-H44752-1104,Dis Adapts-Tech-Council House repairs,11 November 2011,810.00
http://statistics.data.gov.uk/id/local-authority-district/23UB,Cheltenham Borough Council,461023,1605,KERRY PLUMBING LIMITED,C-H44752-1104,Dis Adapts-Tech-Council House repairs,11 November 2011,"1,410.00"
http://statistics.data.gov.uk/id/local-authority-district/23UB,Cheltenham Borough Council,461023,1605,KERRY PLUMBING LIMITED,C-N11250-9227,Excluded,11 November 2011,-82.00
http://statistics.data.gov.uk/id/local-authority-district/23UB,Cheltenham Borough Council,461024,1603,KERRY PLUMBING LIMITED,C-N11250-9227,Excluded,11 November 2011,-82.00
http://statistics.data.gov.uk/id/local-authority-district/23UB,Cheltenham Borough Council,461969,1618,KERRY PLUMBING LIMITED,C-H4214A-1104,Dis Adapts 2214-Council House repairs,25 November 2011,"1,410.00"
http://statistics.data.gov.uk/id/local-authority-district/23UB,Cheltenham Borough Council,461969,1618,KERRY PLUMBING LIMITED,C-N11250-9227,Excluded,25 November 2011,-122.00
http://statistics.data.gov.uk/id/local-authority-district/23UB,Cheltenham Borough Council,460551,5500427461,KPMG LLP,C-D21200-3507,Corp Mgt-Audit Commission fees,04 November 2011,"23,000.00"
http://statistics.data.gov.uk/id/local-authority-district/23UB,Cheltenham Borough Council,461235,100012/CLW,L GALLIMORE,C-L17200-3934,Sport/Play Div-TP Gen-Imprest/Excess,11 November 2011,"1,500.00"
http://statistics.data.gov.uk/id/local-authority-district/23UB,Cheltenham Borough Council,461121,39694,LAND USE CONSULTANTS,C-B51145-3501,Joint Core Stra-Hire of outside services,11 November 2011,"7,838.35"
http://statistics.data.gov.uk/id/local-authority-district/23UB,Cheltenham Borough Council,461298,3899,LLOYDS TSB,C-L11500-3501,Rec Facilities-Hire of outside services,11 November 2011,25.00
http://statistics.data.gov.uk/id/local-authority-district/23UB,Cheltenham Borough Council,461298,3899,LLOYDS TSB,C-L11500-3501,Rec Facilities-Hire of outside services,11 November 2011,45.00
http://statistics.data.gov.uk/id/local-authority-district/23UB,Cheltenham Borough Council,461298,3899,LLOYDS TSB,C-L11500-3501,Rec Facilities-Hire of outside services,11 November 2011,779.00
http://statistics.data.gov.uk/id/local-authority-district/23UB,Cheltenham Borough Council,461929,22409,LLOYDS TSB COMMERCIAL LTD,C-E21100-3501,Car Prks-Off St-Hire of outside services,25 November 2011,210.25
http://statistics.data.gov.uk/id/local-authority-district/23UB,Cheltenham Borough Council,461930,22408,LLOYDS TSB COMMERCIAL LTD,C-E21100-3501,Car Prks-Off St-Hire of outside services,25 November 2011,449.50
http://statistics.data.gov.uk/id/local-authority-district/23UB,Cheltenham Borough Council,461930,22408,LLOYDS TSB COMMERCIAL LTD,C-E21100-3501,Car Prks-Off St-Hire of outside services,25 November 2011,449.50
http://statistics.data.gov.uk/id/local-authority-district/23UB,Cheltenham Borough Council,461930,22408,LLOYDS TSB COMMERCIAL LTD,C-E21100-3501,Car Prks-Off St-Hire of outside services,25 November 2011,449.50
http://statistics.data.gov.uk/id/local-authority-district/23UB,Cheltenham Borough Council,461928,22259,LLOYDS TSB COMMERCIAL LTD,C-E21100-3501,Car Prks-Off St-Hire of outside services,25 November 2011,35.00
http://statistics.data.gov.uk/id/local-authority-district/23UB,Cheltenham Borough Council,461940,11791,LUBBE & SONS BULBS LTD,C-C22140-3127,Nursery-Materials-Bedding,25 November 2011,660.00
http://statistics.data.gov.uk/id/local-authority-district/23UB,Cheltenham Borough Council,461940,11791,LUBBE & SONS BULBS LTD,C-C22140-3127,Nursery-Materials-Bedding,25 November 2011,864.00
http://statistics.data.gov.uk/id/local-authority-district/23UB,Cheltenham Borough Council,461940,11791,LUBBE & SONS BULBS LTD,C-C22140-3127,Nursery-Materials-Bedding,25 November 2011,"2,595.00"
http://statistics.data.gov.uk/id/local-authority-district/23UB,Cheltenham Borough Council,460817,19819,MANSELL CONSTRUCTION SERVICES LTD,C-HC4849-C302,Concrete repair-Building Contractor,04 November 2011,"32,218.13"
http://statistics.data.gov.uk/id/local-authority-district/23UB,Cheltenham Borough Council,460614,20064,MANSELL CONSTRUCTION SERVICES LTD,C-HC4849-C302,Concrete repair-Building Contractor,04 November 2011,"33,758.95"
http://statistics.data.gov.uk/id/local-authority-district/23UB,Cheltenham Borough Council,461286,23,MARK MASTERS,C-L11500-3522,Rec Facilities-Coaching scheme,11 November 2011,126.00
http://statistics.data.gov.uk/id/local-authority-district/23UB,Cheltenham Borough Council,461286,23,MARK MASTERS,C-L11500-3522,Rec Facilities-Coaching scheme,11 November 2011,378.00
http://statistics.data.gov.uk/id/local-authority-district/23UB,Cheltenham Borough Council,461286,23,MARK MASTERS,C-L11500-3522,Rec Facilities-Coaching scheme,11 November 2011,189.00
http://statistics.data.gov.uk/id/local-authority-district/23UB,Cheltenham Borough Council,461286,23,MARK MASTERS,C-L11500-3522,Rec Facilities-Coaching scheme,11 November 2011,46.00
http://statistics.data.gov.uk/id/local-authority-district/23UB,Cheltenham Borough Council,461286,23,MARK MASTERS,C-L11500-3522,Rec Facilities-Coaching scheme,11 November 2011,46.00
http://statistics.data.gov.uk/id/local-authority-district/23UB,Cheltenham Borough Council,461286,23,MARK MASTERS,C-L11500-3522,Rec Facilities-Coaching scheme,11 November 2011,175.00
http://statistics.data.gov.uk/id/local-authority-district/23UB,Cheltenham Borough Council,461931,BRE008,MARTIN COMMERCIAL PROPERTIES LTD,C-L31100-3510,TIC-Promotion & Marketing,25 November 2011,764.75
http://statistics.data.gov.uk/id/local-authority-district/23UB,Cheltenham Borough Council,461638,129509,MATTA PRODUCTS UK LIMITED,C-LC6006-C306,Play Area Maint-Landscape Contractor,18 November 2011,"4,612.96"
http://statistics.data.gov.uk/id/local-authority-district/23UB,Cheltenham Borough Council,461640,129512,MATTA PRODUCTS UK LIMITED,C-LC6006-C306,Play Area Maint-Landscape Contractor,18 November 2011,"2,142.40"
http://statistics.data.gov.uk/id/local-authority-district/23UB,Cheltenham Borough Council,461745,REDACTED,MEARS HOME IMPROVEMENTS LTD,C-HC7440-C801,DFG.96.Act-Grants,18 November 2011,814.75
http://statistics.data.gov.uk/id/local-authority-district/23UB,Cheltenham Borough Council,461766,REDACTED,MEARS HOME IMPROVEMENTS LTD,C-HC7440-C801,DFG.96.Act-Grants,18 November 2011,"1,361.38"
http://statistics.data.gov.uk/id/local-authority-district/23UB,Cheltenham Borough Council,460807,3161,MG WINDOWS CHELTENHAM LIMITED,C-H44350-1104,Window Repairs-Council House repairs,04 November 2011,44.54
http://statistics.data.gov.uk/id/local-authority-district/23UB,Cheltenham Borough Council,460813,3174,MG WINDOWS CHELTENHAM LIMITED,C-H44350-1104,Window Repairs-Council House repairs,04 November 2011,20.00
http://statistics.data.gov.uk/id/local-authority-district/23UB,Cheltenham Borough Council,460808,3159,MG WINDOWS CHELTENHAM LIMITED,C-H44350-1104,Window Repairs-Council House repairs,04 November 2011,166.82
http://statistics.data.gov.uk/id/local-authority-district/23UB,Cheltenham Borough Council,460810,3155,MG WINDOWS CHELTENHAM LIMITED,C-H44350-1104,Window Repairs-Council House repairs,04 November 2011,64.95
http://statistics.data.gov.uk/id/local-authority-district/23UB,Cheltenham Borough Council,460811,3172,MG WINDOWS CHELTENHAM LIMITED,C-H44350-1104,Window Repairs-Council House repairs,04 November 2011,28.60
http://statistics.data.gov.uk/id/local-authority-district/23UB,Cheltenham Borough Council,460812,3171,MG WINDOWS CHELTENHAM LIMITED,C-H44350-1104,Window Repairs-Council House repairs,04 November 2011,26.74
http://statistics.data.gov.uk/id/local-authority-district/23UB,Cheltenham Borough Council,460809,3158,MG WINDOWS CHELTENHAM LIMITED,C-H44350-1104,Window Repairs-Council House repairs,04 November 2011,202.03
http://statistics.data.gov.uk/id/local-authority-district/23UB,Cheltenham Borough Council,461032,3136,MG WINDOWS CHELTENHAM LIMITED,C-H44350-1104,Window Repairs-Council House repairs,11 November 2011,105.70
http://statistics.data.gov.uk/id/local-authority-district/23UB,Cheltenham Borough Council,461039,3175,MG WINDOWS CHELTENHAM LIMITED,C-H44350-1104,Window Repairs-Council House repairs,11 November 2011,21.72
http://statistics.data.gov.uk/id/local-authority-district/23UB,Cheltenham Borough Council,461041,3176,MG WINDOWS CHELTENHAM LIMITED,C-H44350-1104,Window Repairs-Council House repairs,11 November 2011,63.05
http://statistics.data.gov.uk/id/local-authority-district/23UB,Cheltenham Borough Council,460943,3182,MG WINDOWS CHELTENHAM LIMITED,C-H44350-1104,Window Repairs-Council House repairs,11 November 2011,166.42
http://statistics.data.gov.uk/id/local-authority-district/23UB,Cheltenham Borough Council,460942,3179,MG WINDOWS CHELTENHAM LIMITED,C-H44350-1104,Window Repairs-Council House repairs,11 November 2011,143.01
http://statistics.data.gov.uk/id/local-authority-district/23UB,Cheltenham Borough Council,460940,3180,MG WINDOWS CHELTENHAM LIMITED,C-H44350-1104,Window Repairs-Council House repairs,11 November 2011,39.80
http://statistics.data.gov.uk/id/local-authority-district/23UB,Cheltenham Borough Council,460939,3181,MG WINDOWS CHELTENHAM LIMITED,C-H44350-1104,Window Repairs-Council House repairs,11 November 2011,26.94
http://statistics.data.gov.uk/id/local-authority-district/23UB,Cheltenham Borough Council,460937,3183,MG WINDOWS CHELTENHAM LIMITED,C-H44350-1104,Window Repairs-Council House repairs,11 November 2011,44.54
http://statistics.data.gov.uk/id/local-authority-district/23UB,Cheltenham Borough Council,461049,3164,MG WINDOWS CHELTENHAM LIMITED,C-H44350-1104,Window Repairs-Council House repairs,11 November 2011,68.55
http://statistics.data.gov.uk/id/local-authority-district/23UB,Cheltenham Borough Council,461048,3163,MG WINDOWS CHELTENHAM LIMITED,C-H44350-1104,Window Repairs-Council House repairs,11 November 2011,95.25
http://statistics.data.gov.uk/id/local-authority-district/23UB,Cheltenham Borough Council,461047,3165,MG WINDOWS CHELTENHAM LIMITED,C-H44350-1104,Window Repairs-Council House repairs,11 November 2011,41.31
http://statistics.data.gov.uk/id/local-authority-district/23UB,Cheltenham Borough Council,461046,3167,MG WINDOWS CHELTENHAM LIMITED,C-H44350-1104,Window Repairs-Council House repairs,11 November 2011,75.44
http://statistics.data.gov.uk/id/local-authority-district/23UB,Cheltenham Borough Council,461045,3168,MG WINDOWS CHELTENHAM LIMITED,C-H44350-1104,Window Repairs-Council House repairs,11 November 2011,30.74
http://statistics.data.gov.uk/id/local-authority-district/23UB,Cheltenham Borough Council,461044,3169,MG WINDOWS CHELTENHAM LIMITED,C-H44350-1104,Window Repairs-Council House repairs,11 November 2011,48.18
http://statistics.data.gov.uk/id/local-authority-district/23UB,Cheltenham Borough Council,461043,3170,MG WINDOWS CHELTENHAM LIMITED,C-H44350-1104,Window Repairs-Council House repairs,11 November 2011,44.31
http://statistics.data.gov.uk/id/local-authority-district/23UB,Cheltenham Borough Council,461042,3166,MG WINDOWS CHELTENHAM LIMITED,C-H44350-1104,Window Repairs-Council House repairs,11 November 2011,36.19
http://statistics.data.gov.uk/id/local-authority-district/23UB,Cheltenham Borough Council,461040,3178,MG WINDOWS CHELTENHAM LIMITED,C-H44350-1104,Window Repairs-Council House repairs,11 November 2011,20.00
http://statistics.data.gov.uk/id/local-authority-district/23UB,Cheltenham Borough Council,461038,3177,MG WINDOWS CHELTENHAM LIMITED,C-H44350-1104,Window Repairs-Council House repairs,11 November 2011,143.77
http://statistics.data.gov.uk/id/local-authority-district/23UB,Cheltenham Borough Council,461033,3133,MG WINDOWS CHELTENHAM LIMITED,C-H44350-1104,Window Repairs-Council House repairs,11 November 2011,20.00
http://statistics.data.gov.uk/id/local-authority-district/23UB,Cheltenham Borough Council,461035,3137,MG WINDOWS CHELTENHAM LIMITED,C-H44350-1104,Window Repairs-Council House repairs,11 November 2011,33.88
http://statistics.data.gov.uk/id/local-authority-district/23UB,Cheltenham Borough Council,461037,3173,MG WINDOWS CHELTENHAM LIMITED,C-H44350-1104,Window Repairs-Council House repairs,11 November 2011,46.90
http://statistics.data.gov.uk/id/local-authority-district/23UB,Cheltenham Borough Council,461036,3134,MG WINDOWS CHELTENHAM LIMITED,C-H44350-1104,Window Repairs-Council House repairs,11 November 2011,24.00
http://statistics.data.gov.uk/id/local-authority-district/23UB,Cheltenham Borough Council,461034,3135,MG WINDOWS CHELTENHAM LIMITED,C-H44600-1104,J D Court-Council House repairs,11 November 2011,59.17
http://statistics.data.gov.uk/id/local-authority-district/23UB,Cheltenham Borough Council,461510,3215,MG WINDOWS CHELTENHAM LIMITED,C-H44350-1104,Window Repairs-Council House repairs,18 November 2011,100.00
http://statistics.data.gov.uk/id/local-authority-district/23UB,Cheltenham Borough Council,461517,3193,MG WINDOWS CHELTENHAM LIMITED,C-H44350-1104,Window Repairs-Council House repairs,18 November 2011,175.12
http://statistics.data.gov.uk/id/local-authority-district/23UB,Cheltenham Borough Council,461526,3189,MG WINDOWS CHELTENHAM LIMITED,C-H44350-1104,Window Repairs-Council House repairs,18 November 2011,135.71
http://statistics.data.gov.uk/id/local-authority-district/23UB,Cheltenham Borough Council,461525,3197,MG WINDOWS CHELTENHAM LIMITED,C-H44350-1104,Window Repairs-Council House repairs,18 November 2011,80.76
http://statistics.data.gov.uk/id/local-authority-district/23UB,Cheltenham Borough Council,461524,3211,MG WINDOWS CHELTENHAM LIMITED,C-H44350-1104,Window Repairs-Council House repairs,18 November 2011,160.00
http://statistics.data.gov.uk/id/local-authority-district/23UB,Cheltenham Borough Council,461523,3194,MG WINDOWS CHELTENHAM LIMITED,C-H44350-1104,Window Repairs-Council House repairs,18 November 2011,28.99
http://statistics.data.gov.uk/id/local-authority-district/23UB,Cheltenham Borough Council,461522,3206,MG WINDOWS CHELTENHAM LIMITED,C-H44350-1104,Window Repairs-Council House repairs,18 November 2011,218.27
http://statistics.data.gov.uk/id/local-authority-district/23UB,Cheltenham Borough Council,461521,3205,MG WINDOWS CHELTENHAM LIMITED,C-H44350-1104,Window Repairs-Council House repairs,18 November 2011,109.70
http://statistics.data.gov.uk/id/local-authority-district/23UB,Cheltenham Borough Council,461520,3204,MG WINDOWS CHELTENHAM LIMITED,C-H44350-1104,Window Repairs-Council House repairs,18 November 2011,196.80
http://statistics.data.gov.uk/id/local-authority-district/23UB,Cheltenham Borough Council,461519,3185,MG WINDOWS CHELTENHAM LIMITED,C-H44350-1104,Window Repairs-Council House repairs,18 November 2011,149.34
http://statistics.data.gov.uk/id/local-authority-district/23UB,Cheltenham Borough Council,461518,3216,MG WINDOWS CHELTENHAM LIMITED,C-H44350-1104,Window Repairs-Council House repairs,18 November 2011,8.50
http://statistics.data.gov.uk/id/local-authority-district/23UB,Cheltenham Borough Council,461535,3199,MG WINDOWS CHELTENHAM LIMITED,C-H44350-1104,Window Repairs-Council House repairs,18 November 2011,33.58
http://statistics.data.gov.uk/id/local-authority-district/23UB,Cheltenham Borough Council,461534,3202,MG WINDOWS CHELTENHAM LIMITED,C-H44350-1104,Window Repairs-Council House repairs,18 November 2011,133.13
http://statistics.data.gov.uk/id/local-authority-district/23UB,Cheltenham Borough Council,461533,3184,MG WINDOWS CHELTENHAM LIMITED,C-H44350-1104,Window Repairs-Council House repairs,18 November 2011,117.25
http://statistics.data.gov.uk/id/local-authority-district/23UB,Cheltenham Borough Council,461532,3186,MG WINDOWS CHELTENHAM LIMITED,C-H44350-1104,Window Repairs-Council House repairs,18 November 2011,25.80
http://statistics.data.gov.uk/id/local-authority-district/23UB,Cheltenham Borough Council,461531,3203,MG WINDOWS CHELTENHAM LIMITED,C-H44350-1104,Window Repairs-Council House repairs,18 November 2011,38.18
http://statistics.data.gov.uk/id/local-authority-district/23UB,Cheltenham Borough Council,461530,3200,MG WINDOWS CHELTENHAM LIMITED,C-H44350-1104,Window Repairs-Council House repairs,18 November 2011,25.80
http://statistics.data.gov.uk/id/local-authority-district/23UB,Cheltenham Borough Council,461529,3195,MG WINDOWS CHELTENHAM LIMITED,C-H44350-1104,Window Repairs-Council House repairs,18 November 2011,23.95
http://statistics.data.gov.uk/id/local-authority-district/23UB,Cheltenham Borough Council,461528,3212,MG WINDOWS CHELTENHAM LIMITED,C-H44350-1104,Window Repairs-Council House repairs,18 November 2011,21.72
http://statistics.data.gov.uk/id/local-authority-district/23UB,Cheltenham Borough Council,461527,3188,MG WINDOWS CHELTENHAM LIMITED,C-H44350-1104,Window Repairs-Council House repairs,18 November 2011,30.74
http://statistics.data.gov.uk/id/local-authority-district/23UB,Cheltenham Borough Council,461542,3191,MG WINDOWS CHELTENHAM LIMITED,C-H44350-1104,Window Repairs-Council House repairs,18 November 2011,69.00
http://statistics.data.gov.uk/id/local-authority-district/23UB,Cheltenham Borough Council,461541,3192,MG WINDOWS CHELTENHAM LIMITED,C-H44350-1104,Window Repairs-Council House repairs,18 November 2011,20.90
http://statistics.data.gov.uk/id/local-authority-district/23UB,Cheltenham Borough Council,461540,3187,MG WINDOWS CHELTENHAM LIMITED,C-H44350-1104,Window Repairs-Council House repairs,18 November 2011,103.05
http://statistics.data.gov.uk/id/local-authority-district/23UB,Cheltenham Borough Council,461539,3196,MG WINDOWS CHELTENHAM LIMITED,C-H44350-1104,Window Repairs-Council House repairs,18 November 2011,46.65
http://statistics.data.gov.uk/id/local-authority-district/23UB,Cheltenham Borough Council,461538,3201,MG WINDOWS CHELTENHAM LIMITED,C-H44350-1104,Window Repairs-Council House repairs,18 November 2011,28.00
http://statistics.data.gov.uk/id/local-authority-district/23UB,Cheltenham Borough Council,461537,3190,MG WINDOWS CHELTENHAM LIMITED,C-H44350-1104,Window Repairs-Council House repairs,18 November 2011,23.45
http://statistics.data.gov.uk/id/local-authority-district/23UB,Cheltenham Borough Council,461536,3198,MG WINDOWS CHELTENHAM LIMITED,C-H44350-1104,Window Repairs-Council House repairs,18 November 2011,23.75
http://statistics.data.gov.uk/id/local-authority-district/23UB,Cheltenham Borough Council,461516,3217,MG WINDOWS CHELTENHAM LIMITED,C-H44350-1104,Window Repairs-Council House repairs,18 November 2011,63.89
http://statistics.data.gov.uk/id/local-authority-district/23UB,Cheltenham Borough Council,461511,3213,MG WINDOWS CHELTENHAM LIMITED,C-H44350-1104,Window Repairs-Council House repairs,18 November 2011,98.00
http://statistics.data.gov.uk/id/local-authority-district/23UB,Cheltenham Borough Council,461513,3214,MG WINDOWS CHELTENHAM LIMITED,C-H44350-1104,Window Repairs-Council House repairs,18 November 2011,49.41
http://statistics.data.gov.uk/id/local-authority-district/23UB,Cheltenham Borough Council,461514,3221,MG WINDOWS CHELTENHAM LIMITED,C-H44350-1104,Window Repairs-Council House repairs,18 November 2011,39.80
http://statistics.data.gov.uk/id/local-authority-district/23UB,Cheltenham Borough Council,461515,3210,MG WINDOWS CHELTENHAM LIMITED,C-H44350-1104,Window Repairs-Council House repairs,18 November 2011,20.00
http://statistics.data.gov.uk/id/local-authority-district/23UB,Cheltenham Borough Council,461512,3222,MG WINDOWS CHELTENHAM LIMITED,C-H44350-1104,Window Repairs-Council House repairs,18 November 2011,20.00
http://statistics.data.gov.uk/id/local-authority-district/23UB,Cheltenham Borough Council,461417,3160,MG WINDOWS CHELTENHAM LIMITED,C-HC4841-C302,Major Voids-Building Contractor,18 November 2011,434.00
http://statistics.data.gov.uk/id/local-authority-district/23UB,Cheltenham Borough Council,462001,3231,MG WINDOWS CHELTENHAM LIMITED,C-H44350-1104,Window Repairs-Council House repairs,25 November 2011,27.70
http://statistics.data.gov.uk/id/local-authority-district/23UB,Cheltenham Borough Council,462009,3250,MG WINDOWS CHELTENHAM LIMITED,C-H44350-1104,Window Repairs-Council House repairs,25 November 2011,25.80
http://statistics.data.gov.uk/id/local-authority-district/23UB,Cheltenham Borough Council,462026,3233,MG WINDOWS CHELTENHAM LIMITED,C-H44350-1104,Window Repairs-Council House repairs,25 November 2011,102.70
http://statistics.data.gov.uk/id/local-authority-district/23UB,Cheltenham Borough Council,462025,3240,MG WINDOWS CHELTENHAM LIMITED,C-H44350-1104,Window Repairs-Council House repairs,25 November 2011,70.15
http://statistics.data.gov.uk/id/local-authority-district/23UB,Cheltenham Borough Council,462024,3235,MG WINDOWS CHELTENHAM LIMITED,C-H44350-1104,Window Repairs-Council House repairs,25 November 2011,239.43
http://statistics.data.gov.uk/id/local-authority-district/23UB,Cheltenham Borough Council,462023,3224,MG WINDOWS CHELTENHAM LIMITED,C-H44350-1104,Window Repairs-Council House repairs,25 November 2011,30.58
http://statistics.data.gov.uk/id/local-authority-district/23UB,Cheltenham Borough Council,462022,3246,MG WINDOWS CHELTENHAM LIMITED,C-H44350-1104,Window Repairs-Council House repairs,25 November 2011,110.00
http://statistics.data.gov.uk/id/local-authority-district/23UB,Cheltenham Borough Council,462021,3227,MG WINDOWS CHELTENHAM LIMITED,C-H44350-1104,Window Repairs-Council House repairs,25 November 2011,20.00
http://statistics.data.gov.uk/id/local-authority-district/23UB,Cheltenham Borough Council,462020,3228,MG WINDOWS CHELTENHAM LIMITED,C-H44350-1104,Window Repairs-Council House repairs,25 November 2011,92.07
http://statistics.data.gov.uk/id/local-authority-district/23UB,Cheltenham Borough Council,462019,3249,MG WINDOWS CHELTENHAM LIMITED,C-H44350-1104,Window Repairs-Council House repairs,25 November 2011,37.95
http://statistics.data.gov.uk/id/local-authority-district/23UB,Cheltenham Borough Council,462018,3229,MG WINDOWS CHELTENHAM LIMITED,C-H44350-1104,Window Repairs-Council House repairs,25 November 2011,30.00
http://statistics.data.gov.uk/id/local-authority-district/23UB,Cheltenham Borough Council,462028,2318,MG WINDOWS CHELTENHAM LIMITED,C-H44350-1104,Window Repairs-Council House repairs,25 November 2011,48.00
http://statistics.data.gov.uk/id/local-authority-district/23UB,Cheltenham Borough Council,462027,3220,MG WINDOWS CHELTENHAM LIMITED,C-H44350-1104,Window Repairs-Council House repairs,25 November 2011,131.65
http://statistics.data.gov.uk/id/local-authority-district/23UB,Cheltenham Borough Council,462017,3245,MG WINDOWS CHELTENHAM LIMITED,C-H44350-1104,Window Repairs-Council House repairs,25 November 2011,138.44
http://statistics.data.gov.uk/id/local-authority-district/23UB,Cheltenham Borough Council,462016,3242,MG WINDOWS CHELTENHAM LIMITED,C-H44350-1104,Window Repairs-Council House repairs,25 November 2011,31.90
http://statistics.data.gov.uk/id/local-authority-district/23UB,Cheltenham Borough Council,462015,3236,MG WINDOWS CHELTENHAM LIMITED,C-H44350-1104,Window Repairs-Council House repairs,25 November 2011,28.60
http://statistics.data.gov.uk/id/local-authority-district/23UB,Cheltenham Borough Council,462014,3241,MG WINDOWS CHELTENHAM LIMITED,C-H44350-1104,Window Repairs-Council House repairs,25 November 2011,30.00
http://statistics.data.gov.uk/id/local-authority-district/23UB,Cheltenham Borough Council,462013,3226,MG WINDOWS CHELTENHAM LIMITED,C-H44350-1104,Window Repairs-Council House repairs,25 November 2011,95.70
http://statistics.data.gov.uk/id/local-authority-district/23UB,Cheltenham Borough Council,462012,3244,MG WINDOWS CHELTENHAM LIMITED,C-H44350-1104,Window Repairs-Council House repairs,25 November 2011,63.75
http://statistics.data.gov.uk/id/local-authority-district/23UB,Cheltenham Borough Council,462011,3247,MG WINDOWS CHELTENHAM LIMITED,C-H44350-1104,Window Repairs-Council House repairs,25 November 2011,85.70
http://statistics.data.gov.uk/id/local-authority-district/23UB,Cheltenham Borough Council,462010,3243,MG WINDOWS CHELTENHAM LIMITED,C-H44350-1104,Window Repairs-Council House repairs,25 November 2011,29.60
http://statistics.data.gov.uk/id/local-authority-district/23UB,Cheltenham Borough Council,462008,3248,MG WINDOWS CHELTENHAM LIMITED,C-H44350-1104,Window Repairs-Council House repairs,25 November 2011,29.55
http://statistics.data.gov.uk/id/local-authority-district/23UB,Cheltenham Borough Council,462003,3238,MG WINDOWS CHELTENHAM LIMITED,C-H44350-1104,Window Repairs-Council House repairs,25 November 2011,41.30
http://statistics.data.gov.uk/id/local-authority-district/23UB,Cheltenham Borough Council,462005,3237,MG WINDOWS CHELTENHAM LIMITED,C-H44350-1104,Window Repairs-Council House repairs,25 November 2011,34.40
http://statistics.data.gov.uk/id/local-authority-district/23UB,Cheltenham Borough Council,462006,3219,MG WINDOWS CHELTENHAM LIMITED,C-H44350-1104,Window Repairs-Council House repairs,25 November 2011,120.64
http://statistics.data.gov.uk/id/local-authority-district/23UB,Cheltenham Borough Council,462007,3223,MG WINDOWS CHELTENHAM LIMITED,C-H44350-1104,Window Repairs-Council House repairs,25 November 2011,179.31
http://statistics.data.gov.uk/id/local-authority-district/23UB,Cheltenham Borough Council,462004,3230,MG WINDOWS CHELTENHAM LIMITED,C-H44350-1104,Window Repairs-Council House repairs,25 November 2011,22.85
http://statistics.data.gov.uk/id/local-authority-district/23UB,Cheltenham Borough Council,462002,3234,MG WINDOWS CHELTENHAM LIMITED,C-H44350-1104,Window Repairs-Council House repairs,25 November 2011,24.00
http://statistics.data.gov.uk/id/local-authority-district/23UB,Cheltenham Borough Council,462059,3162,MG WINDOWS CHELTENHAM LIMITED,C-HC4847-C302,AldridgeCl Roof-Building Contractor,25 November 2011,30.08
http://statistics.data.gov.uk/id/local-authority-district/23UB,Cheltenham Borough Council,462144,1000629,MIDLANDS VEHICLE RENTAL LIMITED,C-C24100-2701,Fleet Maint-Hired transport,25 November 2011,"1,050.00"
http://statistics.data.gov.uk/id/local-authority-district/23UB,Cheltenham Borough Council,460787,1110,MISS HELEN WHITFIELD,C-L11500-3522,Rec Facilities-Coaching scheme,04 November 2011,105.00
http://statistics.data.gov.uk/id/local-authority-district/23UB,Cheltenham Borough Council,460787,1110,MISS HELEN WHITFIELD,C-L11500-3522,Rec Facilities-Coaching scheme,04 November 2011,84.00
http://statistics.data.gov.uk/id/local-authority-district/23UB,Cheltenham Borough Council,460787,1110,MISS HELEN WHITFIELD,C-L11500-3522,Rec Facilities-Coaching scheme,04 November 2011,105.00
http://statistics.data.gov.uk/id/local-authority-district/23UB,Cheltenham Borough Council,460787,1110,MISS HELEN WHITFIELD,C-L11500-3522,Rec Facilities-Coaching scheme,04 November 2011,84.00
http://statistics.data.gov.uk/id/local-authority-district/23UB,Cheltenham Borough Council,460787,1110,MISS HELEN WHITFIELD,C-L11500-3522,Rec Facilities-Coaching scheme,04 November 2011,105.00
http://statistics.data.gov.uk/id/local-authority-district/23UB,Cheltenham Borough Council,460787,1110,MISS HELEN WHITFIELD,C-L11500-3522,Rec Facilities-Coaching scheme,04 November 2011,84.00
http://statistics.data.gov.uk/id/local-authority-district/23UB,Cheltenham Borough Council,461196,REDACTED,REDACTED,C-P12250-9104,Tenants Rent-Refunds,11 November 2011,"1,412.96"
http://statistics.data.gov.uk/id/local-authority-district/23UB,Cheltenham Borough Council,460758,REDACTED,REDACTED,C-HC4020-C808,St Pauls NAR-Decant costs other,04 November 2011,600.00
http://statistics.data.gov.uk/id/local-authority-district/23UB,Cheltenham Borough Council,461957,11272,MORGAN LAMBERT,C-H46100-1104,Cen.Heat.Serv-Council House repairs,25 November 2011,"1,056.00"
http://statistics.data.gov.uk/id/local-authority-district/23UB,Cheltenham Borough Council,462089,SOLICITORS FEE,MORRIS ORMAN HEARLE,C-E21100-3934,Car Prks-Off St-TP Gen-Imprest/Excess,25 November 2011,"5,504.08"
http://statistics.data.gov.uk/id/local-authority-district/23UB,Cheltenham Borough Council,460577,1259,MPL WROUGHT IRON,C-H44752-1104,Dis Adapts-Tech-Council House repairs,04 November 2011,300.00
http://statistics.data.gov.uk/id/local-authority-district/23UB,Cheltenham Borough Council,460578,1248,MPL WROUGHT IRON,C-H46250-1104,Drain Clearing-Council House repairs,04 November 2011,600.00
http://statistics.data.gov.uk/id/local-authority-district/23UB,Cheltenham Borough Council,460753,REDACTED,REDACTED,C-H22400-3244,Homelessness-Supporting People,04 November 2011,550.00
http://statistics.data.gov.uk/id/local-authority-district/23UB,Cheltenham Borough Council,460753,REDACTED,REDACTED,C-H22400-3244,Homelessness-Supporting People,18 November 2011,550.00
http://statistics.data.gov.uk/id/local-authority-district/23UB,Cheltenham Borough Council,460753,REDACTED,REDACTED,C-H22400-3244,Homelessness-Supporting People,18 November 2011,550.00
http://statistics.data.gov.uk/id/local-authority-district/23UB,Cheltenham Borough Council,461199,REDACTED,REDACTED,C-P12250-9104,Tenants Rent-Refunds,11 November 2011,768.22
http://statistics.data.gov.uk/id/local-authority-district/23UB,Cheltenham Borough Council,461120,363,MR M BURKE,C-H22400-5204,Homelessness-Provision of accommo(B&B),11 November 2011,229.00
http://statistics.data.gov.uk/id/local-authority-district/23UB,Cheltenham Borough Council,461129,362,MR M BURKE,C-H22400-5204,Homelessness-Provision of accommo(B&B),11 November 2011,458.00
http://statistics.data.gov.uk/id/local-authority-district/23UB,Cheltenham Borough Council,461128,361,MR M BURKE,C-H22400-5204,Homelessness-Provision of accommo(B&B),11 November 2011,458.00
http://statistics.data.gov.uk/id/local-authority-district/23UB,Cheltenham Borough Council,461127,360,MR M BURKE,C-H22400-5204,Homelessness-Provision of accommo(B&B),11 November 2011,68.70
http://statistics.data.gov.uk/id/local-authority-district/23UB,Cheltenham Borough Council,461126,364,MR M BURKE,C-H22400-5204,Homelessness-Provision of accommo(B&B),11 November 2011,34.35
http://statistics.data.gov.uk/id/local-authority-district/23UB,Cheltenham Borough Council,460558,L598,MR M J LOVERIDGE,C-H46300-1104,Comm.Light.Mtce-Council House repairs,04 November 2011,687.24
http://statistics.data.gov.uk/id/local-authority-district/23UB,Cheltenham Borough Council,460560,L607,MR M J LOVERIDGE,C-H46300-1104,Comm.Light.Mtce-Council House repairs,04 November 2011,822.13
http://statistics.data.gov.uk/id/local-authority-district/23UB,Cheltenham Borough Council,460559,L606,MR M J LOVERIDGE,C-H46300-1104,Comm.Light.Mtce-Council House repairs,04 November 2011,616.60
http://statistics.data.gov.uk/id/local-authority-district/23UB,Cheltenham Borough Council,461941,1111125,MR M JONES AND MRS M JONES,C-H22400-5204,Homelessness-Provision of accommo(B&B),25 November 2011,17.85
http://statistics.data.gov.uk/id/local-authority-district/23UB,Cheltenham Borough Council,461943,1111124,MR M JONES AND MRS M JONES,C-H22400-5204,Homelessness-Provision of accommo(B&B),25 November 2011,100.05
http://statistics.data.gov.uk/id/local-authority-district/23UB,Cheltenham Borough Council,461944,1111123,MR M JONES AND MRS M JONES,C-H22400-5204,Homelessness-Provision of accommo(B&B),25 November 2011,100.05
http://statistics.data.gov.uk/id/local-authority-district/23UB,Cheltenham Borough Council,461942,1111122,MR M JONES AND MRS M JONES,C-H22400-5204,Homelessness-Provision of accommo(B&B),25 November 2011,164.80
http://statistics.data.gov.uk/id/local-authority-district/23UB,Cheltenham Borough Council,461945,1111121,MR M JONES AND MRS M JONES,C-H22400-5204,Homelessness-Provision of accommo(B&B),25 November 2011,164.80
http://statistics.data.gov.uk/id/local-authority-district/23UB,Cheltenham Borough Council,461202,REDACTED,REDACTED,C-P12250-9104,Tenants Rent-Refunds,11 November 2011,528.00
http://statistics.data.gov.uk/id/local-authority-district/23UB,Cheltenham Borough Council,461733,REDACTED,REDACTED,C-P12250-9104,Tenants Rent-Refunds,18 November 2011,518.24
http://statistics.data.gov.uk/id/local-authority-district/23UB,Cheltenham Borough Council,461728,REDACTED,REDACTED,C-P12250-9104,Tenants Rent-Refunds,18 November 2011,849.80
http://statistics.data.gov.uk/id/local-authority-district/23UB,Cheltenham Borough Council,461763,SETTLEMENT,MRS R CREED T/A HOWLERS COMEDY CLUB,C-N13125-9205,ASH Ledger-Town Hall Invoices Paid,18 November 2011,-346.14
http://statistics.data.gov.uk/id/local-authority-district/23UB,Cheltenham Borough Council,461763,SETTLEMENT,MRS R CREED T/A HOWLERS COMEDY CLUB,C-Z12210-9138,Box Off A/C-TH Hirers Tkt Pd out,18 November 2011,"1,536.00"
http://statistics.data.gov.uk/id/local-authority-district/23UB,Cheltenham Borough Council,462097,REDACTED,REDACTED,C-P12250-9104,Tenants Rent-Refunds,25 November 2011,"1,305.00"
http://statistics.data.gov.uk/id/local-authority-district/23UB,Cheltenham Borough Council,461761,REDACTED,REDACTED,C-D30200-8804,Misc Props & Ld-Misc Props Rent Deposits,18 November 2011,649.98
http://statistics.data.gov.uk/id/local-authority-district/23UB,Cheltenham Borough Council,461011,D208,NATIONAL EXPRESS LIMITED,C-Z12310-3941,TIC Agency-Coach Tours - Expenses,11 November 2011,"1,565.24"
http://statistics.data.gov.uk/id/local-authority-district/23UB,Cheltenham Borough Council,460917,D208,NATIONAL EXPRESS LIMITED,C-Z12310-3941,TIC Agency-Coach Tours - Expenses,11 November 2011,-34.65
http://statistics.data.gov.uk/id/local-authority-district/23UB,Cheltenham Borough Council,461960,E820778,NCC ESCROW INTERNATIONAL LIMITED,C-D11300-3623,Accountancy-Cmpter-sftwre lic purch,25 November 2011,"1,075.00"
http://statistics.data.gov.uk/id/local-authority-district/23UB,Cheltenham Borough Council,461153,11567,NETT UK LIMITED,C-1T23G1-3568,Hgh Schl Rocks-Artist Fees,11 November 2011,"2,948.01"
http://statistics.data.gov.uk/id/local-authority-district/23UB,Cheltenham Borough Council,461665,11586,NETT UK LIMITED,C-1T27G1-3568,Illegal Eagles-Artist Fees,18 November 2011,"4,756.11"
http://statistics.data.gov.uk/id/local-authority-district/23UB,Cheltenham Borough Council,461665,11586,NETT UK LIMITED,C-N13125-9205,ASH Ledger-Town Hall Invoices Paid,18 November 2011,-124.80
http://statistics.data.gov.uk/id/local-authority-district/23UB,Cheltenham Borough Council,460736,4597,OASIS ENVIRONMENTS LIMITED,C-D14100-1101,Depot Building-General building repairs,04 November 2011,841.20
http://statistics.data.gov.uk/id/local-authority-district/23UB,Cheltenham Borough Council,460727,31816,OCONNOR CONSTRUCTION AND  PLANT HIRE,C-C24100-2701,Fleet Maint-Hired transport,04 November 2011,250.00
http://statistics.data.gov.uk/id/local-authority-district/23UB,Cheltenham Borough Council,460547,31792,OCONNOR CONSTRUCTION AND  PLANT HIRE,C-C24100-2701,Fleet Maint-Hired transport,04 November 2011,250.00
http://statistics.data.gov.uk/id/local-authority-district/23UB,Cheltenham Borough Council,461649,31846,OCONNOR CONSTRUCTION AND  PLANT HIRE,C-C24100-2701,Fleet Maint-Hired transport,18 November 2011,250.00
http://statistics.data.gov.uk/id/local-authority-district/23UB,Cheltenham Borough Council,461662,31881,OCONNOR CONSTRUCTION AND  PLANT HIRE,C-C24100-2701,Fleet Maint-Hired transport,18 November 2011,250.00
http://statistics.data.gov.uk/id/local-authority-district/23UB,Cheltenham Borough Council,461077,951429051,OFFICE DEPOT,C-C23110-3101,Street Cleaning-Equipment purchases,11 November 2011,129.68
http://statistics.data.gov.uk/id/local-authority-district/23UB,Cheltenham Borough Council,461076,951369211,OFFICE DEPOT,C-D11830-3410,Corporate Print-Stationery & office supp,11 November 2011,122.00
http://statistics.data.gov.uk/id/local-authority-district/23UB,Cheltenham Borough Council,461076,951369211,OFFICE DEPOT,C-D11830-3410,Corporate Print-Stationery & office supp,11 November 2011,9.16
http://statistics.data.gov.uk/id/local-authority-district/23UB,Cheltenham Borough Council,461076,951369211,OFFICE DEPOT,C-D12430-3410,Housing & CT Be-Stationery & office supp,11 November 2011,5.25
http://statistics.data.gov.uk/id/local-authority-district/23UB,Cheltenham Borough Council,461078,951452736,OFFICE DEPOT,C-D12485-3410,Procurement-Stationery & office supps,11 November 2011,1.84
http://statistics.data.gov.uk/id/local-authority-district/23UB,Cheltenham Borough Council,461076,951369211,OFFICE DEPOT,C-D13100-3410,Muni Off Blgs-Stationery & office supps,11 November 2011,25.96
http://statistics.data.gov.uk/id/local-authority-district/23UB,Cheltenham Borough Council,461076,951369211,OFFICE DEPOT,C-D21100-3501,Dem Process-Hire of outside services,11 November 2011,15.46
http://statistics.data.gov.uk/id/local-authority-district/23UB,Cheltenham Borough Council,461076,951369211,OFFICE DEPOT,C-D21400-3410,Electoral Regn-Stationery & office supps,11 November 2011,12.98
http://statistics.data.gov.uk/id/local-authority-district/23UB,Cheltenham Borough Council,461076,951369211,OFFICE DEPOT,C-E36200-3410,On-St Car Prkng-Stationery & office supp,11 November 2011,14.48
http://statistics.data.gov.uk/id/local-authority-district/23UB,Cheltenham Borough Council,461076,951369211,OFFICE DEPOT,C-E71150-3410,Public Pro Div-Stationery & office supps,11 November 2011,7.24
http://statistics.data.gov.uk/id/local-authority-district/23UB,Cheltenham Borough Council,461076,951369211,OFFICE DEPOT,C-E71150-3410,Public Pro Div-Stationery & office supps,11 November 2011,1.00
http://statistics.data.gov.uk/id/local-authority-district/23UB,Cheltenham Borough Council,461076,951369211,OFFICE DEPOT,C-E71150-3410,Public Pro Div-Stationery & office supps,11 November 2011,7.24
http://statistics.data.gov.uk/id/local-authority-district/23UB,Cheltenham Borough Council,461076,951369211,OFFICE DEPOT,C-E71150-3410,Public Pro Div-Stationery & office supps,11 November 2011,1.43
http://statistics.data.gov.uk/id/local-authority-district/23UB,Cheltenham Borough Council,461076,951369211,OFFICE DEPOT,C-E71150-3410,Public Pro Div-Stationery & office supps,11 November 2011,9.46
http://statistics.data.gov.uk/id/local-authority-district/23UB,Cheltenham Borough Council,461076,951369211,OFFICE DEPOT,C-E71150-3410,Public Pro Div-Stationery & office supps,11 November 2011,0.93
http://statistics.data.gov.uk/id/local-authority-district/23UB,Cheltenham Borough Council,461076,951369211,OFFICE DEPOT,C-E71150-3410,Public Pro Div-Stationery & office supps,11 November 2011,1.34
http://statistics.data.gov.uk/id/local-authority-district/23UB,Cheltenham Borough Council,461076,951369211,OFFICE DEPOT,C-E72500-3410,Built Env Div-Stationery & office supps,11 November 2011,7.24
http://statistics.data.gov.uk/id/local-authority-district/23UB,Cheltenham Borough Council,461076,951369211,OFFICE DEPOT,C-E72500-3410,Built Env Div-Stationery & office supps,11 November 2011,0.44
http://statistics.data.gov.uk/id/local-authority-district/23UB,Cheltenham Borough Council,461076,951369211,OFFICE DEPOT,C-E72500-3410,Built Env Div-Stationery & office supps,11 November 2011,5.79
http://statistics.data.gov.uk/id/local-authority-district/23UB,Cheltenham Borough Council,461076,951369211,OFFICE DEPOT,C-E72500-3410,Built Env Div-Stationery & office supps,11 November 2011,2.71
http://statistics.data.gov.uk/id/local-authority-district/23UB,Cheltenham Borough Council,461076,951369211,OFFICE DEPOT,C-E72500-3410,Built Env Div-Stationery & office supps,11 November 2011,0.96
http://statistics.data.gov.uk/id/local-authority-district/23UB,Cheltenham Borough Council,461076,951369211,OFFICE DEPOT,C-E72500-3410,Built Env Div-Stationery & office supps,11 November 2011,4.72
http://statistics.data.gov.uk/id/local-authority-district/23UB,Cheltenham Borough Council,461076,951369211,OFFICE DEPOT,C-E72500-3410,Built Env Div-Stationery & office supps,11 November 2011,7.44
http://statistics.data.gov.uk/id/local-authority-district/23UB,Cheltenham Borough Council,461076,951369211,OFFICE DEPOT,C-E72500-3410,Built Env Div-Stationery & office supps,11 November 2011,10.44
http://statistics.data.gov.uk/id/local-authority-district/23UB,Cheltenham Borough Council,461076,951369211,OFFICE DEPOT,C-E72500-3410,Built Env Div-Stationery & office supps,11 November 2011,2.12
http://statistics.data.gov.uk/id/local-authority-district/23UB,Cheltenham Borough Council,461070,951445653,OFFICE DEPOT,C-L11500-3101,Rec Facilities-Equipment purchases,11 November 2011,7.99
http://statistics.data.gov.uk/id/local-authority-district/23UB,Cheltenham Borough Council,461070,951445653,OFFICE DEPOT,C-L11500-3101,Rec Facilities-Equipment purchases,11 November 2011,18.44
http://statistics.data.gov.uk/id/local-authority-district/23UB,Cheltenham Borough Council,461070,951445653,OFFICE DEPOT,C-L11500-3410,Rec Facilities-Stationery & office supps,11 November 2011,10.38
http://statistics.data.gov.uk/id/local-authority-district/23UB,Cheltenham Borough Council,461070,951445653,OFFICE DEPOT,C-L11500-3410,Rec Facilities-Stationery & office supps,11 November 2011,2.79
http://statistics.data.gov.uk/id/local-authority-district/23UB,Cheltenham Borough Council,461070,951445653,OFFICE DEPOT,C-L11500-3410,Rec Facilities-Stationery & office supps,11 November 2011,2.70
http://statistics.data.gov.uk/id/local-authority-district/23UB,Cheltenham Borough Council,461070,951445653,OFFICE DEPOT,C-L11500-3410,Rec Facilities-Stationery & office supps,11 November 2011,3.78
http://statistics.data.gov.uk/id/local-authority-district/23UB,Cheltenham Borough Council,461070,951445653,OFFICE DEPOT,C-L11500-3410,Rec Facilities-Stationery & office supps,11 November 2011,2.07
http://statistics.data.gov.uk/id/local-authority-district/23UB,Cheltenham Borough Council,461070,951445653,OFFICE DEPOT,C-L11500-3410,Rec Facilities-Stationery & office supps,11 November 2011,1.08
http://statistics.data.gov.uk/id/local-authority-district/23UB,Cheltenham Borough Council,461070,951445653,OFFICE DEPOT,C-L11500-3410,Rec Facilities-Stationery & office supps,11 November 2011,1.95
http://statistics.data.gov.uk/id/local-authority-district/23UB,Cheltenham Borough Council,461070,951445653,OFFICE DEPOT,C-L11500-3410,Rec Facilities-Stationery & office supps,11 November 2011,0.30
http://statistics.data.gov.uk/id/local-authority-district/23UB,Cheltenham Borough Council,461070,951445653,OFFICE DEPOT,C-L11500-3410,Rec Facilities-Stationery & office supps,11 November 2011,3.52
http://statistics.data.gov.uk/id/local-authority-district/23UB,Cheltenham Borough Council,461070,951445653,OFFICE DEPOT,C-L11500-3410,Rec Facilities-Stationery & office supps,11 November 2011,3.52
http://statistics.data.gov.uk/id/local-authority-district/23UB,Cheltenham Borough Council,461070,951445653,OFFICE DEPOT,C-L11500-3410,Rec Facilities-Stationery & office supps,11 November 2011,24.40
http://statistics.data.gov.uk/id/local-authority-district/23UB,Cheltenham Borough Council,461070,951445653,OFFICE DEPOT,C-L11500-3410,Rec Facilities-Stationery & office supps,11 November 2011,3.16
http://statistics.data.gov.uk/id/local-authority-district/23UB,Cheltenham Borough Council,461070,951445653,OFFICE DEPOT,C-L11500-3410,Rec Facilities-Stationery & office supps,11 November 2011,0.50
http://statistics.data.gov.uk/id/local-authority-district/23UB,Cheltenham Borough Council,461070,951445653,OFFICE DEPOT,C-L11500-3410,Rec Facilities-Stationery & office supps,11 November 2011,1.11
http://statistics.data.gov.uk/id/local-authority-district/23UB,Cheltenham Borough Council,461070,951445653,OFFICE DEPOT,C-L11500-3410,Rec Facilities-Stationery & office supps,11 November 2011,2.62
http://statistics.data.gov.uk/id/local-authority-district/23UB,Cheltenham Borough Council,461070,951445653,OFFICE DEPOT,C-L11500-3410,Rec Facilities-Stationery & office supps,11 November 2011,0.14
http://statistics.data.gov.uk/id/local-authority-district/23UB,Cheltenham Borough Council,461070,951445653,OFFICE DEPOT,C-L11500-3410,Rec Facilities-Stationery & office supps,11 November 2011,1.82
http://statistics.data.gov.uk/id/local-authority-district/23UB,Cheltenham Borough Council,461070,951445653,OFFICE DEPOT,C-L11500-3410,Rec Facilities-Stationery & office supps,11 November 2011,1.14
http://statistics.data.gov.uk/id/local-authority-district/23UB,Cheltenham Borough Council,461070,951445653,OFFICE DEPOT,C-L11500-3410,Rec Facilities-Stationery & office supps,11 November 2011,14.43
http://statistics.data.gov.uk/id/local-authority-district/23UB,Cheltenham Borough Council,461070,951445653,OFFICE DEPOT,C-L11500-3410,Rec Facilities-Stationery & office supps,11 November 2011,9.00
http://statistics.data.gov.uk/id/local-authority-district/23UB,Cheltenham Borough Council,461070,951445653,OFFICE DEPOT,C-L11500-3410,Rec Facilities-Stationery & office supps,11 November 2011,0.93
http://statistics.data.gov.uk/id/local-authority-district/23UB,Cheltenham Borough Council,461256,951429052,OFFICE DEPOT,C-L16100-3410,Holiday Rec-Stationery & office supps,11 November 2011,1.35
http://statistics.data.gov.uk/id/local-authority-district/23UB,Cheltenham Borough Council,461256,951429052,OFFICE DEPOT,C-L16100-3410,Holiday Rec-Stationery & office supps,11 November 2011,3.02
http://statistics.data.gov.uk/id/local-authority-district/23UB,Cheltenham Borough Council,461256,951429052,OFFICE DEPOT,C-L16100-3410,Holiday Rec-Stationery & office supps,11 November 2011,1.38
http://statistics.data.gov.uk/id/local-authority-district/23UB,Cheltenham Borough Council,461256,951429052,OFFICE DEPOT,C-L16100-3410,Holiday Rec-Stationery & office supps,11 November 2011,2.07
http://statistics.data.gov.uk/id/local-authority-district/23UB,Cheltenham Borough Council,461256,951429052,OFFICE DEPOT,C-L16100-3410,Holiday Rec-Stationery & office supps,11 November 2011,1.64
http://statistics.data.gov.uk/id/local-authority-district/23UB,Cheltenham Borough Council,461256,951429052,OFFICE DEPOT,C-L16100-3410,Holiday Rec-Stationery & office supps,11 November 2011,1.64
http://statistics.data.gov.uk/id/local-authority-district/23UB,Cheltenham Borough Council,461256,951429052,OFFICE DEPOT,C-L16100-3410,Holiday Rec-Stationery & office supps,11 November 2011,38.88
http://statistics.data.gov.uk/id/local-authority-district/23UB,Cheltenham Borough Council,461256,951429052,OFFICE DEPOT,C-L16100-3410,Holiday Rec-Stationery & office supps,11 November 2011,4.32
http://statistics.data.gov.uk/id/local-authority-district/23UB,Cheltenham Borough Council,461076,951369211,OFFICE DEPOT,C-L21100-3410,Town Hall-Stationery & office supps,11 November 2011,7.24
http://statistics.data.gov.uk/id/local-authority-district/23UB,Cheltenham Borough Council,461076,951369211,OFFICE DEPOT,C-L21100-3410,Town Hall-Stationery & office supps,11 November 2011,1.75
http://statistics.data.gov.uk/id/local-authority-district/23UB,Cheltenham Borough Council,461076,951369211,OFFICE DEPOT,C-L21100-3410,Town Hall-Stationery & office supps,11 November 2011,28.26
http://statistics.data.gov.uk/id/local-authority-district/23UB,Cheltenham Borough Council,461076,951369211,OFFICE DEPOT,C-N72800-3410,Stationery Hldg-Stationery & office supp,11 November 2011,14.48
http://statistics.data.gov.uk/id/local-authority-district/23UB,Cheltenham Borough Council,461257,951452735,OFFICE DEPOT,C-D11100-3410,CEO Management-Stationery & office supps,18 November 2011,11.96
http://statistics.data.gov.uk/id/local-authority-district/23UB,Cheltenham Borough Council,461565,951529691,OFFICE DEPOT,C-D11300-3410,Accountancy-Stationery & office supps,18 November 2011,0.88
http://statistics.data.gov.uk/id/local-authority-district/23UB,Cheltenham Borough Council,461257,951452735,OFFICE DEPOT,C-D11300-3410,Accountancy-Stationery & office supps,18 November 2011,6.91
http://statistics.data.gov.uk/id/local-authority-district/23UB,Cheltenham Borough Council,461257,951452735,OFFICE DEPOT,C-D11300-3410,Accountancy-Stationery & office supps,18 November 2011,25.30
http://statistics.data.gov.uk/id/local-authority-district/23UB,Cheltenham Borough Council,461257,951452735,OFFICE DEPOT,C-D11300-3410,Accountancy-Stationery & office supps,18 November 2011,6.49
http://statistics.data.gov.uk/id/local-authority-district/23UB,Cheltenham Borough Council,461565,951529691,OFFICE DEPOT,C-D11830-3410,Corporate Print-Stationery & office supp,18 November 2011,122.00
http://statistics.data.gov.uk/id/local-authority-district/23UB,Cheltenham Borough Council,461257,951452735,OFFICE DEPOT,C-D11830-3410,Corporate Print-Stationery & office supp,18 November 2011,22.90
http://statistics.data.gov.uk/id/local-authority-district/23UB,Cheltenham Borough Council,461257,951452735,OFFICE DEPOT,C-D11830-3410,Corporate Print-Stationery & office supp,18 November 2011,122.00
http://statistics.data.gov.uk/id/local-authority-district/23UB,Cheltenham Borough Council,461565,951529691,OFFICE DEPOT,C-D12430-3410,Housing & CT Be-Stationery & office supp,18 November 2011,3.20
http://statistics.data.gov.uk/id/local-authority-district/23UB,Cheltenham Borough Council,461257,951452735,OFFICE DEPOT,C-D12440-3410,Coun Tax overhe-Stationery & office supp,18 November 2011,43.70
http://statistics.data.gov.uk/id/local-authority-district/23UB,Cheltenham Borough Council,461257,951452735,OFFICE DEPOT,C-D12440-3410,Coun Tax overhe-Stationery & office supp,18 November 2011,0.93
http://statistics.data.gov.uk/id/local-authority-district/23UB,Cheltenham Borough Council,461257,951452735,OFFICE DEPOT,C-D12440-3410,Coun Tax overhe-Stationery & office supp,18 November 2011,7.42
http://statistics.data.gov.uk/id/local-authority-district/23UB,Cheltenham Borough Council,461565,951529691,OFFICE DEPOT,C-D12450-3410,Cash Rec / Bnkg-Stationery & office supp,18 November 2011,16.64
http://statistics.data.gov.uk/id/local-authority-district/23UB,Cheltenham Borough Council,461565,951529691,OFFICE DEPOT,C-D12450-3410,Cash Rec / Bnkg-Stationery & office supp,18 November 2011,7.55
http://statistics.data.gov.uk/id/local-authority-district/23UB,Cheltenham Borough Council,461565,951529691,OFFICE DEPOT,C-D12450-3410,Cash Rec / Bnkg-Stationery & office supp,18 November 2011,28.16
http://statistics.data.gov.uk/id/local-authority-district/23UB,Cheltenham Borough Council,461565,951529691,OFFICE DEPOT,C-D12450-3410,Cash Rec / Bnkg-Stationery & office supp,18 November 2011,14.27
http://statistics.data.gov.uk/id/local-authority-district/23UB,Cheltenham Borough Council,461257,951452735,OFFICE DEPOT,C-D12485-3410,Procurement-Stationery & office supps,18 November 2011,4.19
http://statistics.data.gov.uk/id/local-authority-district/23UB,Cheltenham Borough Council,461257,951452735,OFFICE DEPOT,C-D12485-3410,Procurement-Stationery & office supps,18 November 2011,3.11
http://statistics.data.gov.uk/id/local-authority-district/23UB,Cheltenham Borough Council,461257,951452735,OFFICE DEPOT,C-D12485-3410,Procurement-Stationery & office supps,18 November 2011,1.84
http://statistics.data.gov.uk/id/local-authority-district/23UB,Cheltenham Borough Council,461257,951452735,OFFICE DEPOT,C-D21100-3205,Dem Process-Committee refreshments,18 November 2011,10.63
http://statistics.data.gov.uk/id/local-authority-district/23UB,Cheltenham Borough Council,461257,951452735,OFFICE DEPOT,C-D21100-3410,Dem Process-Stationery & office supps,18 November 2011,3.93
http://statistics.data.gov.uk/id/local-authority-district/23UB,Cheltenham Borough Council,461257,951452735,OFFICE DEPOT,C-E36200-3410,On-St Car Prkng-Stationery & office supp,18 November 2011,14.48
http://statistics.data.gov.uk/id/local-authority-district/23UB,Cheltenham Borough Council,461564,951518113,OFFICE DEPOT,C-E63100-3410,Cemetery & Crem-Stationery & office supp,18 November 2011,39.20
http://statistics.data.gov.uk/id/local-authority-district/23UB,Cheltenham Borough Council,461564,951518113,OFFICE DEPOT,C-E63100-3410,Cemetery & Crem-Stationery & office supp,18 November 2011,34.00
http://statistics.data.gov.uk/id/local-authority-district/23UB,Cheltenham Borough Council,461564,951518113,OFFICE DEPOT,C-E63100-3410,Cemetery & Crem-Stationery & office supp,18 November 2011,11.90
http://statistics.data.gov.uk/id/local-authority-district/23UB,Cheltenham Borough Council,461564,951518113,OFFICE DEPOT,C-E63100-3410,Cemetery & Crem-Stationery & office supp,18 November 2011,62.55
http://statistics.data.gov.uk/id/local-authority-district/23UB,Cheltenham Borough Council,461565,951529691,OFFICE DEPOT,C-E72500-3410,Built Env Div-Stationery & office supps,18 November 2011,10.21
http://statistics.data.gov.uk/id/local-authority-district/23UB,Cheltenham Borough Council,461565,951529691,OFFICE DEPOT,C-E72500-3410,Built Env Div-Stationery & office supps,18 November 2011,0.55
http://statistics.data.gov.uk/id/local-authority-district/23UB,Cheltenham Borough Council,461257,951452735,OFFICE DEPOT,C-E72500-3410,Built Env Div-Stationery & office supps,18 November 2011,7.07
http://statistics.data.gov.uk/id/local-authority-district/23UB,Cheltenham Borough Council,461257,951452735,OFFICE DEPOT,C-E72500-3410,Built Env Div-Stationery & office supps,18 November 2011,3.29
http://statistics.data.gov.uk/id/local-authority-district/23UB,Cheltenham Borough Council,461257,951452735,OFFICE DEPOT,C-E74100-3410,Env M&A Div-Stationery & office supps,18 November 2011,5.21
http://statistics.data.gov.uk/id/local-authority-district/23UB,Cheltenham Borough Council,462057,951606484,OFFICE DEPOT,C-C23160-3410,Env Maint Div-Stationery & office supps,25 November 2011,4.70
http://statistics.data.gov.uk/id/local-authority-district/23UB,Cheltenham Borough Council,462057,951606484,OFFICE DEPOT,C-C23160-3410,Env Maint Div-Stationery & office supps,25 November 2011,2.78
http://statistics.data.gov.uk/id/local-authority-district/23UB,Cheltenham Borough Council,462057,951606484,OFFICE DEPOT,C-C23160-3410,Env Maint Div-Stationery & office supps,25 November 2011,5.65
http://statistics.data.gov.uk/id/local-authority-district/23UB,Cheltenham Borough Council,462057,951606484,OFFICE DEPOT,C-C23160-3410,Env Maint Div-Stationery & office supps,25 November 2011,7.01
http://statistics.data.gov.uk/id/local-authority-district/23UB,Cheltenham Borough Council,462057,951606484,OFFICE DEPOT,C-C23160-3410,Env Maint Div-Stationery & office supps,25 November 2011,4.18
http://statistics.data.gov.uk/id/local-authority-district/23UB,Cheltenham Borough Council,462057,951606484,OFFICE DEPOT,C-C23160-3410,Env Maint Div-Stationery & office supps,25 November 2011,3.81
http://statistics.data.gov.uk/id/local-authority-district/23UB,Cheltenham Borough Council,462057,951606484,OFFICE DEPOT,C-C23160-3410,Env Maint Div-Stationery & office supps,25 November 2011,4.25
http://statistics.data.gov.uk/id/local-authority-district/23UB,Cheltenham Borough Council,462057,951606484,OFFICE DEPOT,C-C23160-3410,Env Maint Div-Stationery & office supps,25 November 2011,5.24
http://statistics.data.gov.uk/id/local-authority-district/23UB,Cheltenham Borough Council,462057,951606484,OFFICE DEPOT,C-C23160-3410,Env Maint Div-Stationery & office supps,25 November 2011,122.00
http://statistics.data.gov.uk/id/local-authority-district/23UB,Cheltenham Borough Council,462057,951606484,OFFICE DEPOT,C-C23160-3410,Env Maint Div-Stationery & office supps,25 November 2011,2.35
http://statistics.data.gov.uk/id/local-authority-district/23UB,Cheltenham Borough Council,462057,951606484,OFFICE DEPOT,C-C23160-3410,Env Maint Div-Stationery & office supps,25 November 2011,5.34
http://statistics.data.gov.uk/id/local-authority-district/23UB,Cheltenham Borough Council,462057,951606484,OFFICE DEPOT,C-C23160-3410,Env Maint Div-Stationery & office supps,25 November 2011,10.68
http://statistics.data.gov.uk/id/local-authority-district/23UB,Cheltenham Borough Council,462057,951606484,OFFICE DEPOT,C-C23160-3410,Env Maint Div-Stationery & office supps,25 November 2011,6.20
http://statistics.data.gov.uk/id/local-authority-district/23UB,Cheltenham Borough Council,462057,951606484,OFFICE DEPOT,C-C23160-3410,Env Maint Div-Stationery & office supps,25 November 2011,22.90
http://statistics.data.gov.uk/id/local-authority-district/23UB,Cheltenham Borough Council,462057,951606484,OFFICE DEPOT,C-C23160-3410,Env Maint Div-Stationery & office supps,25 November 2011,2.07
http://statistics.data.gov.uk/id/local-authority-district/23UB,Cheltenham Borough Council,462057,951606484,OFFICE DEPOT,C-C23160-3410,Env Maint Div-Stationery & office supps,25 November 2011,9.20
http://statistics.data.gov.uk/id/local-authority-district/23UB,Cheltenham Borough Council,462039,951614351,OFFICE DEPOT,C-D11300-3410,Accountancy-Stationery & office supps,25 November 2011,0.64
http://statistics.data.gov.uk/id/local-authority-district/23UB,Cheltenham Borough Council,462039,951614351,OFFICE DEPOT,C-D11300-3410,Accountancy-Stationery & office supps,25 November 2011,1.45
http://statistics.data.gov.uk/id/local-authority-district/23UB,Cheltenham Borough Council,462039,951614351,OFFICE DEPOT,C-D11300-3410,Accountancy-Stationery & office supps,25 November 2011,1.68
http://statistics.data.gov.uk/id/local-authority-district/23UB,Cheltenham Borough Council,462039,951614351,OFFICE DEPOT,C-D11400-3410,Audit & Assrnce-Stationery & office supp,25 November 2011,4.70
http://statistics.data.gov.uk/id/local-authority-district/23UB,Cheltenham Borough Council,462039,951614351,OFFICE DEPOT,C-D11400-3410,Audit & Assrnce-Stationery & office supp,25 November 2011,2.99
http://statistics.data.gov.uk/id/local-authority-district/23UB,Cheltenham Borough Council,462039,951614351,OFFICE DEPOT,C-D11400-3410,Audit & Assrnce-Stationery & office supp,25 November 2011,3.56
http://statistics.data.gov.uk/id/local-authority-district/23UB,Cheltenham Borough Council,462039,951614351,OFFICE DEPOT,C-D11700-3410,Pol & Info Mgmt-Stationery & office supp,25 November 2011,2.87
http://statistics.data.gov.uk/id/local-authority-district/23UB,Cheltenham Borough Council,462039,951614351,OFFICE DEPOT,C-D11700-3410,Pol & Info Mgmt-Stationery & office supp,25 November 2011,4.30
http://statistics.data.gov.uk/id/local-authority-district/23UB,Cheltenham Borough Council,462039,951614351,OFFICE DEPOT,C-D11700-3410,Pol & Info Mgmt-Stationery & office supp,25 November 2011,4.72
http://statistics.data.gov.uk/id/local-authority-district/23UB,Cheltenham Borough Council,462039,951614351,OFFICE DEPOT,C-D11830-3410,Corporate Print-Stationery & office supp,25 November 2011,129.00
http://statistics.data.gov.uk/id/local-authority-district/23UB,Cheltenham Borough Council,462039,951614351,OFFICE DEPOT,C-D12300-3410,Personnel and P-Stationery & office supp,25 November 2011,3.35
http://statistics.data.gov.uk/id/local-authority-district/23UB,Cheltenham Borough Council,462039,951614351,OFFICE DEPOT,C-D12300-3410,Personnel and P-Stationery & office supp,25 November 2011,3.08
http://statistics.data.gov.uk/id/local-authority-district/23UB,Cheltenham Borough Council,462039,951614351,OFFICE DEPOT,C-D12300-3410,Personnel and P-Stationery & office supp,25 November 2011,0.78
http://statistics.data.gov.uk/id/local-authority-district/23UB,Cheltenham Borough Council,462039,951614351,OFFICE DEPOT,C-D12300-3410,Personnel and P-Stationery & office supp,25 November 2011,3.80
http://statistics.data.gov.uk/id/local-authority-district/23UB,Cheltenham Borough Council,462039,951614351,OFFICE DEPOT,C-D12300-3410,Personnel and P-Stationery & office supp,25 November 2011,0.08
http://statistics.data.gov.uk/id/local-authority-district/23UB,Cheltenham Borough Council,462039,951614351,OFFICE DEPOT,C-D12300-3410,Personnel and P-Stationery & office supp,25 November 2011,0.40
http://statistics.data.gov.uk/id/local-authority-district/23UB,Cheltenham Borough Council,462039,951614351,OFFICE DEPOT,C-D12300-3410,Personnel and P-Stationery & office supp,25 November 2011,2.34
http://statistics.data.gov.uk/id/local-authority-district/23UB,Cheltenham Borough Council,462039,951614351,OFFICE DEPOT,C-D12300-3410,Personnel and P-Stationery & office supp,25 November 2011,1.92
http://statistics.data.gov.uk/id/local-authority-district/23UB,Cheltenham Borough Council,462039,951614351,OFFICE DEPOT,C-D12300-3410,Personnel and P-Stationery & office supp,25 November 2011,1.12
http://statistics.data.gov.uk/id/local-authority-district/23UB,Cheltenham Borough Council,462039,951614351,OFFICE DEPOT,C-D12495-3410,Cust.Serv.Areas-Stationery & office supp,25 November 2011,3.42
http://statistics.data.gov.uk/id/local-authority-district/23UB,Cheltenham Borough Council,462039,951614351,OFFICE DEPOT,C-D12495-3410,Cust.Serv.Areas-Stationery & office supp,25 November 2011,1.52
http://statistics.data.gov.uk/id/local-authority-district/23UB,Cheltenham Borough Council,462039,951614351,OFFICE DEPOT,C-D12495-3410,Cust.Serv.Areas-Stationery & office supp,25 November 2011,0.64
http://statistics.data.gov.uk/id/local-authority-district/23UB,Cheltenham Borough Council,462039,951614351,OFFICE DEPOT,C-D12495-3410,Cust.Serv.Areas-Stationery & office supp,25 November 2011,2.87
http://statistics.data.gov.uk/id/local-authority-district/23UB,Cheltenham Borough Council,462039,951614351,OFFICE DEPOT,C-D12495-3410,Cust.Serv.Areas-Stationery & office supp,25 November 2011,20.95
http://statistics.data.gov.uk/id/local-authority-district/23UB,Cheltenham Borough Council,462039,951614351,OFFICE DEPOT,C-D12500-3410,Property Servs-Stationery & office supps,25 November 2011,3.80
http://statistics.data.gov.uk/id/local-authority-district/23UB,Cheltenham Borough Council,462039,951614351,OFFICE DEPOT,C-D12500-3410,Property Servs-Stationery & office supps,25 November 2011,3.84
http://statistics.data.gov.uk/id/local-authority-district/23UB,Cheltenham Borough Council,462039,951614351,OFFICE DEPOT,C-D12500-3410,Property Servs-Stationery & office supps,25 November 2011,1.20
http://statistics.data.gov.uk/id/local-authority-district/23UB,Cheltenham Borough Council,462039,951614351,OFFICE DEPOT,C-D12500-3410,Property Servs-Stationery & office supps,25 November 2011,23.20
http://statistics.data.gov.uk/id/local-authority-district/23UB,Cheltenham Borough Council,462039,951614351,OFFICE DEPOT,C-D12500-3410,Property Servs-Stationery & office supps,25 November 2011,2.70
http://statistics.data.gov.uk/id/local-authority-district/23UB,Cheltenham Borough Council,462039,951614351,OFFICE DEPOT,C-D13100-3410,Muni Off Blgs-Stationery & office supps,25 November 2011,2.92
http://statistics.data.gov.uk/id/local-authority-district/23UB,Cheltenham Borough Council,462039,951614351,OFFICE DEPOT,C-E63100-3410,Cemetery & Crem-Stationery & office supp,25 November 2011,2.62
http://statistics.data.gov.uk/id/local-authority-district/23UB,Cheltenham Borough Council,462039,951614351,OFFICE DEPOT,C-E71150-3410,Public Pro Div-Stationery & office supps,25 November 2011,14.67
http://statistics.data.gov.uk/id/local-authority-district/23UB,Cheltenham Borough Council,462039,951614351,OFFICE DEPOT,C-E71150-3410,Public Pro Div-Stationery & office supps,25 November 2011,1.81
http://statistics.data.gov.uk/id/local-authority-district/23UB,Cheltenham Borough Council,462039,951614351,OFFICE DEPOT,C-E71150-3410,Public Pro Div-Stationery & office supps,25 November 2011,0.80
http://statistics.data.gov.uk/id/local-authority-district/23UB,Cheltenham Borough Council,462039,951614351,OFFICE DEPOT,C-E74100-3410,Env M&A Div-Stationery & office supps,25 November 2011,0.81
http://statistics.data.gov.uk/id/local-authority-district/23UB,Cheltenham Borough Council,462037,951614349,OFFICE DEPOT,C-L16100-3410,Holiday Rec-Stationery & office supps,25 November 2011,137.37
http://statistics.data.gov.uk/id/local-authority-district/23UB,Cheltenham Borough Council,461891,951529692,OFFICE DEPOT,C-L41100-3410,AG & M-Stationery & office supps,25 November 2011,1.22
http://statistics.data.gov.uk/id/local-authority-district/23UB,Cheltenham Borough Council,461891,951529692,OFFICE DEPOT,C-L41100-3410,AG & M-Stationery & office supps,25 November 2011,3.48
http://statistics.data.gov.uk/id/local-authority-district/23UB,Cheltenham Borough Council,461891,951529692,OFFICE DEPOT,C-L41100-3410,AG & M-Stationery & office supps,25 November 2011,3.93
http://statistics.data.gov.uk/id/local-authority-district/23UB,Cheltenham Borough Council,461891,951529692,OFFICE DEPOT,C-L41100-3410,AG & M-Stationery & office supps,25 November 2011,0.22
http://statistics.data.gov.uk/id/local-authority-district/23UB,Cheltenham Borough Council,461891,951529692,OFFICE DEPOT,C-L41100-3410,AG & M-Stationery & office supps,25 November 2011,0.66
http://statistics.data.gov.uk/id/local-authority-district/23UB,Cheltenham Borough Council,461891,951529692,OFFICE DEPOT,C-L41100-3410,AG & M-Stationery & office supps,25 November 2011,1.78
http://statistics.data.gov.uk/id/local-authority-district/23UB,Cheltenham Borough Council,461891,951529692,OFFICE DEPOT,C-L41100-3410,AG & M-Stationery & office supps,25 November 2011,1.78
http://statistics.data.gov.uk/id/local-authority-district/23UB,Cheltenham Borough Council,461891,951529692,OFFICE DEPOT,C-L41100-3410,AG & M-Stationery & office supps,25 November 2011,24.40
http://statistics.data.gov.uk/id/local-authority-district/23UB,Cheltenham Borough Council,461891,951529692,OFFICE DEPOT,C-L41100-3410,AG & M-Stationery & office supps,25 November 2011,2.40
http://statistics.data.gov.uk/id/local-authority-district/23UB,Cheltenham Borough Council,460745,I02568624,PACE FUELCARE LIMITED,C-N42250-3112,DSO Stores - Stock purchases,04 November 2011,"13,569.66"
http://statistics.data.gov.uk/id/local-authority-district/23UB,Cheltenham Borough Council,460534,I02564111,PACE FUELCARE LIMITED,C-N42250-3112,DSO Stores - Stock purchases,04 November 2011,"15,332.11"
http://statistics.data.gov.uk/id/local-authority-district/23UB,Cheltenham Borough Council,461618,I02571445,PACE FUELCARE LIMITED,C-N42250-3112,DSO Stores - Stock purchases,18 November 2011,"13,421.20"
http://statistics.data.gov.uk/id/local-authority-district/23UB,Cheltenham Borough Council,462132,I02575396,PACE FUELCARE LIMITED,C-N42250-3112,DSO Stores - Stock purchases,25 November 2011,"13,118.94"
http://statistics.data.gov.uk/id/local-authority-district/23UB,Cheltenham Borough Council,461481,778,PASSWORD PRODUCTIONS LIMITED,C-1T01G1-3568,Fascinatg Aida-Artist Fees,18 November 2011,"9,695.86"
http://statistics.data.gov.uk/id/local-authority-district/23UB,Cheltenham Borough Council,461481,778,PASSWORD PRODUCTIONS LIMITED,C-1T01G1-3568,Fascinatg Aida-Artist Fees,18 November 2011,-84.00
http://statistics.data.gov.uk/id/local-authority-district/23UB,Cheltenham Borough Council,461599,2272,PATROL(PARKING AND TRAFF REGS O/S LNDN),C-E36200-3501,On-St Car Prkng-Hire of outside services,18 November 2011,"2,172.95"
http://statistics.data.gov.uk/id/local-authority-district/23UB,Cheltenham Borough Council,460717,OCT272/PPC/RCS,PC MOLEING SERVICES,C-H4201G-1104,Gen Wks 2201-Council House repairs,04 November 2011,"1,590.00"
http://statistics.data.gov.uk/id/local-authority-district/23UB,Cheltenham Borough Council,460718,OCT271/PPC/RCS,PC MOLEING SERVICES,C-H4206G-1104,Gen Wks 2206-Council House repairs,04 November 2011,148.00
http://statistics.data.gov.uk/id/local-authority-district/23UB,Cheltenham Borough Council,460720,OCT266/PPC/RCS,PC MOLEING SERVICES,C-H4213G-1104,Gen Wks 2213-Council House repairs,04 November 2011,40.00
http://statistics.data.gov.uk/id/local-authority-district/23UB,Cheltenham Borough Council,460719,OCT267/PPC/RCS,PC MOLEING SERVICES,C-H4214G-1104,Gen Wks 2214-Council House repairs,04 November 2011,85.00
http://statistics.data.gov.uk/id/local-authority-district/23UB,Cheltenham Borough Council,460974,OCT274/PPC/RCS,PC MOLEING SERVICES,C-H4213V-1104,Voids 2213-Council House repairs,11 November 2011,130.00
http://statistics.data.gov.uk/id/local-authority-district/23UB,Cheltenham Borough Council,460968,OCT279/PPC/RCS,PC MOLEING SERVICES,C-H44400-1104,Void Security-Council House repairs,11 November 2011,240.00
http://statistics.data.gov.uk/id/local-authority-district/23UB,Cheltenham Borough Council,460969,OCT277/PPC/RCS,PC MOLEING SERVICES,C-H44400-1104,Void Security-Council House repairs,11 November 2011,200.00
http://statistics.data.gov.uk/id/local-authority-district/23UB,Cheltenham Borough Council,460971,OCT276/PPC/RCS,PC MOLEING SERVICES,C-H44400-1104,Void Security-Council House repairs,11 November 2011,280.00
http://statistics.data.gov.uk/id/local-authority-district/23UB,Cheltenham Borough Council,460973,OCT275/PPC/RCS,PC MOLEING SERVICES,C-H44400-1104,Void Security-Council House repairs,11 November 2011,300.00
http://statistics.data.gov.uk/id/local-authority-district/23UB,Cheltenham Borough Council,460976,OCT273/PPC/RCS,PC MOLEING SERVICES,C-H44400-1104,Void Security-Council House repairs,11 November 2011,140.00
http://statistics.data.gov.uk/id/local-authority-district/23UB,Cheltenham Borough Council,460970,OCT278/PPC/RCS,PC MOLEING SERVICES,C-H44400-1104,Void Security-Council House repairs,11 November 2011,200.00
http://statistics.data.gov.uk/id/local-authority-district/23UB,Cheltenham Borough Council,460978,OCT282/PPC/RCS,PC MOLEING SERVICES,C-HC4841-C302,Major Voids-Building Contractor,11 November 2011,"1,085.00"
http://statistics.data.gov.uk/id/local-authority-district/23UB,Cheltenham Borough Council,460980,OCT281,PC MOLEING SERVICES,C-HC4841-C302,Major Voids-Building Contractor,11 November 2011,545.00
http://statistics.data.gov.uk/id/local-authority-district/23UB,Cheltenham Borough Council,460979,AV4265/PPC/RCS,PC MOLEING SERVICES,C-HC4842-C302,Opt App Voids-Building Contractor,11 November 2011,650.00
http://statistics.data.gov.uk/id/local-authority-district/23UB,Cheltenham Borough Council,461431,OCT284/PPC/RSS,PC MOLEING SERVICES,C-HC4867-C302,Misc Works-Building Contractor,18 November 2011,520.00
http://statistics.data.gov.uk/id/local-authority-district/23UB,Cheltenham Borough Council,462080,NOV279/PPC/RCS,PC MOLEING SERVICES,C-H4207G-1104,Gen Wks 2207-Council House repairs,25 November 2011,125.00
http://statistics.data.gov.uk/id/local-authority-district/23UB,Cheltenham Borough Council,462081,NOV278/PPC/RCS,PC MOLEING SERVICES,C-H4211G-1104,Gen Wks 2211-Council House repairs,25 November 2011,"1,450.00"
http://statistics.data.gov.uk/id/local-authority-district/23UB,Cheltenham Borough Council,462078,OCT280/PPC/RCS,PC MOLEING SERVICES,C-H4211V-1104,Voids 2211-Council House repairs,25 November 2011,480.00
http://statistics.data.gov.uk/id/local-authority-district/23UB,Cheltenham Borough Council,462079,OCT283/PPC/RCS,PC MOLEING SERVICES,C-HC4841-C302,Major Voids-Building Contractor,25 November 2011,"4,890.00"
http://statistics.data.gov.uk/id/local-authority-district/23UB,Cheltenham Borough Council,460896,REDACTED,PETER BALL & CO,C-H22400-3828,Homelessness-Prevention Fund,08 November 2011,600.00
http://statistics.data.gov.uk/id/local-authority-district/23UB,Cheltenham Borough Council,461116,1013J10410,PETER TEAGUE ASSOCIATES LTD,C-LC4006-C210,AG&M Dev Scheme-Survey costs,11 November 2011,"3,333.47"
http://statistics.data.gov.uk/id/local-authority-district/23UB,Cheltenham Borough Council,461117,1018J10411,PETER TEAGUE ASSOCIATES LTD,C-LC4006-C210,AG&M Dev Scheme-Survey costs,11 November 2011,"2,700.00"
http://statistics.data.gov.uk/id/local-authority-district/23UB,Cheltenham Borough Council,461949,4152,PHIL MCINTYRE ENTERTAINMENTS LTD,C-1T02H1-3568,Milton Jones-Artist Fees,25 November 2011,"10,424.37"
http://statistics.data.gov.uk/id/local-authority-district/23UB,Cheltenham Borough Council,461949,4152,PHIL MCINTYRE ENTERTAINMENTS LTD,C-1T02H1-3568,Milton Jones-Artist Fees,25 November 2011,"-1,750.00"
http://statistics.data.gov.uk/id/local-authority-district/23UB,Cheltenham Borough Council,461062,63/36222,PJT PUMPING SERVICES LTD,C-C22110-3103,Parks & Gardens-Equipment repairs & main,11 November 2011,"3,666.66"
http://statistics.data.gov.uk/id/local-authority-district/23UB,Cheltenham Borough Council,461064,64/36279,PJT PUMPING SERVICES LTD,C-C22110-3103,Parks & Gardens-Equipment repairs & main,11 November 2011,460.00
http://statistics.data.gov.uk/id/local-authority-district/23UB,Cheltenham Borough Council,461574,446331,PREMIERE PRODUCTS,C-E63100-1702,Cemetery & Crem-Cleaning materials,18 November 2011,9.92
http://statistics.data.gov.uk/id/local-authority-district/23UB,Cheltenham Borough Council,461559,446659,PREMIERE PRODUCTS,C-L11500-1706,Rec Facilities-Cleaning,18 November 2011,11.75
http://statistics.data.gov.uk/id/local-authority-district/23UB,Cheltenham Borough Council,461559,446659,PREMIERE PRODUCTS,C-L11500-1706,Rec Facilities-Cleaning,18 November 2011,45.65
http://statistics.data.gov.uk/id/local-authority-district/23UB,Cheltenham Borough Council,461559,446659,PREMIERE PRODUCTS,C-L11500-1706,Rec Facilities-Cleaning,18 November 2011,14.89
http://statistics.data.gov.uk/id/local-authority-district/23UB,Cheltenham Borough Council,461560,446658,PREMIERE PRODUCTS,C-L11500-1706,Rec Facilities-Cleaning,18 November 2011,11.82
http://statistics.data.gov.uk/id/local-authority-district/23UB,Cheltenham Borough Council,461559,446659,PREMIERE PRODUCTS,C-L11500-1706,Rec Facilities-Cleaning,18 November 2011,82.74
http://statistics.data.gov.uk/id/local-authority-district/23UB,Cheltenham Borough Council,461607,446171,PREMIERE PRODUCTS,C-L21100-1702,Town Hall-Cleaning materials,18 November 2011,4.06
http://statistics.data.gov.uk/id/local-authority-district/23UB,Cheltenham Borough Council,461607,446171,PREMIERE PRODUCTS,C-L21100-1702,Town Hall-Cleaning materials,18 November 2011,2.92
http://statistics.data.gov.uk/id/local-authority-district/23UB,Cheltenham Borough Council,461607,446171,PREMIERE PRODUCTS,C-L21100-1702,Town Hall-Cleaning materials,18 November 2011,1.46
http://statistics.data.gov.uk/id/local-authority-district/23UB,Cheltenham Borough Council,461607,446171,PREMIERE PRODUCTS,C-L21100-1702,Town Hall-Cleaning materials,18 November 2011,14.56
http://statistics.data.gov.uk/id/local-authority-district/23UB,Cheltenham Borough Council,461607,446171,PREMIERE PRODUCTS,C-L21100-1702,Town Hall-Cleaning materials,18 November 2011,0.39
http://statistics.data.gov.uk/id/local-authority-district/23UB,Cheltenham Borough Council,461607,446171,PREMIERE PRODUCTS,C-L21100-1702,Town Hall-Cleaning materials,18 November 2011,2.42
http://statistics.data.gov.uk/id/local-authority-district/23UB,Cheltenham Borough Council,461607,446171,PREMIERE PRODUCTS,C-L21100-1702,Town Hall-Cleaning materials,18 November 2011,1.01
http://statistics.data.gov.uk/id/local-authority-district/23UB,Cheltenham Borough Council,461607,446171,PREMIERE PRODUCTS,C-L21100-1702,Town Hall-Cleaning materials,18 November 2011,14.56
http://statistics.data.gov.uk/id/local-authority-district/23UB,Cheltenham Borough Council,461607,446171,PREMIERE PRODUCTS,C-L21100-1702,Town Hall-Cleaning materials,18 November 2011,22.49
http://statistics.data.gov.uk/id/local-authority-district/23UB,Cheltenham Borough Council,461607,446171,PREMIERE PRODUCTS,C-L21100-1702,Town Hall-Cleaning materials,18 November 2011,29.99
http://statistics.data.gov.uk/id/local-authority-district/23UB,Cheltenham Borough Council,461607,446171,PREMIERE PRODUCTS,C-L21100-1702,Town Hall-Cleaning materials,18 November 2011,2.78
http://statistics.data.gov.uk/id/local-authority-district/23UB,Cheltenham Borough Council,461606,445588,PREMIERE PRODUCTS,C-L21200-1702,Pump Room-Cleaning materials,18 November 2011,179.94
http://statistics.data.gov.uk/id/local-authority-district/23UB,Cheltenham Borough Council,461606,445588,PREMIERE PRODUCTS,C-L21200-1702,Pump Room-Cleaning materials,18 November 2011,134.94
http://statistics.data.gov.uk/id/local-authority-district/23UB,Cheltenham Borough Council,461673,446540,PREMIERE PRODUCTS,C-N42250-3112,DSO Stores - Stock purchases,18 November 2011,146.05
http://statistics.data.gov.uk/id/local-authority-district/23UB,Cheltenham Borough Council,462040,447589,PREMIERE PRODUCTS,C-D13100-1702,Muni Off Blgs-Cleaning materials,25 November 2011,16.76
http://statistics.data.gov.uk/id/local-authority-district/23UB,Cheltenham Borough Council,462040,447589,PREMIERE PRODUCTS,C-D13100-1702,Muni Off Blgs-Cleaning materials,25 November 2011,40.36
http://statistics.data.gov.uk/id/local-authority-district/23UB,Cheltenham Borough Council,462040,447589,PREMIERE PRODUCTS,C-D13100-1702,Muni Off Blgs-Cleaning materials,25 November 2011,235.00
http://statistics.data.gov.uk/id/local-authority-district/23UB,Cheltenham Borough Council,462040,447589,PREMIERE PRODUCTS,C-D13100-1702,Muni Off Blgs-Cleaning materials,25 November 2011,239.92
http://statistics.data.gov.uk/id/local-authority-district/23UB,Cheltenham Borough Council,460805,2052333,PRINTWASTE RECYCLING,C-C23120-3509,Recycling Centr-Payments,04 November 2011,"1,750.80"
http://statistics.data.gov.uk/id/local-authority-district/23UB,Cheltenham Borough Council,460806,2052335,PRINTWASTE RECYCLING,C-C23120-3509,Recycling Centr-Payments,04 November 2011,"1,531.40"
http://statistics.data.gov.uk/id/local-authority-district/23UB,Cheltenham Borough Council,461608,133656,QUANTIL LIMITED,C-C22140-3127,Nursery-Materials-Bedding,18 November 2011,235.00
http://statistics.data.gov.uk/id/local-authority-district/23UB,Cheltenham Borough Council,461634,133650,QUANTIL LIMITED,C-C22140-3127,Nursery-Materials-Bedding,18 November 2011,28.20
http://statistics.data.gov.uk/id/local-authority-district/23UB,Cheltenham Borough Council,461633,133653,QUANTIL LIMITED,C-C22140-3127,Nursery-Materials-Bedding,18 November 2011,242.71
http://statistics.data.gov.uk/id/local-authority-district/23UB,Cheltenham Borough Council,461631,133652,QUANTIL LIMITED,C-C22140-3127,Nursery-Materials-Bedding,18 November 2011,156.51
http://statistics.data.gov.uk/id/local-authority-district/23UB,Cheltenham Borough Council,461628,133654,QUANTIL LIMITED,C-C22140-3127,Nursery-Materials-Bedding,18 November 2011,153.69
http://statistics.data.gov.uk/id/local-authority-district/23UB,Cheltenham Borough Council,461626,133651,QUANTIL LIMITED,C-C22140-3127,Nursery-Materials-Bedding,18 November 2011,549.90
http://statistics.data.gov.uk/id/local-authority-district/23UB,Cheltenham Borough Council,461613,133655,QUANTIL LIMITED,C-C22140-3127,Nursery-Materials-Bedding,18 November 2011,141.00
http://statistics.data.gov.uk/id/local-authority-district/23UB,Cheltenham Borough Council,461991,104380,RAINER SECURITY PRODUCTS LIMITED,C-H49103-8509,Security Locks-Key deposits/sales,25 November 2011,61.40
http://statistics.data.gov.uk/id/local-authority-district/23UB,Cheltenham Borough Council,461995,104377,RAINER SECURITY PRODUCTS LIMITED,C-H49103-8509,Security Locks-Key deposits/sales,25 November 2011,61.40
http://statistics.data.gov.uk/id/local-authority-district/23UB,Cheltenham Borough Council,461997,104375,RAINER SECURITY PRODUCTS LIMITED,C-H49103-8509,Security Locks-Key deposits/sales,25 November 2011,80.90
http://statistics.data.gov.uk/id/local-authority-district/23UB,Cheltenham Borough Council,462000,104372,RAINER SECURITY PRODUCTS LIMITED,C-H49103-8509,Security Locks-Key deposits/sales,25 November 2011,298.20
http://statistics.data.gov.uk/id/local-authority-district/23UB,Cheltenham Borough Council,461999,104373,RAINER SECURITY PRODUCTS LIMITED,C-H49103-8509,Security Locks-Key deposits/sales,25 November 2011,154.20
http://statistics.data.gov.uk/id/local-authority-district/23UB,Cheltenham Borough Council,461998,104374,RAINER SECURITY PRODUCTS LIMITED,C-H49103-8509,Security Locks-Key deposits/sales,25 November 2011,298.20
http://statistics.data.gov.uk/id/local-authority-district/23UB,Cheltenham Borough Council,461996,104376,RAINER SECURITY PRODUCTS LIMITED,C-H49103-8509,Security Locks-Key deposits/sales,25 November 2011,61.40
http://statistics.data.gov.uk/id/local-authority-district/23UB,Cheltenham Borough Council,461994,104378,RAINER SECURITY PRODUCTS LIMITED,C-H49103-8509,Security Locks-Key deposits/sales,25 November 2011,202.20
http://statistics.data.gov.uk/id/local-authority-district/23UB,Cheltenham Borough Council,461992,104381,RAINER SECURITY PRODUCTS LIMITED,C-H49103-8509,Security Locks-Key deposits/sales,25 November 2011,140.15
http://statistics.data.gov.uk/id/local-authority-district/23UB,Cheltenham Borough Council,461993,104379,RAINER SECURITY PRODUCTS LIMITED,C-H49103-8509,Security Locks-Key deposits/sales,25 November 2011,126.05
http://statistics.data.gov.uk/id/local-authority-district/23UB,Cheltenham Borough Council,461711,3125,REP SECURITY LIMITED,C-D34510-3183,Crime & Disordr-Taxi Marshalls,18 November 2011,"1,200.00"
http://statistics.data.gov.uk/id/local-authority-district/23UB,Cheltenham Borough Council,461249,REDACTED,RHYS COMPTON,C-D30200-8804,Misc Props & Ld-Misc Props Rent Deposits,11 November 2011,795.00
http://statistics.data.gov.uk/id/local-authority-district/23UB,Cheltenham Borough Council,460726,R659683,RICHARD READ (TRANSPORT ) LTD,C-C24100-3501,Fleet Maint-Hire of outside services,04 November 2011,952.42
http://statistics.data.gov.uk/id/local-authority-district/23UB,Cheltenham Borough Council,462139,R41619,RICHARD READ (TRANSPORT ) LTD,C-C24100-3501,Fleet Maint-Hire of outside services,25 November 2011,"3,951.59"
http://statistics.data.gov.uk/id/local-authority-district/23UB,Cheltenham Borough Council,462139,R41619,RICHARD READ (TRANSPORT ) LTD,C-C24100-3501,Fleet Maint-Hire of outside services,25 November 2011,"1,000.00"
http://statistics.data.gov.uk/id/local-authority-district/23UB,Cheltenham Borough Council,462139,R41619,RICHARD READ (TRANSPORT ) LTD,C-C24100-3501,Fleet Maint-Hire of outside services,25 November 2011,"-3,951.59"
http://statistics.data.gov.uk/id/local-authority-district/23UB,Cheltenham Borough Council,460818,9036114252,ROYAL MAIL,C-D21400-3601,Electoral Regn-Postages - stamps,04 November 2011,"1,149.19"
http://statistics.data.gov.uk/id/local-authority-district/23UB,Cheltenham Borough Council,460823,13,S AND J ASSOCIATES  LIMITED,C-D12495-3501,Cust.Serv.Areas-Hire of outside services,04 November 2011,834.00
http://statistics.data.gov.uk/id/local-authority-district/23UB,Cheltenham Borough Council,461671,466,SALLY MORGAN ENTERPRISES LIMITED,C-1T04J1-3568,Sally Morgan-Artist Fees,18 November 2011,"12,000.00"
http://statistics.data.gov.uk/id/local-authority-district/23UB,Cheltenham Borough Council,461229,SANDFORD LIDO,SANDFORD LIDO (TRADING) LIMITED,C-E21100-8596,Car Prks-Off St-Fee-Lido Car Park net in,11 November 2011,"-1,550.49"
http://statistics.data.gov.uk/id/local-authority-district/23UB,Cheltenham Borough Council,461229,SANDFORD LIDO,SANDFORD LIDO (TRADING) LIMITED,C-Z13030-4902,Lido Car Park-Lido Carpark-fees paid ove,11 November 2011,"15,325.44"
http://statistics.data.gov.uk/id/local-authority-district/23UB,Cheltenham Borough Council,461434,96,SASEPC,C-H44405-1410,Energy Perf Cer-EPC Fees,18 November 2011,880.00
http://statistics.data.gov.uk/id/local-authority-district/23UB,Cheltenham Borough Council,460848,255793,SCARAB SWEEPERS LIMITED,C-C24100-3501,Fleet Maint-Hire of outside services,04 November 2011,769.00
http://statistics.data.gov.uk/id/local-authority-district/23UB,Cheltenham Borough Council,460543,255378,SCARAB SWEEPERS LIMITED,C-C24100-3582,Fleet Maint-DSO Invoices,04 November 2011,40.97
http://statistics.data.gov.uk/id/local-authority-district/23UB,Cheltenham Borough Council,461625,256788,SCARAB SWEEPERS LIMITED,C-C24100-3501,Fleet Maint-Hire of outside services,18 November 2011,"1,492.14"
http://statistics.data.gov.uk/id/local-authority-district/23UB,Cheltenham Borough Council,461629,255644,SCARAB SWEEPERS LIMITED,C-C24100-3582,Fleet Maint-DSO Invoices,18 November 2011,359.41
http://statistics.data.gov.uk/id/local-authority-district/23UB,Cheltenham Borough Council,461627,256326,SCARAB SWEEPERS LIMITED,C-C24100-3582,Fleet Maint-DSO Invoices,18 November 2011,342.04
http://statistics.data.gov.uk/id/local-authority-district/23UB,Cheltenham Borough Council,460764,1778,SCI PRINT LTD,C-D21400-3409,Electoral Regn-Addnl Election printing,04 November 2011,"1,671.67"
http://statistics.data.gov.uk/id/local-authority-district/23UB,Cheltenham Borough Council,462129,P33292VP/111107,SEDDON (PROPERTY SERVICES) LTD,C-PM0042-R006,Pavillions-External Stonework,25 November 2011,"1,467.00"
http://statistics.data.gov.uk/id/local-authority-district/23UB,Cheltenham Borough Council,462128,969094062,SEVERN TRENT WATER (TVTE),C-L11500-1505,Rec Facilities-Water rates - metered,25 November 2011,"2,011.95"
http://statistics.data.gov.uk/id/local-authority-district/23UB,Cheltenham Borough Council,461545,494070263,SEVERN TRENT WATER AUTHORITY,C-C23140-1505,Public Convnces-Water rates - metered,18 November 2011,95.09
http://statistics.data.gov.uk/id/local-authority-district/23UB,Cheltenham Borough Council,461595,425027502,SEVERN TRENT WATER AUTHORITY,C-D14100-1505,Depot Building-Water rates - metered,18 November 2011,"1,815.93"
http://statistics.data.gov.uk/id/local-authority-district/23UB,Cheltenham Borough Council,460603,386180,SEVERNSIDE SAFETY SUPPLIES LTD,C-C23120-3301,Recycling Cntr-Clothing & uniforms,04 November 2011,14.40
http://statistics.data.gov.uk/id/local-authority-district/23UB,Cheltenham Borough Council,460601,386334,SEVERNSIDE SAFETY SUPPLIES LTD,C-C23180-3301,Rcycl Coltn Schms-Clothing & uniforms,04 November 2011,11.90
http://statistics.data.gov.uk/id/local-authority-district/23UB,Cheltenham Borough Council,460602,386160,SEVERNSIDE SAFETY SUPPLIES LTD,C-C23180-3301,Rcycl Coltn Schms-Clothing & uniforms,04 November 2011,14.40
http://statistics.data.gov.uk/id/local-authority-district/23UB,Cheltenham Borough Council,460602,386160,SEVERNSIDE SAFETY SUPPLIES LTD,C-C23180-3301,Rcycl Coltn Schms-Clothing & uniforms,04 November 2011,11.90
http://statistics.data.gov.uk/id/local-authority-district/23UB,Cheltenham Borough Council,460739,386275,SEVERNSIDE SAFETY SUPPLIES LTD,C-N42250-3112,DSO Stores - Stock purchases,04 November 2011,260.00
http://statistics.data.gov.uk/id/local-authority-district/23UB,Cheltenham Borough Council,460542,384215,SEVERNSIDE SAFETY SUPPLIES LTD,C-N42250-3112,DSO Stores - Stock purchases,04 November 2011,520.00
http://statistics.data.gov.uk/id/local-authority-district/23UB,Cheltenham Borough Council,461644,386673,SEVERNSIDE SAFETY SUPPLIES LTD,C-C22120-3301,Spts/Open Space-Clothing & uniforms,18 November 2011,19.03
http://statistics.data.gov.uk/id/local-authority-district/23UB,Cheltenham Borough Council,461644,386673,SEVERNSIDE SAFETY SUPPLIES LTD,C-C22120-3301,Spts/Open Space-Clothing & uniforms,18 November 2011,58.40
http://statistics.data.gov.uk/id/local-authority-district/23UB,Cheltenham Borough Council,461573,386480,SEVERNSIDE SAFETY SUPPLIES LTD,C-E63100-3301,Cemetery & Crem-Clothing & uniforms,18 November 2011,38.80
http://statistics.data.gov.uk/id/local-authority-district/23UB,Cheltenham Borough Council,461660,386669,SEVERNSIDE SAFETY SUPPLIES LTD,C-N42250-3112,DSO Stores - Stock purchases,18 November 2011,523.00
http://statistics.data.gov.uk/id/local-authority-district/23UB,Cheltenham Borough Council,461583,361,SFP PLANNING,C-B51120-3504,Devpment Cntrl-Legal exp & court costs,18 November 2011,"7,062.50"
http://statistics.data.gov.uk/id/local-authority-district/23UB,Cheltenham Borough Council,461236,81128497,SHERRIFF AMENITY SERVICES,C-C22120-3121,Spts/Open Space-Materials-Contract,11 November 2011,"2,044.90"
http://statistics.data.gov.uk/id/local-authority-district/23UB,Cheltenham Borough Council,461696,O0292723,SITEX ORBIS LIMITED,C-H44050-1104,Call-Out Serv.-Council House repairs,18 November 2011,"1,047.03"
http://statistics.data.gov.uk/id/local-authority-district/23UB,Cheltenham Borough Council,459106,REDACTED,SMARTBUILD CHELTENHAM,C-HC7440-C801,DFG.96.Act-Grants,03 November 2011,"13,584.84"
http://statistics.data.gov.uk/id/local-authority-district/23UB,Cheltenham Borough Council,459106,REDACTED,SMARTBUILD CHELTENHAM,C-HC7440-C801,DFG.96.Act-Grants,04 November 2011,"13,584.84"
http://statistics.data.gov.uk/id/local-authority-district/23UB,Cheltenham Borough Council,460846,SMILE-94559,SMILE,C-H22500-3510,Community Alarm-Promotion & Marketing,04 November 2011,960.00
http://statistics.data.gov.uk/id/local-authority-district/23UB,Cheltenham Borough Council,461009,59422,SOCITM,C-D11800-3890,IT Services-Subscriptions - general,11 November 2011,890.00
http://statistics.data.gov.uk/id/local-authority-district/23UB,Cheltenham Borough Council,461294,157-LAL-EVL-101,SOGLOS.COM,C-L11500-3510,Rec Facilities-Promotion & Marketing,11 November 2011,420.00
http://statistics.data.gov.uk/id/local-authority-district/23UB,Cheltenham Borough Council,461294,157-LAL-EVL-101,SOGLOS.COM,C-L11500-3510,Rec Facilities-Promotion & Marketing,11 November 2011,105.00
http://statistics.data.gov.uk/id/local-authority-district/23UB,Cheltenham Borough Council,461294,157-LAL-EVL-101,SOGLOS.COM,C-L11500-3510,Rec Facilities-Promotion & Marketing,11 November 2011,240.00
http://statistics.data.gov.uk/id/local-authority-district/23UB,Cheltenham Borough Council,460853,111300485 0035,SOUTHERN ELECTRIC PLC,C-H33700-1402,Estate Services-Electricity,11 November 2011,88.37
http://statistics.data.gov.uk/id/local-authority-district/23UB,Cheltenham Borough Council,460854,741300409 0023,SOUTHERN ELECTRIC PLC,C-H33700-1402,Estate Services-Electricity,11 November 2011,135.61
http://statistics.data.gov.uk/id/local-authority-district/23UB,Cheltenham Borough Council,460855,111300488 0021,SOUTHERN ELECTRIC PLC,C-H33700-1402,Estate Services-Electricity,11 November 2011,239.00
http://statistics.data.gov.uk/id/local-authority-district/23UB,Cheltenham Borough Council,460856,491299126 0021,SOUTHERN ELECTRIC PLC,C-H33700-1402,Estate Services-Electricity,11 November 2011,239.00
http://statistics.data.gov.uk/id/local-authority-district/23UB,Cheltenham Borough Council,460858,651301861 0025,SOUTHERN ELECTRIC PLC,C-H33700-1402,Estate Services-Electricity,11 November 2011,134.94
http://statistics.data.gov.uk/id/local-authority-district/23UB,Cheltenham Borough Council,460867,641299595 0031,SOUTHERN ELECTRIC PLC,C-H33700-1402,Estate Services-Electricity,11 November 2011,127.39
http://statistics.data.gov.uk/id/local-authority-district/23UB,Cheltenham Borough Council,460866,801298996 0019,SOUTHERN ELECTRIC PLC,C-H33700-1402,Estate Services-Electricity,11 November 2011,49.72
http://statistics.data.gov.uk/id/local-authority-district/23UB,Cheltenham Borough Council,460865,351299693 0027,SOUTHERN ELECTRIC PLC,C-H33700-1402,Estate Services-Electricity,11 November 2011,129.74
http://statistics.data.gov.uk/id/local-authority-district/23UB,Cheltenham Borough Council,460864,481299277 0033,SOUTHERN ELECTRIC PLC,C-H33700-1402,Estate Services-Electricity,11 November 2011,85.24
http://statistics.data.gov.uk/id/local-authority-district/23UB,Cheltenham Borough Council,460863,371299789 0029,SOUTHERN ELECTRIC PLC,C-H33700-1402,Estate Services-Electricity,11 November 2011,155.56
http://statistics.data.gov.uk/id/local-authority-district/23UB,Cheltenham Borough Council,460862,041299525 0029,SOUTHERN ELECTRIC PLC,C-H33700-1402,Estate Services-Electricity,11 November 2011,127.39
http://statistics.data.gov.uk/id/local-authority-district/23UB,Cheltenham Borough Council,460861,041299525 0028,SOUTHERN ELECTRIC PLC,C-H33700-1402,Estate Services-Electricity,11 November 2011,127.39
http://statistics.data.gov.uk/id/local-authority-district/23UB,Cheltenham Borough Council,460860,011299998 0031,SOUTHERN ELECTRIC PLC,C-H33700-1402,Estate Services-Electricity,11 November 2011,130.81
http://statistics.data.gov.uk/id/local-authority-district/23UB,Cheltenham Borough Council,460859,711300064 0027,SOUTHERN ELECTRIC PLC,C-H33700-1402,Estate Services-Electricity,11 November 2011,130.81
http://statistics.data.gov.uk/id/local-authority-district/23UB,Cheltenham Borough Council,460876,591299479 0029,SOUTHERN ELECTRIC PLC,C-H33700-1402,Estate Services-Electricity,11 November 2011,74.58
http://statistics.data.gov.uk/id/local-authority-district/23UB,Cheltenham Borough Council,460875,241300420 0031,SOUTHERN ELECTRIC PLC,C-H33700-1402,Estate Services-Electricity,11 November 2011,190.18
http://statistics.data.gov.uk/id/local-authority-district/23UB,Cheltenham Borough Council,460874,661299171 0023,SOUTHERN ELECTRIC PLC,C-H33700-1402,Estate Services-Electricity,11 November 2011,190.18
http://statistics.data.gov.uk/id/local-authority-district/23UB,Cheltenham Borough Council,460873,671298840 0026,SOUTHERN ELECTRIC PLC,C-H33700-1402,Estate Services-Electricity,11 November 2011,183.24
http://statistics.data.gov.uk/id/local-authority-district/23UB,Cheltenham Borough Council,460872,071298675 0031,SOUTHERN ELECTRIC PLC,C-H33700-1402,Estate Services-Electricity,11 November 2011,74.58
http://statistics.data.gov.uk/id/local-authority-district/23UB,Cheltenham Borough Council,460871,331314813 0028,SOUTHERN ELECTRIC PLC,C-H33700-1402,Estate Services-Electricity,11 November 2011,165.89
http://statistics.data.gov.uk/id/local-authority-district/23UB,Cheltenham Borough Council,460870,441299716 0029,SOUTHERN ELECTRIC PLC,C-H33700-1402,Estate Services-Electricity,11 November 2011,107.54
http://statistics.data.gov.uk/id/local-authority-district/23UB,Cheltenham Borough Council,460869,871300080 0021,SOUTHERN ELECTRIC PLC,C-H33700-1402,Estate Services-Electricity,11 November 2011,732.75
http://statistics.data.gov.uk/id/local-authority-district/23UB,Cheltenham Borough Council,460868,071298679 0023,SOUTHERN ELECTRIC PLC,C-H33700-1402,Estate Services-Electricity,11 November 2011,51.11
http://statistics.data.gov.uk/id/local-authority-district/23UB,Cheltenham Borough Council,460885,161300823 0022,SOUTHERN ELECTRIC PLC,C-H33700-1402,Estate Services-Electricity,11 November 2011,21.73
http://statistics.data.gov.uk/id/local-authority-district/23UB,Cheltenham Borough Council,460884,161300823 0021,SOUTHERN ELECTRIC PLC,C-H33700-1402,Estate Services-Electricity,11 November 2011,-167.54
http://statistics.data.gov.uk/id/local-authority-district/23UB,Cheltenham Borough Council,460883,021299035 0023,SOUTHERN ELECTRIC PLC,C-H33700-1402,Estate Services-Electricity,11 November 2011,56.19
http://statistics.data.gov.uk/id/local-authority-district/23UB,Cheltenham Borough Council,460882,851299740 0022,SOUTHERN ELECTRIC PLC,C-H33700-1402,Estate Services-Electricity,11 November 2011,51.79
http://statistics.data.gov.uk/id/local-authority-district/23UB,Cheltenham Borough Council,460881,551299756 0033,SOUTHERN ELECTRIC PLC,C-H33700-1402,Estate Services-Electricity,11 November 2011,190.18
http://statistics.data.gov.uk/id/local-authority-district/23UB,Cheltenham Borough Council,460880,461299187 0033,SOUTHERN ELECTRIC PLC,C-H33700-1402,Estate Services-Electricity,11 November 2011,190.18
http://statistics.data.gov.uk/id/local-authority-district/23UB,Cheltenham Borough Council,460879,991300530 0025,SOUTHERN ELECTRIC PLC,C-H33700-1402,Estate Services-Electricity,11 November 2011,52.18
http://statistics.data.gov.uk/id/local-authority-district/23UB,Cheltenham Borough Council,460878,481299275 0035,SOUTHERN ELECTRIC PLC,C-H33700-1402,Estate Services-Electricity,11 November 2011,183.24
http://statistics.data.gov.uk/id/local-authority-district/23UB,Cheltenham Borough Council,460877,201301924 0027,SOUTHERN ELECTRIC PLC,C-H33700-1402,Estate Services-Electricity,11 November 2011,44.16
http://statistics.data.gov.uk/id/local-authority-district/23UB,Cheltenham Borough Council,460916,741300411 0037,SOUTHERN ELECTRIC PLC,C-H33700-1402,Estate Services-Electricity,11 November 2011,84.55
http://statistics.data.gov.uk/id/local-authority-district/23UB,Cheltenham Borough Council,460915,801348109 0017,SOUTHERN ELECTRIC PLC,C-H33700-1402,Estate Services-Electricity,11 November 2011,84.55
http://statistics.data.gov.uk/id/local-authority-district/23UB,Cheltenham Borough Council,460914,211298204 0027,SOUTHERN ELECTRIC PLC,C-H33700-1402,Estate Services-Electricity,11 November 2011,129.74
http://statistics.data.gov.uk/id/local-authority-district/23UB,Cheltenham Borough Council,460913,101299328 0027,SOUTHERN ELECTRIC PLC,C-H33700-1402,Estate Services-Electricity,11 November 2011,127.39
http://statistics.data.gov.uk/id/local-authority-district/23UB,Cheltenham Borough Council,460912,8312999751 0033,SOUTHERN ELECTRIC PLC,C-H33700-1402,Estate Services-Electricity,11 November 2011,127.39
http://statistics.data.gov.uk/id/local-authority-district/23UB,Cheltenham Borough Council,460911,49131685 0028,SOUTHERN ELECTRIC PLC,C-H33700-1402,Estate Services-Electricity,11 November 2011,85.92
http://statistics.data.gov.uk/id/local-authority-district/23UB,Cheltenham Borough Council,460910,111300500 0031,SOUTHERN ELECTRIC PLC,C-H33700-1402,Estate Services-Electricity,11 November 2011,87.29
http://statistics.data.gov.uk/id/local-authority-district/23UB,Cheltenham Borough Council,460909,661299180 0037,SOUTHERN ELECTRIC PLC,C-H33700-1402,Estate Services-Electricity,11 November 2011,84.55
http://statistics.data.gov.uk/id/local-authority-district/23UB,Cheltenham Borough Council,460908,831299791 0043,SOUTHERN ELECTRIC PLC,C-H33700-1402,Estate Services-Electricity,11 November 2011,29.59
http://statistics.data.gov.uk/id/local-authority-district/23UB,Cheltenham Borough Council,460907,871300093 0033,SOUTHERN ELECTRIC PLC,C-H33700-1402,Estate Services-Electricity,11 November 2011,84.55
http://statistics.data.gov.uk/id/local-authority-district/23UB,Cheltenham Borough Council,460906,671298820 0029,SOUTHERN ELECTRIC PLC,C-H33700-1402,Estate Services-Electricity,11 November 2011,126.22
http://statistics.data.gov.uk/id/local-authority-district/23UB,Cheltenham Borough Council,460905,711298901 0031,SOUTHERN ELECTRIC PLC,C-H33700-1402,Estate Services-Electricity,11 November 2011,155.56
http://statistics.data.gov.uk/id/local-authority-district/23UB,Cheltenham Borough Council,460904,411299958 0029,SOUTHERN ELECTRIC PLC,C-H33700-1402,Estate Services-Electricity,11 November 2011,155.56
http://statistics.data.gov.uk/id/local-authority-district/23UB,Cheltenham Borough Council,460903,571299936 0019,SOUTHERN ELECTRIC PLC,C-H33700-1402,Estate Services-Electricity,11 November 2011,62.96
http://statistics.data.gov.uk/id/local-authority-district/23UB,Cheltenham Borough Council,460902,871255974 0007,SOUTHERN ELECTRIC PLC,C-H33700-1402,Estate Services-Electricity,11 November 2011,551.85
http://statistics.data.gov.uk/id/local-authority-district/23UB,Cheltenham Borough Council,460901,861300769 0033,SOUTHERN ELECTRIC PLC,C-H33700-1402,Estate Services-Electricity,11 November 2011,185.60
http://statistics.data.gov.uk/id/local-authority-district/23UB,Cheltenham Borough Council,460900,561298965 0031,SOUTHERN ELECTRIC PLC,C-H33700-1402,Estate Services-Electricity,11 November 2011,127.39
http://statistics.data.gov.uk/id/local-authority-district/23UB,Cheltenham Borough Council,460899,291299168 0031,SOUTHERN ELECTRIC PLC,C-H33700-1402,Estate Services-Electricity,11 November 2011,127.39
http://statistics.data.gov.uk/id/local-authority-district/23UB,Cheltenham Borough Council,460898,381300349 0033,SOUTHERN ELECTRIC PLC,C-H33700-1402,Estate Services-Electricity,11 November 2011,85.24
http://statistics.data.gov.uk/id/local-authority-district/23UB,Cheltenham Borough Council,460897,801299001 0033,SOUTHERN ELECTRIC PLC,C-H33700-1402,Estate Services-Electricity,11 November 2011,85.24
http://statistics.data.gov.uk/id/local-authority-district/23UB,Cheltenham Borough Council,460893,91299508 0021,SOUTHERN ELECTRIC PLC,C-H33700-1402,Estate Services-Electricity,11 November 2011,108.08
http://statistics.data.gov.uk/id/local-authority-district/23UB,Cheltenham Borough Council,460892,951299508 0020,SOUTHERN ELECTRIC PLC,C-H33700-1402,Estate Services-Electricity,11 November 2011,162.23
http://statistics.data.gov.uk/id/local-authority-district/23UB,Cheltenham Borough Council,460891,951299508 0019,SOUTHERN ELECTRIC PLC,C-H33700-1402,Estate Services-Electricity,11 November 2011,-286.46
http://statistics.data.gov.uk/id/local-authority-district/23UB,Cheltenham Borough Council,460890,591299491 0029,SOUTHERN ELECTRIC PLC,C-H33700-1402,Estate Services-Electricity,11 November 2011,67.85
http://statistics.data.gov.uk/id/local-authority-district/23UB,Cheltenham Borough Council,460889,591299491 0028,SOUTHERN ELECTRIC PLC,C-H33700-1402,Estate Services-Electricity,11 November 2011,59.44
http://statistics.data.gov.uk/id/local-authority-district/23UB,Cheltenham Borough Council,460888,591299491 0027,SOUTHERN ELECTRIC PLC,C-H33700-1402,Estate Services-Electricity,11 November 2011,-286.46
http://statistics.data.gov.uk/id/local-authority-district/23UB,Cheltenham Borough Council,460887,571300011 0019,SOUTHERN ELECTRIC PLC,C-H33700-1402,Estate Services-Electricity,11 November 2011,62.16
http://statistics.data.gov.uk/id/local-authority-district/23UB,Cheltenham Borough Council,460886,161300823 0023,SOUTHERN ELECTRIC PLC,C-H33700-1402,Estate Services-Electricity,11 November 2011,21.37
http://statistics.data.gov.uk/id/local-authority-district/23UB,Cheltenham Borough Council,460857,101299327 0025,SOUTHERN ELECTRIC PLC,C-H33700-1402,Estate Services-Electricity,11 November 2011,135.61
http://statistics.data.gov.uk/id/local-authority-district/23UB,Cheltenham Borough Council,461441,321345435/0033,SOUTHERN ELECTRIC PLC,C-E61500-1402,CCTV/TC Sfty-Electricity,18 November 2011,375.78
http://statistics.data.gov.uk/id/local-authority-district/23UB,Cheltenham Borough Council,461369,081299432 0035,SOUTHERN ELECTRIC PLC,C-H33700-1402,Estate Services-Electricity,18 November 2011,127.39
http://statistics.data.gov.uk/id/local-authority-district/23UB,Cheltenham Borough Council,461370,271300176 0037,SOUTHERN ELECTRIC PLC,C-H33700-1402,Estate Services-Electricity,18 November 2011,130.91
http://statistics.data.gov.uk/id/local-authority-district/23UB,Cheltenham Borough Council,461368,661299179 0029,SOUTHERN ELECTRIC PLC,C-H33700-1402,Estate Services-Electricity,18 November 2011,130.91
http://statistics.data.gov.uk/id/local-authority-district/23UB,Cheltenham Borough Council,461371,401299624 0033,SOUTHERN ELECTRIC PLC,C-H33700-1402,Estate Services-Electricity,18 November 2011,128.47
http://statistics.data.gov.uk/id/local-authority-district/23UB,Cheltenham Borough Council,461373,841299698 0033,SOUTHERN ELECTRIC PLC,C-H33700-1402,Estate Services-Electricity,18 November 2011,127.39
http://statistics.data.gov.uk/id/local-authority-district/23UB,Cheltenham Borough Council,461375,831299764 0025,SOUTHERN ELECTRIC PLC,C-H33700-1402,Estate Services-Electricity,18 November 2011,48.66
